Workbook

Sheet 1_Summary MSMF V.1. Final
A1: THE MARYLAND STREAM MITIGATION FRAMEWORK VERSION 1 FINAL (MSMF V.1. FINAL) 1,2,6,7
A10: BACKGROUND-IMPACTS | G10: BACKGROUND-MITIGATION
A11: Corps Project ID #: | C11: NAB-2023-85656 | G11: Corps Project ID #: | I11: NAB-2023-88552
A12: Project Name: | C12: Acme Airport Runway Expansion | G12: Project Name: | I12: Panther Branch Mitigation
A13: County: | C13: Baltimore | G13: County: | I13: Baltimore
A14: Corps PM: | C14: James Brown | G14: Corps PM: | I14: James Brown
A15: Sponsor: | C15: Acme Airports | G15: Sponsor: | I15: NA
A16: Landowner(s): | C16: Acme Airports | G16: Landowner(s): | I16: Bob Smith
A17: Collaborators: | C17: GKH, JMB, CTT | G17: Collaborators: | I17: BTD, MPT
A18: MITIGATION TYPE | G18: Permittee Responsible
A19: SUMMARY
A20: This example illustrates impacts for a proposed airport and associated permitee responsible mitigation. Only Tabs 1, 2, 3, and 4 were needed. The numbers below auto populate. For impacts purchasing from a mitigation bank, only tabs 1 and 2 would be completed, while the bank would independently have their own workbook with tabs 1 and some combination of 3, 4, 5, 6, and/or Fish Passage dependent on their proposal.
A24: TALLY OF IMPACTS AND MITIGATION
A25: CALCULATION NAME | F25: FUNCTIONAL FEET (FF) | I25: SUMMARY
A26: STREAM IMPACTS TOTAL | F26: =SUM('2_Stream Impact Calculator'!N11:N126) -> -909.8873635
A30: STREAM MITIGATION TOTAL FOR STREAM CHANNELS | F30: =SUM('3_Stream Mit Calc_StrmChannels'!P11:P86) -> 693.4163125
A34: STREAM MITIGATION TOTAL FOR STREAM BUFFERS | F34: =SUM('4_Stream Mitigation-Buffers'!M11:M64) -> 216.5625
A38: STREAM MITIGATION TOTAL FOR FISH PASSAGE3 | F38: 0
A42: FUNCTIONAL FOOT BALANCE4 | F42: =SUM(F26:H41) -> 0.0914489634
A43: TALLY OF BUNDLED MITIGATION (for Mitigation Banks Only) 5
A44: STREAM MITIGATION TOTAL FOR STREAM CHANNELS (bundled) | F44: =SUM(#REF!) ->  | I44: list ratio and bundled type
A48: STREAM MITIGATION TOTAL FOR STREAM BUFFERS (bundled) | F48: =SUM(#REF!) ->  | I48: list ratio and bundled type
A52: OPTIONAL FUNCTIONAL FEET | F52: =SUM(F44:H51) -> 
A53: NOTES
A54: 1 The MSMF V.1. Final Calculator includes ten tabs including six different worksheets which populate this summary sheet. Each worksheet and associated instructions are color coded. Tab 1:MSMF V.1. Summary Tab 2: Stream Impact Calculator Tab 3: Stream Mitigation Calcualtor for stream channels Tab 4: Stream Mitigation Calculator for Buffers Tab 5: Bundled Stream Channel Mitigation (FOR MITIGATION BANKS ONLY) Tab 6: Bundled Stream Buffer Mitigation (FOR MITIGTION BANKS ONLY) 2 Please note that for most projects only 1-4 worksheets will need to be filed out. For projects involving only stream impacts and purchasing credits from a mitigation bank, only the Summary Sheet and Stream Impact Calculator must be completed. The Stream Mitigation Calculators will be filled out by the Mitigation Bank Sponsor. For Impacts with permittee responsible mitigation, the Stream Impact Calculator, Stream Mitigation Calculator, and Stream Mitigation-Buffers Calculator must be completed. 3 If mitigation credits are sought for fish passage, the Stream Mitigation Total for Fish Passage must be entered manually using the MSMF Fish Passage Bete Tool. It will be released as a separate workbook in late 2023. 4 Please note that on permitee responsible mitigation, excess credit balance may not be sold or used to mitigate other DA authorized impacts. Only approved mitigation banks and In Lieu Fee Programs may sell excess functional foot credits. 5 The "Bundled" credits sheets are only for complex mitigation banks where credits overlap other credits or programs (e.g. Stream Buffers and Wetlands) where the sponsor must choose which credit to sell during each credit release year, resulting in diminishing credits in both categories for that release year. 6 Where impacts involve high quality resources or sensitive areas, the Corps reserves the ability to adjust debit and credit calculations accordingly. 7This tool does not circumvent Corps permit application reviews or interfere with the ability of Corps or MDE reviewers to determine mitigation credits owed for stream impacts or mitigation credits awarded for mitigation efforts should the output of this tool be contrary to their professional judgement and/or state or federal regulations.

Sheet 2_Stream Impact Calculator
A1: STREAM IMPACT CALCULATOR
A3: BACKGROUND INFORMATION | L3: TOTAL STREAM LOSSES (Functional Feet) | O3: =SUM(N11:N126) -> -909.8873635
A4: Corps Project ID #: | C4: NAB-2023-85656 | F4: Corps PM: | H4: James Brown
A5: Project Name: | C5: Acme Airport Runway | F5: Date: | H5: 2023-02-27
A6: Lat/Long: | C6: 36.78954, -76.55444 | F6: Sponsor: | H6: Acme Airports
A7: County: | C7: Baltimore | F7: Collaborators: | H7: GKH, JMB, CTT
A8: Raw Change in Reach Value (Functional Feet) | L8: Stream Impact Adjustments | N8: Stream Losses (Functional Feet) | O8: REMARKS (Include reach coordinates)
A9: Reach Name | B9: Physiographic Region | C9: Evaluation | D9: Activity | E9: Resource Type | F9: Reach Length (feet) | G9: Stream Quality | H9: Channel Thread | I9: Drainage Area (sqmi) | J9: Raw Reach Value (Functional Feet) | K9: Raw Change in Value (Functional Feet) | L9: Site Sensitivity | M9: Mitigation Ratio
A11: example 1 | B11: Piedmont | C11: Existing | D11: Preliminary Resource Evaluation | E11: Intermittent | F11: 1270 | G11: 0.43 | H11: Primary | I11: 0.5 | J11: =IF(H11="Second",(F11*G11*H12*1),IF(H11="Third",(F11*G11*H12*1),(F11*G11*H12*I12))) -> 416.745077 | K11: =(J13-J11) -> -416.745077 | L11: 1 | M11: Proposed Mitigation Type | N11: =(K11+L13)*M14 -> -687.6293771 | O11: 36.78954, -76.55441. Fill of channel to create airport runway.
H12: =IF(H11="Primary",1,IF(H11="Second",0.2,IF(H11="Third",0.1,IF(H11="",0)))) -> 1 | I12: =IF(AND(B11="Piedmont",I11>0.0001,I11<0.1),0.41, IF(AND(B11="Piedmont",I11>10), 2.45, IF(B11="Piedmont",I11^0.39, IF(AND(B11="Coastal Plain",I11>0.0001,I11<0.1),0.42,IF(AND(B11="Coastal Plain",I11>10),2.4, IF(B11="Coastal Plain",I11^0.38, IF(AND(B11="Mountain",I11>0.0001,I11<0.1),0.36,IF(AND(B11="Mountain",I11>10),2.75,IF(B11="Mountain",I11^0.44))))))))) -> 0.7631296045 | L12: =IF(L11="Select", 0,L11*0.1) -> 0.1 | M12: Permittee Responsible
B13: =B11 -> Piedmont | C13: Proposed | D13: Fill | E13: Intermittent | F13: 0 | G13: 0 | H13: =H11 -> Primary | I13: =I11 -> 0.5 | J13: =IF(H13="Second",(F13*G13*H14*1),IF(H13="Third",(F13*G13*H14*1),(F13*G13*H14*I14))) -> 0 | L13: =K11*L12 -> -41.6745077
H14: =IF(H13="Primary",1,IF(H13="Second",0.2,IF(H13="Third",0.1,0))) -> 1 | I14: =IF(AND(B13="Piedmont",I13>0.0001,I13<0.1),0.41, IF(AND(B13="Piedmont",I13>10), 2.45, IF(B13="Piedmont",I13^0.39, IF(AND(B13="Coastal Plain",I13>0.0001,I13<0.1),0.42,IF(AND(B13="Coastal Plain",I13>10),2.4, IF(B13="Coastal Plain",I13^0.38, IF(AND(B13="Mountain",I13>0.0001,I13<0.1),0.36,IF(AND(B13="Mountain",I13>10),2.75,IF(B13="Mountain",I13^0.44))))))))) -> 0.7631296045 | M14: =IF(M12="Mitigation Bank",1.3,IF(M12="PRM Advanced Mitigation",1.3,IF(M12="In Lieu Fee Released",1.3, 1.5))) -> 1.5
A15: example 2 | B15: Piedmont | C15: Existing | D15: Preliminary Resource Evaluation | E15: Perennial Headwater | F15: 500 | G15: 0.53 | H15: Primary | I15: 1.5 | J15: =IF(H15="Second",(F15*G15*H16*1),IF(H15="Third",(F15*G15*H16*1),(F15*G15*H16*I16))) -> 310.399823 | K15: =(J17-J15) -> -134.70181 | L15: 1 | M15: Proposed Mitigation Type | N15: =(K15+L17)*M18 -> -222.2579865 | O15: 36.78955, -76.55452. Channel armoring below bridge.
H16: =IF(H15="Primary",1,IF(H15="Second",0.2,IF(H15="Third",0.1,IF(H15="",0)))) -> 1 | I16: =IF(AND(B15="Piedmont",I15>0.0001,I15<0.1),0.41, IF(AND(B15="Piedmont",I15>10), 2.45, IF(B15="Piedmont",I15^0.39, IF(AND(B15="Coastal Plain",I15>0.0001,I15<0.1),0.42,IF(AND(B15="Coastal Plain",I15>10),2.4, IF(B15="Coastal Plain",I15^0.38, IF(AND(B15="Mountain",I15>0.0001,I15<0.1),0.36,IF(AND(B15="Mountain",I15>10),2.75,IF(B15="Mountain",I15^0.44))))))))) -> 1.171320087 | L16: =IF(L15="Select", 0,L15*0.1) -> 0.1 | M16: Permittee Responsible
B17: =B15 -> Piedmont | C17: Proposed | D17: Channel Hardening | E17: Perennial Headwater | F17: 500 | G17: 0.3 | H17: =H15 -> Primary | I17: =I15 -> 1.5 | J17: =IF(H17="Second",(F17*G17*H18*1),IF(H17="Third",(F17*G17*H18*1),(F17*G17*H18*I18))) -> 175.698013 | L17: =K15*L16 -> -13.470181
H18: =IF(H17="Primary",1,IF(H17="Second",0.2,IF(H17="Third",0.1,0))) -> 1 | I18: =IF(AND(B17="Piedmont",I17>0.0001,I17<0.1),0.41, IF(AND(B17="Piedmont",I17>10), 2.45, IF(B17="Piedmont",I17^0.39, IF(AND(B17="Coastal Plain",I17>0.0001,I17<0.1),0.42,IF(AND(B17="Coastal Plain",I17>10),2.4, IF(B17="Coastal Plain",I17^0.38, IF(AND(B17="Mountain",I17>0.0001,I17<0.1),0.36,IF(AND(B17="Mountain",I17>10),2.75,IF(B17="Mountain",I17^0.44))))))))) -> 1.171320087 | M18: =IF(M16="Mitigation Bank",1.3,IF(M16="PRM Advanced Mitigation",1.3,IF(M16="In Lieu Fee Released",1.3, 1.5))) -> 1.5
B19: Not Selected | C19: Existing | D19: Preliminary Resource Evaluation | E19: Select From Dropdown | F19: 0 | H19: Select | J19: =IF(H19="Second",(F19*G19*H20*1),IF(H19="Third",(F19*G19*H20*1),(F19*G19*H20*I20))) -> 0 | K19: =(J21-J19) -> 0 | L19: Select | M19: Proposed Mitigation Type | N19: =(K19+L21)*M22 -> 0
H20: =IF(H19="Primary",1,IF(H19="Second",0.2,IF(H19="Third",0.1,IF(H19="",0)))) -> FALSE | I20: =IF(AND(B19="Piedmont",I19>0.0001,I19<0.1),0.41, IF(AND(B19="Piedmont",I19>10), 2.45, IF(B19="Piedmont",I19^0.39, IF(AND(B19="Coastal Plain",I19>0.0001,I19<0.1),0.42,IF(AND(B19="Coastal Plain",I19>10),2.4, IF(B19="Coastal Plain",I19^0.38, IF(AND(B19="Mountain",I19>0.0001,I19<0.1),0.36,IF(AND(B19="Mountain",I19>10),2.75,IF(B19="Mountain",I19^0.44))))))))) -> FALSE | L20: =IF(L19="Select", 0,L19*0.1) -> 0 | M20: Select from Dropdown
B21: =B19 -> Not Selected | C21: Proposed | D21: Not Selected | E21: Select from Dropdown | F21: 0 | H21: =H19 -> Select | I21: =I19 -> 0 | J21: =IF(H21="Second",(F21*G21*H22*1),IF(H21="Third",(F21*G21*H22*1),(F21*G21*H22*I22))) -> 0 | L21: =K19*L20 -> 0
H22: =IF(H21="Primary",1,IF(H21="Second",0.2,IF(H21="Third",0.1,0))) -> 0 | I22: =IF(AND(B21="Piedmont",I21>0.0001,I21<0.1),0.41, IF(AND(B21="Piedmont",I21>10), 2.45, IF(B21="Piedmont",I21^0.39, IF(AND(B21="Coastal Plain",I21>0.0001,I21<0.1),0.42,IF(AND(B21="Coastal Plain",I21>10),2.4, IF(B21="Coastal Plain",I21^0.38, IF(AND(B21="Mountain",I21>0.0001,I21<0.1),0.36,IF(AND(B21="Mountain",I21>10),2.75,IF(B21="Mountain",I21^0.44))))))))) -> FALSE | M22: =IF(M20="Mitigation Bank",1.3,IF(M20="PRM Advanced Mitigation",1.3,IF(M20="In Lieu Fee Released",1.3, 1.5))) -> 1.5
B23: Not Selected | C23: Existing | D23: Preliminary Resource Evaluation | E23: Select From Dropdown | F23: 0 | H23: Select | J23: =IF(H23="Second",(F23*G23*H24*1),IF(H23="Third",(F23*G23*H24*1),(F23*G23*H24*I24))) -> 0 | K23: =(J25-J23) -> 0 | L23: Select | M23: Proposed Mitigation Type | N23: =(K23+L25)*M26 -> 0
H24: =IF(H23="Primary",1,IF(H23="Second",0.2,IF(H23="Third",0.1,IF(H23="",0)))) -> FALSE | I24: =IF(AND(B23="Piedmont",I23>0.0001,I23<0.1),0.41, IF(AND(B23="Piedmont",I23>10), 2.45, IF(B23="Piedmont",I23^0.39, IF(AND(B23="Coastal Plain",I23>0.0001,I23<0.1),0.42,IF(AND(B23="Coastal Plain",I23>10),2.4, IF(B23="Coastal Plain",I23^0.38, IF(AND(B23="Mountain",I23>0.0001,I23<0.1),0.36,IF(AND(B23="Mountain",I23>10),2.75,IF(B23="Mountain",I23^0.44))))))))) -> FALSE | L24: =IF(L23="Select", 0,L23*0.1) -> 0 | M24: Select from Dropdown
B25: =B23 -> Not Selected | C25: Proposed | D25: Not Selected | E25: Select from Dropdown | F25: 0 | H25: =H23 -> Select | I25: =I23 -> 0 | J25: =IF(H25="Second",(F25*G25*H26*1),IF(H25="Third",(F25*G25*H26*1),(F25*G25*H26*I26))) -> 0 | L25: =K23*L24 -> 0
H26: =IF(H25="Primary",1,IF(H25="Second",0.2,IF(H25="Third",0.1,0))) -> 0 | I26: =IF(AND(B25="Piedmont",I25>0.0001,I25<0.1),0.41, IF(AND(B25="Piedmont",I25>10), 2.45, IF(B25="Piedmont",I25^0.39, IF(AND(B25="Coastal Plain",I25>0.0001,I25<0.1),0.42,IF(AND(B25="Coastal Plain",I25>10),2.4, IF(B25="Coastal Plain",I25^0.38, IF(AND(B25="Mountain",I25>0.0001,I25<0.1),0.36,IF(AND(B25="Mountain",I25>10),2.75,IF(B25="Mountain",I25^0.44))))))))) -> FALSE | M26: =IF(M24="Mitigation Bank",1.3,IF(M24="PRM Advanced Mitigation",1.3,IF(M24="In Lieu Fee Released",1.3, 1.5))) -> 1.5
B27: Not Selected | C27: Existing | D27: Preliminary Resource Evaluation | E27: Select From Dropdown | F27: 0 | H27: Select | J27: =IF(H27="Second",(F27*G27*H28*1),IF(H27="Third",(F27*G27*H28*1),(F27*G27*H28*I28))) -> 0 | K27: =(J29-J27) -> 0 | L27: Select | M27: Proposed Mitigation Type | N27: =(K27+L29)*M30 -> 0
H28: =IF(H27="Primary",1,IF(H27="Second",0.2,IF(H27="Third",0.1,IF(H27="",0)))) -> FALSE | I28: =IF(AND(B27="Piedmont",I27>0.0001,I27<0.1),0.41, IF(AND(B27="Piedmont",I27>10), 2.45, IF(B27="Piedmont",I27^0.39, IF(AND(B27="Coastal Plain",I27>0.0001,I27<0.1),0.42,IF(AND(B27="Coastal Plain",I27>10),2.4, IF(B27="Coastal Plain",I27^0.38, IF(AND(B27="Mountain",I27>0.0001,I27<0.1),0.36,IF(AND(B27="Mountain",I27>10),2.75,IF(B27="Mountain",I27^0.44))))))))) -> FALSE | L28: =IF(L27="Select", 0,L27*0.1) -> 0 | M28: Select from Dropdown
B29: =B27 -> Not Selected | C29: Proposed | D29: Not Selected | E29: Select from Dropdown | F29: 0 | H29: =H27 -> Select | I29: =I27 -> 0 | J29: =IF(H29="Second",(F29*G29*H30*1),IF(H29="Third",(F29*G29*H30*1),(F29*G29*H30*I30))) -> 0 | L29: =K27*L28 -> 0
H30: =IF(H29="Primary",1,IF(H29="Second",0.2,IF(H29="Third",0.1,0))) -> 0 | I30: =IF(AND(B29="Piedmont",I29>0.0001,I29<0.1),0.41, IF(AND(B29="Piedmont",I29>10), 2.45, IF(B29="Piedmont",I29^0.39, IF(AND(B29="Coastal Plain",I29>0.0001,I29<0.1),0.42,IF(AND(B29="Coastal Plain",I29>10),2.4, IF(B29="Coastal Plain",I29^0.38, IF(AND(B29="Mountain",I29>0.0001,I29<0.1),0.36,IF(AND(B29="Mountain",I29>10),2.75,IF(B29="Mountain",I29^0.44))))))))) -> FALSE | M30: =IF(M28="Mitigation Bank",1.3,IF(M28="PRM Advanced Mitigation",1.3,IF(M28="In Lieu Fee Released",1.3, 1.5))) -> 1.5
B31: Not Selected | C31: Existing | D31: Preliminary Resource Evaluation | E31: Select From Dropdown | F31: 0 | H31: Select | J31: =IF(H31="Second",(F31*G31*H32*1),IF(H31="Third",(F31*G31*H32*1),(F31*G31*H32*I32))) -> 0 | K31: =(J33-J31) -> 0 | L31: Select | M31: Proposed Mitigation Type | N31: =(K31+L33)*M34 -> 0
H32: =IF(H31="Primary",1,IF(H31="Second",0.2,IF(H31="Third",0.1,IF(H31="",0)))) -> FALSE | I32: =IF(AND(B31="Piedmont",I31>0.0001,I31<0.1),0.41, IF(AND(B31="Piedmont",I31>10), 2.45, IF(B31="Piedmont",I31^0.39, IF(AND(B31="Coastal Plain",I31>0.0001,I31<0.1),0.42,IF(AND(B31="Coastal Plain",I31>10),2.4, IF(B31="Coastal Plain",I31^0.38, IF(AND(B31="Mountain",I31>0.0001,I31<0.1),0.36,IF(AND(B31="Mountain",I31>10),2.75,IF(B31="Mountain",I31^0.44))))))))) -> FALSE | L32: =IF(L31="Select", 0,L31*0.1) -> 0 | M32: Select from Dropdown
B33: =B31 -> Not Selected | C33: Proposed | D33: Not Selected | E33: Select from Dropdown | F33: 0 | H33: =H31 -> Select | I33: =I31 -> 0 | J33: =IF(H33="Second",(F33*G33*H34*1),IF(H33="Third",(F33*G33*H34*1),(F33*G33*H34*I34))) -> 0 | L33: =K31*L32 -> 0
H34: =IF(H33="Primary",1,IF(H33="Second",0.2,IF(H33="Third",0.1,0))) -> 0 | I34: =IF(AND(B33="Piedmont",I33>0.0001,I33<0.1),0.41, IF(AND(B33="Piedmont",I33>10), 2.45, IF(B33="Piedmont",I33^0.39, IF(AND(B33="Coastal Plain",I33>0.0001,I33<0.1),0.42,IF(AND(B33="Coastal Plain",I33>10),2.4, IF(B33="Coastal Plain",I33^0.38, IF(AND(B33="Mountain",I33>0.0001,I33<0.1),0.36,IF(AND(B33="Mountain",I33>10),2.75,IF(B33="Mountain",I33^0.44))))))))) -> FALSE | M34: =IF(M32="Mitigation Bank",1.3,IF(M32="PRM Advanced Mitigation",1.3,IF(M32="In Lieu Fee Released",1.3, 1.5))) -> 1.5
B35: Not Selected | C35: Existing | D35: Preliminary Resource Evaluation | E35: Select From Dropdown | F35: 0 | H35: Select | J35: =IF(H35="Second",(F35*G35*H36*1),IF(H35="Third",(F35*G35*H36*1),(F35*G35*H36*I36))) -> 0 | K35: =(J37-J35) -> 0 | L35: Select | M35: Proposed Mitigation Type | N35: =(K35+L37)*M38 -> 0
H36: =IF(H35="Primary",1,IF(H35="Second",0.2,IF(H35="Third",0.1,IF(H35="",0)))) -> FALSE | I36: =IF(AND(B35="Piedmont",I35>0.0001,I35<0.1),0.41, IF(AND(B35="Piedmont",I35>10), 2.45, IF(B35="Piedmont",I35^0.39, IF(AND(B35="Coastal Plain",I35>0.0001,I35<0.1),0.42,IF(AND(B35="Coastal Plain",I35>10),2.4, IF(B35="Coastal Plain",I35^0.38, IF(AND(B35="Mountain",I35>0.0001,I35<0.1),0.36,IF(AND(B35="Mountain",I35>10),2.75,IF(B35="Mountain",I35^0.44))))))))) -> FALSE | L36: =IF(L35="Select", 0,L35*0.1) -> 0 | M36: Select from Dropdown
B37: =B35 -> Not Selected | C37: Proposed | D37: Not Selected | E37: Select from Dropdown | F37: 0 | H37: =H35 -> Select | I37: =I35 -> 0 | J37: =IF(H37="Second",(F37*G37*H38*1),IF(H37="Third",(F37*G37*H38*1),(F37*G37*H38*I38))) -> 0 | L37: =K35*L36 -> 0
H38: =IF(H37="Primary",1,IF(H37="Second",0.2,IF(H37="Third",0.1,0))) -> 0 | I38: =IF(AND(B37="Piedmont",I37>0.0001,I37<0.1),0.41, IF(AND(B37="Piedmont",I37>10), 2.45, IF(B37="Piedmont",I37^0.39, IF(AND(B37="Coastal Plain",I37>0.0001,I37<0.1),0.42,IF(AND(B37="Coastal Plain",I37>10),2.4, IF(B37="Coastal Plain",I37^0.38, IF(AND(B37="Mountain",I37>0.0001,I37<0.1),0.36,IF(AND(B37="Mountain",I37>10),2.75,IF(B37="Mountain",I37^0.44))))))))) -> FALSE | M38: =IF(M36="Mitigation Bank",1.3,IF(M36="PRM Advanced Mitigation",1.3,IF(M36="In Lieu Fee Released",1.3, 1.5))) -> 1.5
B39: Not Selected | C39: Existing | D39: Preliminary Resource Evaluation | E39: Select From Dropdown | F39: 0 | H39: Select | J39: =IF(H39="Second",(F39*G39*H40*1),IF(H39="Third",(F39*G39*H40*1),(F39*G39*H40*I40))) -> 0 | K39: =(J41-J39) -> 0 | L39: Select | M39: Proposed Mitigation Type | N39: =(K39+L41)*M42 -> 0
H40: =IF(H39="Primary",1,IF(H39="Second",0.2,IF(H39="Third",0.1,IF(H39="",0)))) -> FALSE | I40: =IF(AND(B39="Piedmont",I39>0.0001,I39<0.1),0.41, IF(AND(B39="Piedmont",I39>10), 2.45, IF(B39="Piedmont",I39^0.39, IF(AND(B39="Coastal Plain",I39>0.0001,I39<0.1),0.42,IF(AND(B39="Coastal Plain",I39>10),2.4, IF(B39="Coastal Plain",I39^0.38, IF(AND(B39="Mountain",I39>0.0001,I39<0.1),0.36,IF(AND(B39="Mountain",I39>10),2.75,IF(B39="Mountain",I39^0.44))))))))) -> FALSE | L40: =IF(L39="Select", 0,L39*0.1) -> 0 | M40: Select from Dropdown
B41: =B39 -> Not Selected | C41: Proposed | D41: Not Selected | E41: Select from Dropdown | F41: 0 | H41: =H39 -> Select | I41: =I39 -> 0 | J41: =IF(H41="Second",(F41*G41*H42*1),IF(H41="Third",(F41*G41*H42*1),(F41*G41*H42*I42))) -> 0 | L41: =K39*L40 -> 0
H42: =IF(H41="Primary",1,IF(H41="Second",0.2,IF(H41="Third",0.1,0))) -> 0 | I42: =IF(AND(B41="Piedmont",I41>0.0001,I41<0.1),0.41, IF(AND(B41="Piedmont",I41>10), 2.45, IF(B41="Piedmont",I41^0.39, IF(AND(B41="Coastal Plain",I41>0.0001,I41<0.1),0.42,IF(AND(B41="Coastal Plain",I41>10),2.4, IF(B41="Coastal Plain",I41^0.38, IF(AND(B41="Mountain",I41>0.0001,I41<0.1),0.36,IF(AND(B41="Mountain",I41>10),2.75,IF(B41="Mountain",I41^0.44))))))))) -> FALSE | M42: =IF(M40="Mitigation Bank",1.3,IF(M40="PRM Advanced Mitigation",1.3,IF(M40="In Lieu Fee Released",1.3, 1.5))) -> 1.5
B43: Not Selected | C43: Existing | D43: Preliminary Resource Evaluation | E43: Select From Dropdown | F43: 0 | H43: Select | J43: =IF(H43="Second",(F43*G43*H44*1),IF(H43="Third",(F43*G43*H44*1),(F43*G43*H44*I44))) -> 0 | K43: =(J45-J43) -> 0 | L43: Select | M43: Proposed Mitigation Type | N43: =(K43+L45)*M46 -> 0
H44: =IF(H43="Primary",1,IF(H43="Second",0.2,IF(H43="Third",0.1,IF(H43="",0)))) -> FALSE | I44: =IF(AND(B43="Piedmont",I43>0.0001,I43<0.1),0.41, IF(AND(B43="Piedmont",I43>10), 2.45, IF(B43="Piedmont",I43^0.39, IF(AND(B43="Coastal Plain",I43>0.0001,I43<0.1),0.42,IF(AND(B43="Coastal Plain",I43>10),2.4, IF(B43="Coastal Plain",I43^0.38, IF(AND(B43="Mountain",I43>0.0001,I43<0.1),0.36,IF(AND(B43="Mountain",I43>10),2.75,IF(B43="Mountain",I43^0.44))))))))) -> FALSE | L44: =IF(L43="Select", 0,L43*0.1) -> 0 | M44: Select from Dropdown
B45: =B43 -> Not Selected | C45: Proposed | D45: Not Selected | E45: Select from Dropdown | F45: 0 | H45: =H43 -> Select | I45: =I43 -> 0 | J45: =IF(H45="Second",(F45*G45*H46*1),IF(H45="Third",(F45*G45*H46*1),(F45*G45*H46*I46))) -> 0 | L45: =K43*L44 -> 0
H46: =IF(H45="Primary",1,IF(H45="Second",0.2,IF(H45="Third",0.1,0))) -> 0 | I46: =IF(AND(B45="Piedmont",I45>0.0001,I45<0.1),0.41, IF(AND(B45="Piedmont",I45>10), 2.45, IF(B45="Piedmont",I45^0.39, IF(AND(B45="Coastal Plain",I45>0.0001,I45<0.1),0.42,IF(AND(B45="Coastal Plain",I45>10),2.4, IF(B45="Coastal Plain",I45^0.38, IF(AND(B45="Mountain",I45>0.0001,I45<0.1),0.36,IF(AND(B45="Mountain",I45>10),2.75,IF(B45="Mountain",I45^0.44))))))))) -> FALSE | M46: =IF(M44="Mitigation Bank",1.3,IF(M44="PRM Advanced Mitigation",1.3,IF(M44="In Lieu Fee Released",1.3, 1.5))) -> 1.5
B47: Not Selected | C47: Existing | D47: Preliminary Resource Evaluation | E47: Select From Dropdown | F47: 0 | H47: Select | J47: =IF(H47="Second",(F47*G47*H48*1),IF(H47="Third",(F47*G47*H48*1),(F47*G47*H48*I48))) -> 0 | K47: =(J49-J47) -> 0 | L47: Select | M47: Proposed Mitigation Type | N47: =(K47+L49)*M50 -> 0
H48: =IF(H47="Primary",1,IF(H47="Second",0.2,IF(H47="Third",0.1,IF(H47="",0)))) -> FALSE | I48: =IF(AND(B47="Piedmont",I47>0.0001,I47<0.1),0.41, IF(AND(B47="Piedmont",I47>10), 2.45, IF(B47="Piedmont",I47^0.39, IF(AND(B47="Coastal Plain",I47>0.0001,I47<0.1),0.42,IF(AND(B47="Coastal Plain",I47>10),2.4, IF(B47="Coastal Plain",I47^0.38, IF(AND(B47="Mountain",I47>0.0001,I47<0.1),0.36,IF(AND(B47="Mountain",I47>10),2.75,IF(B47="Mountain",I47^0.44))))))))) -> FALSE | L48: =IF(L47="Select", 0,L47*0.1) -> 0 | M48: Select from Dropdown
B49: =B47 -> Not Selected | C49: Proposed | D49: Not Selected | E49: Select from Dropdown | F49: 0 | H49: =H47 -> Select | I49: =I47 -> 0 | J49: =IF(H49="Second",(F49*G49*H50*1),IF(H49="Third",(F49*G49*H50*1),(F49*G49*H50*I50))) -> 0 | L49: =K47*L48 -> 0
H50: =IF(H49="Primary",1,IF(H49="Second",0.2,IF(H49="Third",0.1,0))) -> 0 | I50: =IF(AND(B49="Piedmont",I49>0.0001,I49<0.1),0.41, IF(AND(B49="Piedmont",I49>10), 2.45, IF(B49="Piedmont",I49^0.39, IF(AND(B49="Coastal Plain",I49>0.0001,I49<0.1),0.42,IF(AND(B49="Coastal Plain",I49>10),2.4, IF(B49="Coastal Plain",I49^0.38, IF(AND(B49="Mountain",I49>0.0001,I49<0.1),0.36,IF(AND(B49="Mountain",I49>10),2.75,IF(B49="Mountain",I49^0.44))))))))) -> FALSE | M50: =IF(M48="Mitigation Bank",1.3,IF(M48="PRM Advanced Mitigation",1.3,IF(M48="In Lieu Fee Released",1.3, 1.5))) -> 1.5
B51: Not Selected | C51: Existing | D51: Preliminary Resource Evaluation | E51: Select From Dropdown | F51: 0 | H51: Select | J51: =IF(H51="Second",(F51*G51*H52*1),IF(H51="Third",(F51*G51*H52*1),(F51*G51*H52*I52))) -> 0 | K51: =(J53-J51) -> 0 | L51: Select | M51: Proposed Mitigation Type | N51: =(K51+L53)*M54 -> 0
H52: =IF(H51="Primary",1,IF(H51="Second",0.2,IF(H51="Third",0.1,IF(H51="",0)))) -> FALSE | I52: =IF(AND(B51="Piedmont",I51>0.0001,I51<0.1),0.41, IF(AND(B51="Piedmont",I51>10), 2.45, IF(B51="Piedmont",I51^0.39, IF(AND(B51="Coastal Plain",I51>0.0001,I51<0.1),0.42,IF(AND(B51="Coastal Plain",I51>10),2.4, IF(B51="Coastal Plain",I51^0.38, IF(AND(B51="Mountain",I51>0.0001,I51<0.1),0.36,IF(AND(B51="Mountain",I51>10),2.75,IF(B51="Mountain",I51^0.44))))))))) -> FALSE | L52: =IF(L51="Select", 0,L51*0.1) -> 0 | M52: Select from Dropdown
B53: =B51 -> Not Selected | C53: Proposed | D53: Not Selected | E53: Select from Dropdown | F53: 0 | H53: =H51 -> Select | I53: =I51 -> 0 | J53: =IF(H53="Second",(F53*G53*H54*1),IF(H53="Third",(F53*G53*H54*1),(F53*G53*H54*I54))) -> 0 | L53: =K51*L52 -> 0
H54: =IF(H53="Primary",1,IF(H53="Second",0.2,IF(H53="Third",0.1,0))) -> 0 | I54: =IF(AND(B53="Piedmont",I53>0.0001,I53<0.1),0.41, IF(AND(B53="Piedmont",I53>10), 2.45, IF(B53="Piedmont",I53^0.39, IF(AND(B53="Coastal Plain",I53>0.0001,I53<0.1),0.42,IF(AND(B53="Coastal Plain",I53>10),2.4, IF(B53="Coastal Plain",I53^0.38, IF(AND(B53="Mountain",I53>0.0001,I53<0.1),0.36,IF(AND(B53="Mountain",I53>10),2.75,IF(B53="Mountain",I53^0.44))))))))) -> FALSE | M54: =IF(M52="Mitigation Bank",1.3,IF(M52="PRM Advanced Mitigation",1.3,IF(M52="In Lieu Fee Released",1.3, 1.5))) -> 1.5
B55: Not Selected | C55: Existing | D55: Preliminary Resource Evaluation | E55: Select From Dropdown | F55: 0 | H55: Select | J55: =IF(H55="Second",(F55*G55*H56*1),IF(H55="Third",(F55*G55*H56*1),(F55*G55*H56*I56))) -> 0 | K55: =(J57-J55) -> 0 | L55: Select | M55: Proposed Mitigation Type | N55: =(K55+L57)*M58 -> 0
H56: =IF(H55="Primary",1,IF(H55="Second",0.2,IF(H55="Third",0.1,IF(H55="",0)))) -> FALSE | I56: =IF(AND(B55="Piedmont",I55>0.0001,I55<0.1),0.41, IF(AND(B55="Piedmont",I55>10), 2.45, IF(B55="Piedmont",I55^0.39, IF(AND(B55="Coastal Plain",I55>0.0001,I55<0.1),0.42,IF(AND(B55="Coastal Plain",I55>10),2.4, IF(B55="Coastal Plain",I55^0.38, IF(AND(B55="Mountain",I55>0.0001,I55<0.1),0.36,IF(AND(B55="Mountain",I55>10),2.75,IF(B55="Mountain",I55^0.44))))))))) -> FALSE | L56: =IF(L55="Select", 0,L55*0.1) -> 0 | M56: Select from Dropdown
B57: =B55 -> Not Selected | C57: Proposed | D57: Not Selected | E57: Select from Dropdown | F57: 0 | H57: =H55 -> Select | I57: =I55 -> 0 | J57: =IF(H57="Second",(F57*G57*H58*1),IF(H57="Third",(F57*G57*H58*1),(F57*G57*H58*I58))) -> 0 | L57: =K55*L56 -> 0
H58: =IF(H57="Primary",1,IF(H57="Second",0.2,IF(H57="Third",0.1,0))) -> 0 | I58: =IF(AND(B57="Piedmont",I57>0.0001,I57<0.1),0.41, IF(AND(B57="Piedmont",I57>10), 2.45, IF(B57="Piedmont",I57^0.39, IF(AND(B57="Coastal Plain",I57>0.0001,I57<0.1),0.42,IF(AND(B57="Coastal Plain",I57>10),2.4, IF(B57="Coastal Plain",I57^0.38, IF(AND(B57="Mountain",I57>0.0001,I57<0.1),0.36,IF(AND(B57="Mountain",I57>10),2.75,IF(B57="Mountain",I57^0.44))))))))) -> FALSE | M58: =IF(M56="Mitigation Bank",1.3,IF(M56="PRM Advanced Mitigation",1.3,IF(M56="In Lieu Fee Released",1.3, 1.5))) -> 1.5
B59: Not Selected | C59: Existing | D59: Preliminary Resource Evaluation | E59: Select From Dropdown | F59: 0 | H59: Select | J59: =IF(H59="Second",(F59*G59*H60*1),IF(H59="Third",(F59*G59*H60*1),(F59*G59*H60*I60))) -> 0 | K59: =(J61-J59) -> 0 | L59: Select | M59: Proposed Mitigation Type | N59: =(K59+L61)*M62 -> 0
H60: =IF(H59="Primary",1,IF(H59="Second",0.2,IF(H59="Third",0.1,IF(H59="",0)))) -> FALSE | I60: =IF(AND(B59="Piedmont",I59>0.0001,I59<0.1),0.41, IF(AND(B59="Piedmont",I59>10), 2.45, IF(B59="Piedmont",I59^0.39, IF(AND(B59="Coastal Plain",I59>0.0001,I59<0.1),0.42,IF(AND(B59="Coastal Plain",I59>10),2.4, IF(B59="Coastal Plain",I59^0.38, IF(AND(B59="Mountain",I59>0.0001,I59<0.1),0.36,IF(AND(B59="Mountain",I59>10),2.75,IF(B59="Mountain",I59^0.44))))))))) -> FALSE | L60: =IF(L59="Select", 0,L59*0.1) -> 0 | M60: Select from Dropdown
B61: =B59 -> Not Selected | C61: Proposed | D61: Not Selected | E61: Select from Dropdown | F61: 0 | H61: =H59 -> Select | I61: =I59 -> 0 | J61: =IF(H61="Second",(F61*G61*H62*1),IF(H61="Third",(F61*G61*H62*1),(F61*G61*H62*I62))) -> 0 | L61: =K59*L60 -> 0
H62: =IF(H61="Primary",1,IF(H61="Second",0.2,IF(H61="Third",0.1,0))) -> 0 | I62: =IF(AND(B61="Piedmont",I61>0.0001,I61<0.1),0.41, IF(AND(B61="Piedmont",I61>10), 2.45, IF(B61="Piedmont",I61^0.39, IF(AND(B61="Coastal Plain",I61>0.0001,I61<0.1),0.42,IF(AND(B61="Coastal Plain",I61>10),2.4, IF(B61="Coastal Plain",I61^0.38, IF(AND(B61="Mountain",I61>0.0001,I61<0.1),0.36,IF(AND(B61="Mountain",I61>10),2.75,IF(B61="Mountain",I61^0.44))))))))) -> FALSE | M62: =IF(M60="Mitigation Bank",1.3,IF(M60="PRM Advanced Mitigation",1.3,IF(M60="In Lieu Fee Released",1.3, 1.5))) -> 1.5
B63: Not Selected | C63: Existing | D63: Preliminary Resource Evaluation | E63: Select From Dropdown | F63: 0 | H63: Select | J63: =IF(H63="Second",(F63*G63*H64*1),IF(H63="Third",(F63*G63*H64*1),(F63*G63*H64*I64))) -> 0 | K63: =(J65-J63) -> 0 | L63: Select | M63: Proposed Mitigation Type | N63: =(K63+L65)*M66 -> 0
H64: =IF(H63="Primary",1,IF(H63="Second",0.2,IF(H63="Third",0.1,IF(H63="",0)))) -> FALSE | I64: =IF(AND(B63="Piedmont",I63>0.0001,I63<0.1),0.41, IF(AND(B63="Piedmont",I63>10), 2.45, IF(B63="Piedmont",I63^0.39, IF(AND(B63="Coastal Plain",I63>0.0001,I63<0.1),0.42,IF(AND(B63="Coastal Plain",I63>10),2.4, IF(B63="Coastal Plain",I63^0.38, IF(AND(B63="Mountain",I63>0.0001,I63<0.1),0.36,IF(AND(B63="Mountain",I63>10),2.75,IF(B63="Mountain",I63^0.44))))))))) -> FALSE | L64: =IF(L63="Select", 0,L63*0.1) -> 0 | M64: Select from Dropdown
B65: =B63 -> Not Selected | C65: Proposed | D65: Not Selected | E65: Select from Dropdown | F65: 0 | H65: =H63 -> Select | I65: =I63 -> 0 | J65: =IF(H65="Second",(F65*G65*H66*1),IF(H65="Third",(F65*G65*H66*1),(F65*G65*H66*I66))) -> 0 | L65: =K63*L64 -> 0
H66: =IF(H65="Primary",1,IF(H65="Second",0.2,IF(H65="Third",0.1,0))) -> 0 | I66: =IF(AND(B65="Piedmont",I65>0.0001,I65<0.1),0.41, IF(AND(B65="Piedmont",I65>10), 2.45, IF(B65="Piedmont",I65^0.39, IF(AND(B65="Coastal Plain",I65>0.0001,I65<0.1),0.42,IF(AND(B65="Coastal Plain",I65>10),2.4, IF(B65="Coastal Plain",I65^0.38, IF(AND(B65="Mountain",I65>0.0001,I65<0.1),0.36,IF(AND(B65="Mountain",I65>10),2.75,IF(B65="Mountain",I65^0.44))))))))) -> FALSE | M66: =IF(M64="Mitigation Bank",1.3,IF(M64="PRM Advanced Mitigation",1.3,IF(M64="In Lieu Fee Released",1.3, 1.5))) -> 1.5
B67: Not Selected | C67: Existing | D67: Preliminary Resource Evaluation | E67: Select From Dropdown | F67: 0 | H67: Select | J67: =IF(H67="Second",(F67*G67*H68*1),IF(H67="Third",(F67*G67*H68*1),(F67*G67*H68*I68))) -> 0 | K67: =(J69-J67) -> 0 | L67: Select | M67: Proposed Mitigation Type | N67: =(K67+L69)*M70 -> 0
H68: =IF(H67="Primary",1,IF(H67="Second",0.2,IF(H67="Third",0.1,IF(H67="",0)))) -> FALSE | I68: =IF(AND(B67="Piedmont",I67>0.0001,I67<0.1),0.41, IF(AND(B67="Piedmont",I67>10), 2.45, IF(B67="Piedmont",I67^0.39, IF(AND(B67="Coastal Plain",I67>0.0001,I67<0.1),0.42,IF(AND(B67="Coastal Plain",I67>10),2.4, IF(B67="Coastal Plain",I67^0.38, IF(AND(B67="Mountain",I67>0.0001,I67<0.1),0.36,IF(AND(B67="Mountain",I67>10),2.75,IF(B67="Mountain",I67^0.44))))))))) -> FALSE | L68: =IF(L67="Select", 0,L67*0.1) -> 0 | M68: Select from Dropdown
B69: =B67 -> Not Selected | C69: Proposed | D69: Not Selected | E69: Select from Dropdown | F69: 0 | H69: =H67 -> Select | I69: =I67 -> 0 | J69: =IF(H69="Second",(F69*G69*H70*1),IF(H69="Third",(F69*G69*H70*1),(F69*G69*H70*I70))) -> 0 | L69: =K67*L68 -> 0
H70: =IF(H69="Primary",1,IF(H69="Second",0.2,IF(H69="Third",0.1,0))) -> 0 | I70: =IF(AND(B69="Piedmont",I69>0.0001,I69<0.1),0.41, IF(AND(B69="Piedmont",I69>10), 2.45, IF(B69="Piedmont",I69^0.39, IF(AND(B69="Coastal Plain",I69>0.0001,I69<0.1),0.42,IF(AND(B69="Coastal Plain",I69>10),2.4, IF(B69="Coastal Plain",I69^0.38, IF(AND(B69="Mountain",I69>0.0001,I69<0.1),0.36,IF(AND(B69="Mountain",I69>10),2.75,IF(B69="Mountain",I69^0.44))))))))) -> FALSE | M70: =IF(M68="Mitigation Bank",1.3,IF(M68="PRM Advanced Mitigation",1.3,IF(M68="In Lieu Fee Released",1.3, 1.5))) -> 1.5
B71: Not Selected | C71: Existing | D71: Preliminary Resource Evaluation | E71: Select From Dropdown | H71: Select | J71: =IF(H71="Second",(F71*G71*H72*1),IF(H71="Third",(F71*G71*H72*1),(F71*G71*H72*I72))) -> 0 | K71: =(J73-J71) -> 0 | L71: Select | M71: Proposed Mitigation Type | N71: =(K71+L73)*M74 -> 0
H72: =IF(H71="Primary",1,IF(H71="Second",0.2,IF(H71="Third",0.1,IF(H71="",0)))) -> FALSE | I72: =IF(AND(B71="Piedmont",I71>0.0001,I71<0.1),0.41, IF(AND(B71="Piedmont",I71>10), 2.45, IF(B71="Piedmont",I71^0.39, IF(AND(B71="Coastal Plain",I71>0.0001,I71<0.1),0.42,IF(AND(B71="Coastal Plain",I71>10),2.4, IF(B71="Coastal Plain",I71^0.38, IF(AND(B71="Mountain",I71>0.0001,I71<0.1),0.36,IF(AND(B71="Mountain",I71>10),2.75,IF(B71="Mountain",I71^0.44))))))))) -> FALSE | L72: =IF(L71="Select", 0,L71*0.1) -> 0 | M72: Select from Dropdown
B73: =B71 -> Not Selected | C73: Proposed | D73: Not Selected | E73: Select from Dropdown | F73: 0 | H73: =H71 -> Select | I73: =I71 -> 0 | J73: =IF(H73="Second",(F73*G73*H74*1),IF(H73="Third",(F73*G73*H74*1),(F73*G73*H74*I74))) -> 0 | L73: =K71*L72 -> 0
H74: =IF(H73="Primary",1,IF(H73="Second",0.2,IF(H73="Third",0.1,0))) -> 0 | I74: =IF(AND(B73="Piedmont",I73>0.0001,I73<0.1),0.41, IF(AND(B73="Piedmont",I73>10), 2.45, IF(B73="Piedmont",I73^0.39, IF(AND(B73="Coastal Plain",I73>0.0001,I73<0.1),0.42,IF(AND(B73="Coastal Plain",I73>10),2.4, IF(B73="Coastal Plain",I73^0.38, IF(AND(B73="Mountain",I73>0.0001,I73<0.1),0.36,IF(AND(B73="Mountain",I73>10),2.75,IF(B73="Mountain",I73^0.44))))))))) -> FALSE | M74: =IF(M72="Mitigation Bank",1.3,IF(M72="PRM Advanced Mitigation",1.3,IF(M72="In Lieu Fee Released",1.3, 1.5))) -> 1.5
B75: Not Selected | C75: Existing | D75: Preliminary Resource Evaluation | E75: Select From Dropdown | F75: 0 | H75: Select | J75: =IF(H75="Second",(F75*G75*H76*1),IF(H75="Third",(F75*G75*H76*1),(F75*G75*H76*I76))) -> 0 | K75: =(J77-J75) -> 0 | L75: Select | M75: Proposed Mitigation Type | N75: =(K75+L77)*M78 -> 0
H76: =IF(H75="Primary",1,IF(H75="Second",0.2,IF(H75="Third",0.1,IF(H75="",0)))) -> FALSE | I76: =IF(AND(B75="Piedmont",I75>0.0001,I75<0.1),0.41, IF(AND(B75="Piedmont",I75>10), 2.45, IF(B75="Piedmont",I75^0.39, IF(AND(B75="Coastal Plain",I75>0.0001,I75<0.1),0.42,IF(AND(B75="Coastal Plain",I75>10),2.4, IF(B75="Coastal Plain",I75^0.38, IF(AND(B75="Mountain",I75>0.0001,I75<0.1),0.36,IF(AND(B75="Mountain",I75>10),2.75,IF(B75="Mountain",I75^0.44))))))))) -> FALSE | L76: =IF(L75="Select", 0,L75*0.1) -> 0 | M76: Select from Dropdown
B77: =B75 -> Not Selected | C77: Proposed | D77: Not Selected | E77: Select from Dropdown | F77: 0 | H77: =H75 -> Select | I77: =I75 -> 0 | J77: =IF(H77="Second",(F77*G77*H78*1),IF(H77="Third",(F77*G77*H78*1),(F77*G77*H78*I78))) -> 0 | L77: =K75*L76 -> 0
H78: =IF(H77="Primary",1,IF(H77="Second",0.2,IF(H77="Third",0.1,0))) -> 0 | I78: =IF(AND(B77="Piedmont",I77>0.0001,I77<0.1),0.41, IF(AND(B77="Piedmont",I77>10), 2.45, IF(B77="Piedmont",I77^0.39, IF(AND(B77="Coastal Plain",I77>0.0001,I77<0.1),0.42,IF(AND(B77="Coastal Plain",I77>10),2.4, IF(B77="Coastal Plain",I77^0.38, IF(AND(B77="Mountain",I77>0.0001,I77<0.1),0.36,IF(AND(B77="Mountain",I77>10),2.75,IF(B77="Mountain",I77^0.44))))))))) -> FALSE | M78: =IF(M76="Mitigation Bank",1.3,IF(M76="PRM Advanced Mitigation",1.3,IF(M76="In Lieu Fee Released",1.3, 1.5))) -> 1.5
B79: Not Selected | C79: Existing | D79: Preliminary Resource Evaluation | E79: Select From Dropdown | F79: 0 | H79: Select | J79: =IF(H79="Second",(F79*G79*H80*1),IF(H79="Third",(F79*G79*H80*1),(F79*G79*H80*I80))) -> 0 | K79: =(J81-J79) -> 0 | L79: Select | M79: Proposed Mitigation Type | N79: =(K79+L81)*M82 -> 0
H80: =IF(H79="Primary",1,IF(H79="Second",0.2,IF(H79="Third",0.1,IF(H79="",0)))) -> FALSE | I80: =IF(AND(B79="Piedmont",I79>0.0001,I79<0.1),0.41, IF(AND(B79="Piedmont",I79>10), 2.45, IF(B79="Piedmont",I79^0.39, IF(AND(B79="Coastal Plain",I79>0.0001,I79<0.1),0.42,IF(AND(B79="Coastal Plain",I79>10),2.4, IF(B79="Coastal Plain",I79^0.38, IF(AND(B79="Mountain",I79>0.0001,I79<0.1),0.36,IF(AND(B79="Mountain",I79>10),2.75,IF(B79="Mountain",I79^0.44))))))))) -> FALSE | L80: =IF(L79="Select", 0,L79*0.1) -> 0 | M80: Select from Dropdown
B81: =B79 -> Not Selected | C81: Proposed | D81: Not Selected | E81: Select from Dropdown | F81: 0 | H81: =H79 -> Select | I81: =I79 -> 0 | J81: =IF(H81="Second",(F81*G81*H82*1),IF(H81="Third",(F81*G81*H82*1),(F81*G81*H82*I82))) -> 0 | L81: =K79*L80 -> 0
H82: =IF(H81="Primary",1,IF(H81="Second",0.2,IF(H81="Third",0.1,0))) -> 0 | I82: =IF(AND(B81="Piedmont",I81>0.0001,I81<0.1),0.41, IF(AND(B81="Piedmont",I81>10), 2.45, IF(B81="Piedmont",I81^0.39, IF(AND(B81="Coastal Plain",I81>0.0001,I81<0.1),0.42,IF(AND(B81="Coastal Plain",I81>10),2.4, IF(B81="Coastal Plain",I81^0.38, IF(AND(B81="Mountain",I81>0.0001,I81<0.1),0.36,IF(AND(B81="Mountain",I81>10),2.75,IF(B81="Mountain",I81^0.44))))))))) -> FALSE | M82: =IF(M80="Mitigation Bank",1.3,IF(M80="PRM Advanced Mitigation",1.3,IF(M80="In Lieu Fee Released",1.3, 1.5))) -> 1.5
B83: Not Selected | C83: Existing | D83: Preliminary Resource Evaluation | E83: Select From Dropdown | F83: 0 | H83: Select | J83: =IF(H83="Second",(F83*G83*H84*1),IF(H83="Third",(F83*G83*H84*1),(F83*G83*H84*I84))) -> 0 | K83: =(J85-J83) -> 0 | L83: Select | M83: Proposed Mitigation Type | N83: =(K83+L85)*M86 -> 0
H84: =IF(H83="Primary",1,IF(H83="Second",0.2,IF(H83="Third",0.1,IF(H83="",0)))) -> FALSE | I84: =IF(AND(B83="Piedmont",I83>0.0001,I83<0.1),0.41, IF(AND(B83="Piedmont",I83>10), 2.45, IF(B83="Piedmont",I83^0.39, IF(AND(B83="Coastal Plain",I83>0.0001,I83<0.1),0.42,IF(AND(B83="Coastal Plain",I83>10),2.4, IF(B83="Coastal Plain",I83^0.38, IF(AND(B83="Mountain",I83>0.0001,I83<0.1),0.36,IF(AND(B83="Mountain",I83>10),2.75,IF(B83="Mountain",I83^0.44))))))))) -> FALSE | L84: =IF(L83="Select", 0,L83*0.1) -> 0 | M84: Select from Dropdown
B85: =B83 -> Not Selected | C85: Proposed | D85: Not Selected | E85: Select from Dropdown | F85: 0 | H85: =H83 -> Select | I85: =I83 -> 0 | J85: =IF(H85="Second",(F85*G85*H86*1),IF(H85="Third",(F85*G85*H86*1),(F85*G85*H86*I86))) -> 0 | L85: =K83*L84 -> 0
H86: =IF(H85="Primary",1,IF(H85="Second",0.2,IF(H85="Third",0.1,0))) -> 0 | I86: =IF(AND(B85="Piedmont",I85>0.0001,I85<0.1),0.41, IF(AND(B85="Piedmont",I85>10), 2.45, IF(B85="Piedmont",I85^0.39, IF(AND(B85="Coastal Plain",I85>0.0001,I85<0.1),0.42,IF(AND(B85="Coastal Plain",I85>10),2.4, IF(B85="Coastal Plain",I85^0.38, IF(AND(B85="Mountain",I85>0.0001,I85<0.1),0.36,IF(AND(B85="Mountain",I85>10),2.75,IF(B85="Mountain",I85^0.44))))))))) -> FALSE | M86: =IF(M84="Mitigation Bank",1.3,IF(M84="PRM Advanced Mitigation",1.3,IF(M84="In Lieu Fee Released",1.3, 1.5))) -> 1.5
B87: Not Selected | C87: Existing | D87: Preliminary Resource Evaluation | E87: Select From Dropdown | F87: 0 | H87: Select | J87: =IF(H87="Second",(F87*G87*H88*1),IF(H87="Third",(F87*G87*H88*1),(F87*G87*H88*I88))) -> 0 | K87: =(J89-J87) -> 0 | L87: Select | M87: Proposed Mitigation Type | N87: =(K87+L89)*M90 -> 0
H88: =IF(H87="Primary",1,IF(H87="Second",0.2,IF(H87="Third",0.1,IF(H87="",0)))) -> FALSE | I88: =IF(AND(B87="Piedmont",I87>0.0001,I87<0.1),0.41, IF(AND(B87="Piedmont",I87>10), 2.45, IF(B87="Piedmont",I87^0.39, IF(AND(B87="Coastal Plain",I87>0.0001,I87<0.1),0.42,IF(AND(B87="Coastal Plain",I87>10),2.4, IF(B87="Coastal Plain",I87^0.38, IF(AND(B87="Mountain",I87>0.0001,I87<0.1),0.36,IF(AND(B87="Mountain",I87>10),2.75,IF(B87="Mountain",I87^0.44))))))))) -> FALSE | L88: =IF(L87="Select", 0,L87*0.1) -> 0 | M88: Select from Dropdown
B89: =B87 -> Not Selected | C89: Proposed | D89: Not Selected | E89: Select from Dropdown | F89: 0 | H89: =H87 -> Select | I89: =I87 -> 0 | J89: =IF(H89="Second",(F89*G89*H90*1),IF(H89="Third",(F89*G89*H90*1),(F89*G89*H90*I90))) -> 0 | L89: =K87*L88 -> 0
H90: =IF(H89="Primary",1,IF(H89="Second",0.2,IF(H89="Third",0.1,0))) -> 0 | I90: =IF(AND(B89="Piedmont",I89>0.0001,I89<0.1),0.41, IF(AND(B89="Piedmont",I89>10), 2.45, IF(B89="Piedmont",I89^0.39, IF(AND(B89="Coastal Plain",I89>0.0001,I89<0.1),0.42,IF(AND(B89="Coastal Plain",I89>10),2.4, IF(B89="Coastal Plain",I89^0.38, IF(AND(B89="Mountain",I89>0.0001,I89<0.1),0.36,IF(AND(B89="Mountain",I89>10),2.75,IF(B89="Mountain",I89^0.44))))))))) -> FALSE | M90: =IF(M88="Mitigation Bank",1.3,IF(M88="PRM Advanced Mitigation",1.3,IF(M88="In Lieu Fee Released",1.3, 1.5))) -> 1.5
B91: Not Selected | C91: Existing | D91: Preliminary Resource Evaluation | E91: Select From Dropdown | F91: 0 | H91: Select | J91: =IF(H91="Second",(F91*G91*H92*1),IF(H91="Third",(F91*G91*H92*1),(F91*G91*H92*I92))) -> 0 | K91: =(J93-J91) -> 0 | L91: Select | M91: Proposed Mitigation Type | N91: =(K91+L93)*M94 -> 0
H92: =IF(H91="Primary",1,IF(H91="Second",0.2,IF(H91="Third",0.1,IF(H91="",0)))) -> FALSE | I92: =IF(AND(B91="Piedmont",I91>0.0001,I91<0.1),0.41, IF(AND(B91="Piedmont",I91>10), 2.45, IF(B91="Piedmont",I91^0.39, IF(AND(B91="Coastal Plain",I91>0.0001,I91<0.1),0.42,IF(AND(B91="Coastal Plain",I91>10),2.4, IF(B91="Coastal Plain",I91^0.38, IF(AND(B91="Mountain",I91>0.0001,I91<0.1),0.36,IF(AND(B91="Mountain",I91>10),2.75,IF(B91="Mountain",I91^0.44))))))))) -> FALSE | L92: =IF(L91="Select", 0,L91*0.1) -> 0 | M92: Select from Dropdown
B93: =B91 -> Not Selected | C93: Proposed | D93: Not Selected | E93: Select from Dropdown | F93: 0 | H93: =H91 -> Select | I93: =I91 -> 0 | J93: =IF(H93="Second",(F93*G93*H94*1),IF(H93="Third",(F93*G93*H94*1),(F93*G93*H94*I94))) -> 0 | L93: =K91*L92 -> 0
H94: =IF(H93="Primary",1,IF(H93="Second",0.2,IF(H93="Third",0.1,0))) -> 0 | I94: =IF(AND(B93="Piedmont",I93>0.0001,I93<0.1),0.41, IF(AND(B93="Piedmont",I93>10), 2.45, IF(B93="Piedmont",I93^0.39, IF(AND(B93="Coastal Plain",I93>0.0001,I93<0.1),0.42,IF(AND(B93="Coastal Plain",I93>10),2.4, IF(B93="Coastal Plain",I93^0.38, IF(AND(B93="Mountain",I93>0.0001,I93<0.1),0.36,IF(AND(B93="Mountain",I93>10),2.75,IF(B93="Mountain",I93^0.44))))))))) -> FALSE | M94: =IF(M92="Mitigation Bank",1.3,IF(M92="PRM Advanced Mitigation",1.3,IF(M92="In Lieu Fee Released",1.3, 1.5))) -> 1.5
B95: Not Selected | C95: Existing | D95: Preliminary Resource Evaluation | E95: Select From Dropdown | F95: 0 | H95: Select | J95: =IF(H95="Second",(F95*G95*H96*1),IF(H95="Third",(F95*G95*H96*1),(F95*G95*H96*I96))) -> 0 | K95: =(J97-J95) -> 0 | L95: Select | M95: Proposed Mitigation Type | N95: =(K95+L97)*M98 -> 0
H96: =IF(H95="Primary",1,IF(H95="Second",0.2,IF(H95="Third",0.1,IF(H95="",0)))) -> FALSE | I96: =IF(AND(B95="Piedmont",I95>0.0001,I95<0.1),0.41, IF(AND(B95="Piedmont",I95>10), 2.45, IF(B95="Piedmont",I95^0.39, IF(AND(B95="Coastal Plain",I95>0.0001,I95<0.1),0.42,IF(AND(B95="Coastal Plain",I95>10),2.4, IF(B95="Coastal Plain",I95^0.38, IF(AND(B95="Mountain",I95>0.0001,I95<0.1),0.36,IF(AND(B95="Mountain",I95>10),2.75,IF(B95="Mountain",I95^0.44))))))))) -> FALSE | L96: =IF(L95="Select", 0,L95*0.1) -> 0 | M96: Select from Dropdown
B97: =B95 -> Not Selected | C97: Proposed | D97: Not Selected | E97: Select from Dropdown | F97: 0 | H97: =H95 -> Select | I97: =I95 -> 0 | J97: =IF(H97="Second",(F97*G97*H98*1),IF(H97="Third",(F97*G97*H98*1),(F97*G97*H98*I98))) -> 0 | L97: =K95*L96 -> 0
H98: =IF(H97="Primary",1,IF(H97="Second",0.2,IF(H97="Third",0.1,0))) -> 0 | I98: =IF(AND(B97="Piedmont",I97>0.0001,I97<0.1),0.41, IF(AND(B97="Piedmont",I97>10), 2.45, IF(B97="Piedmont",I97^0.39, IF(AND(B97="Coastal Plain",I97>0.0001,I97<0.1),0.42,IF(AND(B97="Coastal Plain",I97>10),2.4, IF(B97="Coastal Plain",I97^0.38, IF(AND(B97="Mountain",I97>0.0001,I97<0.1),0.36,IF(AND(B97="Mountain",I97>10),2.75,IF(B97="Mountain",I97^0.44))))))))) -> FALSE | M98: =IF(M96="Mitigation Bank",1.3,IF(M96="PRM Advanced Mitigation",1.3,IF(M96="In Lieu Fee Released",1.3, 1.5))) -> 1.5
B99: Not Selected | C99: Existing | D99: Preliminary Resource Evaluation | E99: Select From Dropdown | F99: 0 | H99: Select | J99: =IF(H99="Second",(F99*G99*H100*1),IF(H99="Third",(F99*G99*H100*1),(F99*G99*H100*I100))) -> 0 | K99: =(J101-J99) -> 0 | L99: Select | M99: Proposed Mitigation Type | N99: =(K99+L101)*M102 -> 0
H100: =IF(H99="Primary",1,IF(H99="Second",0.2,IF(H99="Third",0.1,IF(H99="",0)))) -> FALSE | I100: =IF(AND(B99="Piedmont",I99>0.0001,I99<0.1),0.41, IF(AND(B99="Piedmont",I99>10), 2.45, IF(B99="Piedmont",I99^0.39, IF(AND(B99="Coastal Plain",I99>0.0001,I99<0.1),0.42,IF(AND(B99="Coastal Plain",I99>10),2.4, IF(B99="Coastal Plain",I99^0.38, IF(AND(B99="Mountain",I99>0.0001,I99<0.1),0.36,IF(AND(B99="Mountain",I99>10),2.75,IF(B99="Mountain",I99^0.44))))))))) -> FALSE | L100: =IF(L99="Select", 0,L99*0.1) -> 0 | M100: Select from Dropdown
B101: =B99 -> Not Selected | C101: Proposed | D101: Not Selected | E101: Select from Dropdown | F101: 0 | H101: =H99 -> Select | I101: =I99 -> 0 | J101: =IF(H101="Second",(F101*G101*H102*1),IF(H101="Third",(F101*G101*H102*1),(F101*G101*H102*I102))) -> 0 | L101: =K99*L100 -> 0
H102: =IF(H101="Primary",1,IF(H101="Second",0.2,IF(H101="Third",0.1,0))) -> 0 | I102: =IF(AND(B101="Piedmont",I101>0.0001,I101<0.1),0.41, IF(AND(B101="Piedmont",I101>10), 2.45, IF(B101="Piedmont",I101^0.39, IF(AND(B101="Coastal Plain",I101>0.0001,I101<0.1),0.42,IF(AND(B101="Coastal Plain",I101>10),2.4, IF(B101="Coastal Plain",I101^0.38, IF(AND(B101="Mountain",I101>0.0001,I101<0.1),0.36,IF(AND(B101="Mountain",I101>10),2.75,IF(B101="Mountain",I101^0.44))))))))) -> FALSE | M102: =IF(M100="Mitigation Bank",1.3,IF(M100="PRM Advanced Mitigation",1.3,IF(M100="In Lieu Fee Released",1.3, 1.5))) -> 1.5
B103: Not Selected | C103: Existing | D103: Preliminary Resource Evaluation | E103: Select From Dropdown | F103: 0 | H103: Select | J103: =IF(H103="Second",(F103*G103*H104*1),IF(H103="Third",(F103*G103*H104*1),(F103*G103*H104*I104))) -> 0 | K103: =(J105-J103) -> 0 | L103: Select | M103: Proposed Mitigation Type | N103: =(K103+L105)*M106 -> 0
H104: =IF(H103="Primary",1,IF(H103="Second",0.2,IF(H103="Third",0.1,IF(H103="",0)))) -> FALSE | I104: =IF(AND(B103="Piedmont",I103>0.0001,I103<0.1),0.41, IF(AND(B103="Piedmont",I103>10), 2.45, IF(B103="Piedmont",I103^0.39, IF(AND(B103="Coastal Plain",I103>0.0001,I103<0.1),0.42,IF(AND(B103="Coastal Plain",I103>10),2.4, IF(B103="Coastal Plain",I103^0.38, IF(AND(B103="Mountain",I103>0.0001,I103<0.1),0.36,IF(AND(B103="Mountain",I103>10),2.75,IF(B103="Mountain",I103^0.44))))))))) -> FALSE | L104: =IF(L103="Select", 0,L103*0.1) -> 0 | M104: Select from Dropdown
B105: =B103 -> Not Selected | C105: Proposed | D105: Not Selected | E105: Select from Dropdown | F105: 0 | H105: =H103 -> Select | I105: =I103 -> 0 | J105: =IF(H105="Second",(F105*G105*H106*1),IF(H105="Third",(F105*G105*H106*1),(F105*G105*H106*I106))) -> 0 | L105: =K103*L104 -> 0
H106: =IF(H105="Primary",1,IF(H105="Second",0.2,IF(H105="Third",0.1,0))) -> 0 | I106: =IF(AND(B105="Piedmont",I105>0.0001,I105<0.1),0.41, IF(AND(B105="Piedmont",I105>10), 2.45, IF(B105="Piedmont",I105^0.39, IF(AND(B105="Coastal Plain",I105>0.0001,I105<0.1),0.42,IF(AND(B105="Coastal Plain",I105>10),2.4, IF(B105="Coastal Plain",I105^0.38, IF(AND(B105="Mountain",I105>0.0001,I105<0.1),0.36,IF(AND(B105="Mountain",I105>10),2.75,IF(B105="Mountain",I105^0.44))))))))) -> FALSE | M106: =IF(M104="Mitigation Bank",1.3,IF(M104="PRM Advanced Mitigation",1.3,IF(M104="In Lieu Fee Released",1.3, 1.5))) -> 1.5
B107: Not Selected | C107: Existing | D107: Preliminary Resource Evaluation | E107: Select From Dropdown | F107: 0 | H107: Select | J107: =IF(H107="Second",(F107*G107*H108*1),IF(H107="Third",(F107*G107*H108*1),(F107*G107*H108*I108))) -> 0 | K107: =(J109-J107) -> 0 | L107: Select | M107: Proposed Mitigation Type | N107: =(K107+L109)*M110 -> 0
H108: =IF(H107="Primary",1,IF(H107="Second",0.2,IF(H107="Third",0.1,IF(H107="",0)))) -> FALSE | I108: =IF(AND(B107="Piedmont",I107>0.0001,I107<0.1),0.41, IF(AND(B107="Piedmont",I107>10), 2.45, IF(B107="Piedmont",I107^0.39, IF(AND(B107="Coastal Plain",I107>0.0001,I107<0.1),0.42,IF(AND(B107="Coastal Plain",I107>10),2.4, IF(B107="Coastal Plain",I107^0.38, IF(AND(B107="Mountain",I107>0.0001,I107<0.1),0.36,IF(AND(B107="Mountain",I107>10),2.75,IF(B107="Mountain",I107^0.44))))))))) -> FALSE | L108: =IF(L107="Select", 0,L107*0.1) -> 0 | M108: Select from Dropdown
B109: =B107 -> Not Selected | C109: Proposed | D109: Not Selected | E109: Select from Dropdown | F109: 0 | H109: =H107 -> Select | I109: =I107 -> 0 | J109: =IF(H109="Second",(F109*G109*H110*1),IF(H109="Third",(F109*G109*H110*1),(F109*G109*H110*I110))) -> 0 | L109: =K107*L108 -> 0
H110: =IF(H109="Primary",1,IF(H109="Second",0.2,IF(H109="Third",0.1,0))) -> 0 | I110: =IF(AND(B109="Piedmont",I109>0.0001,I109<0.1),0.41, IF(AND(B109="Piedmont",I109>10), 2.45, IF(B109="Piedmont",I109^0.39, IF(AND(B109="Coastal Plain",I109>0.0001,I109<0.1),0.42,IF(AND(B109="Coastal Plain",I109>10),2.4, IF(B109="Coastal Plain",I109^0.38, IF(AND(B109="Mountain",I109>0.0001,I109<0.1),0.36,IF(AND(B109="Mountain",I109>10),2.75,IF(B109="Mountain",I109^0.44))))))))) -> FALSE | M110: =IF(M108="Mitigation Bank",1.3,IF(M108="PRM Advanced Mitigation",1.3,IF(M108="In Lieu Fee Released",1.3, 1.5))) -> 1.5
B111: Not Selected | C111: Existing | D111: Preliminary Resource Evaluation | E111: Select From Dropdown | F111: 0 | H111: Select | J111: =IF(H111="Second",(F111*G111*H112*1),IF(H111="Third",(F111*G111*H112*1),(F111*G111*H112*I112))) -> 0 | K111: =(J113-J111) -> 0 | L111: Select | M111: Proposed Mitigation Type | N111: =(K111+L113)*M114 -> 0
H112: =IF(H111="Primary",1,IF(H111="Second",0.2,IF(H111="Third",0.1,IF(H111="",0)))) -> FALSE | I112: =IF(AND(B111="Piedmont",I111>0.0001,I111<0.1),0.41, IF(AND(B111="Piedmont",I111>10), 2.45, IF(B111="Piedmont",I111^0.39, IF(AND(B111="Coastal Plain",I111>0.0001,I111<0.1),0.42,IF(AND(B111="Coastal Plain",I111>10),2.4, IF(B111="Coastal Plain",I111^0.38, IF(AND(B111="Mountain",I111>0.0001,I111<0.1),0.36,IF(AND(B111="Mountain",I111>10),2.75,IF(B111="Mountain",I111^0.44))))))))) -> FALSE | L112: =IF(L111="Select", 0,L111*0.1) -> 0 | M112: Select from Dropdown
B113: =B111 -> Not Selected | C113: Proposed | D113: Not Selected | E113: Select from Dropdown | F113: 0 | H113: =H111 -> Select | I113: =I111 -> 0 | J113: =IF(H113="Second",(F113*G113*H114*1),IF(H113="Third",(F113*G113*H114*1),(F113*G113*H114*I114))) -> 0 | L113: =K111*L112 -> 0
H114: =IF(H113="Primary",1,IF(H113="Second",0.2,IF(H113="Third",0.1,0))) -> 0 | I114: =IF(AND(B113="Piedmont",I113>0.0001,I113<0.1),0.41, IF(AND(B113="Piedmont",I113>10), 2.45, IF(B113="Piedmont",I113^0.39, IF(AND(B113="Coastal Plain",I113>0.0001,I113<0.1),0.42,IF(AND(B113="Coastal Plain",I113>10),2.4, IF(B113="Coastal Plain",I113^0.38, IF(AND(B113="Mountain",I113>0.0001,I113<0.1),0.36,IF(AND(B113="Mountain",I113>10),2.75,IF(B113="Mountain",I113^0.44))))))))) -> FALSE | M114: =IF(M112="Mitigation Bank",1.3,IF(M112="PRM Advanced Mitigation",1.3,IF(M112="In Lieu Fee Released",1.3, 1.5))) -> 1.5
B115: Not Selected | C115: Existing | D115: Preliminary Resource Evaluation | E115: Select From Dropdown | F115: 0 | H115: Select | J115: =IF(H115="Second",(F115*G115*H116*1),IF(H115="Third",(F115*G115*H116*1),(F115*G115*H116*I116))) -> 0 | K115: =(J117-J115) -> 0 | L115: Select | M115: Proposed Mitigation Type | N115: =(K115+L117)*M118 -> 0
H116: =IF(H115="Primary",1,IF(H115="Second",0.2,IF(H115="Third",0.1,IF(H115="",0)))) -> FALSE | I116: =IF(AND(B115="Piedmont",I115>0.0001,I115<0.1),0.41, IF(AND(B115="Piedmont",I115>10), 2.45, IF(B115="Piedmont",I115^0.39, IF(AND(B115="Coastal Plain",I115>0.0001,I115<0.1),0.42,IF(AND(B115="Coastal Plain",I115>10),2.4, IF(B115="Coastal Plain",I115^0.38, IF(AND(B115="Mountain",I115>0.0001,I115<0.1),0.36,IF(AND(B115="Mountain",I115>10),2.75,IF(B115="Mountain",I115^0.44))))))))) -> FALSE | L116: =IF(L115="Select", 0,L115*0.1) -> 0 | M116: Select from Dropdown
B117: =B115 -> Not Selected | C117: Proposed | D117: Not Selected | E117: Select from Dropdown | F117: 0 | H117: =H115 -> Select | I117: =I115 -> 0 | J117: =IF(H117="Second",(F117*G117*H118*1),IF(H117="Third",(F117*G117*H118*1),(F117*G117*H118*I118))) -> 0 | L117: =K115*L116 -> 0
H118: =IF(H117="Primary",1,IF(H117="Second",0.2,IF(H117="Third",0.1,0))) -> 0 | I118: =IF(AND(B117="Piedmont",I117>0.0001,I117<0.1),0.41, IF(AND(B117="Piedmont",I117>10), 2.45, IF(B117="Piedmont",I117^0.39, IF(AND(B117="Coastal Plain",I117>0.0001,I117<0.1),0.42,IF(AND(B117="Coastal Plain",I117>10),2.4, IF(B117="Coastal Plain",I117^0.38, IF(AND(B117="Mountain",I117>0.0001,I117<0.1),0.36,IF(AND(B117="Mountain",I117>10),2.75,IF(B117="Mountain",I117^0.44))))))))) -> FALSE | M118: =IF(M116="Mitigation Bank",1.3,IF(M116="PRM Advanced Mitigation",1.3,IF(M116="In Lieu Fee Released",1.3, 1.5))) -> 1.5
B119: Not Selected | C119: Existing | D119: Preliminary Resource Evaluation | E119: Select From Dropdown | F119: 0 | H119: Select | J119: =IF(H119="Second",(F119*G119*H120*1),IF(H119="Third",(F119*G119*H120*1),(F119*G119*H120*I120))) -> 0 | K119: =(J121-J119) -> 0 | L119: Select | M119: Proposed Mitigation Type | N119: =(K119+L121)*M122 -> 0
H120: =IF(H119="Primary",1,IF(H119="Second",0.2,IF(H119="Third",0.1,IF(H119="",0)))) -> FALSE | I120: =IF(AND(B119="Piedmont",I119>0.0001,I119<0.1),0.41, IF(AND(B119="Piedmont",I119>10), 2.45, IF(B119="Piedmont",I119^0.39, IF(AND(B119="Coastal Plain",I119>0.0001,I119<0.1),0.42,IF(AND(B119="Coastal Plain",I119>10),2.4, IF(B119="Coastal Plain",I119^0.38, IF(AND(B119="Mountain",I119>0.0001,I119<0.1),0.36,IF(AND(B119="Mountain",I119>10),2.75,IF(B119="Mountain",I119^0.44))))))))) -> FALSE | L120: =IF(L119="Select", 0,L119*0.1) -> 0 | M120: Select from Dropdown
B121: =B119 -> Not Selected | C121: Proposed | D121: Not Selected | E121: Select from Dropdown | F121: 0 | H121: =H119 -> Select | I121: =I119 -> 0 | J121: =IF(H121="Second",(F121*G121*H122*1),IF(H121="Third",(F121*G121*H122*1),(F121*G121*H122*I122))) -> 0 | L121: =K119*L120 -> 0
H122: =IF(H121="Primary",1,IF(H121="Second",0.2,IF(H121="Third",0.1,0))) -> 0 | I122: =IF(AND(B121="Piedmont",I121>0.0001,I121<0.1),0.41, IF(AND(B121="Piedmont",I121>10), 2.45, IF(B121="Piedmont",I121^0.39, IF(AND(B121="Coastal Plain",I121>0.0001,I121<0.1),0.42,IF(AND(B121="Coastal Plain",I121>10),2.4, IF(B121="Coastal Plain",I121^0.38, IF(AND(B121="Mountain",I121>0.0001,I121<0.1),0.36,IF(AND(B121="Mountain",I121>10),2.75,IF(B121="Mountain",I121^0.44))))))))) -> FALSE | M122: =IF(M120="Mitigation Bank",1.3,IF(M120="PRM Advanced Mitigation",1.3,IF(M120="In Lieu Fee Released",1.3, 1.5))) -> 1.5
B123: Not Selected | C123: Existing | D123: Preliminary Resource Evaluation | E123: Select From Dropdown | F123: 0 | H123: Select | J123: =IF(H123="Second",(F123*G123*H124*1),IF(H123="Third",(F123*G123*H124*1),(F123*G123*H124*I124))) -> 0 | K123: =(J125-J123) -> 0 | L123: Select | M123: Proposed Mitigation Type | N123: =(K123+L125)*M126 -> 0
H124: =IF(H123="Primary",1,IF(H123="Second",0.2,IF(H123="Third",0.1,IF(H123="",0)))) -> FALSE | I124: =IF(AND(B123="Piedmont",I123>0.0001,I123<0.1),0.41, IF(AND(B123="Piedmont",I123>10), 2.45, IF(B123="Piedmont",I123^0.39, IF(AND(B123="Coastal Plain",I123>0.0001,I123<0.1),0.42,IF(AND(B123="Coastal Plain",I123>10),2.4, IF(B123="Coastal Plain",I123^0.38, IF(AND(B123="Mountain",I123>0.0001,I123<0.1),0.36,IF(AND(B123="Mountain",I123>10),2.75,IF(B123="Mountain",I123^0.44))))))))) -> FALSE | L124: =IF(L123="Select", 0,L123*0.1) -> 0 | M124: Select from Dropdown
B125: =B123 -> Not Selected | C125: Proposed | D125: Not Selected | E125: Select from Dropdown | F125: 0 | H125: =H123 -> Select | I125: =I123 -> 0 | J125: =IF(H125="Second",(F125*G125*H126*1),IF(H125="Third",(F125*G125*H126*1),(F125*G125*H126*I126))) -> 0 | L125: =K123*L124 -> 0
H126: =IF(H125="Primary",1,IF(H125="Second",0.2,IF(H125="Third",0.1,0))) -> 0 | I126: =IF(AND(B125="Piedmont",I125>0.0001,I125<0.1),0.41, IF(AND(B125="Piedmont",I125>10), 2.45, IF(B125="Piedmont",I125^0.39, IF(AND(B125="Coastal Plain",I125>0.0001,I125<0.1),0.42,IF(AND(B125="Coastal Plain",I125>10),2.4, IF(B125="Coastal Plain",I125^0.38, IF(AND(B125="Mountain",I125>0.0001,I125<0.1),0.36,IF(AND(B125="Mountain",I125>10),2.75,IF(B125="Mountain",I125^0.44))))))))) -> FALSE | M126: =IF(M124="Mitigation Bank",1.3,IF(M124="PRM Advanced Mitigation",1.3,IF(M124="In Lieu Fee Released",1.3, 1.5))) -> 1.5

Sheet 3_Stream Mit Calc_StrmChannels
A1: STREAM MITIGATION CALCULATOR for Stream Channels
A3: BACKGROUND INFORMATION | M3: TOTAL STREAM GAINS from Stream Channels (Functional Feet)
A4: Corps Project ID #: | C4: NAB-2023-88552 | F4: Corps PM: | H4: James Brown
A5: Project Name: | C5: Panther Branch Mitigation | F5: Date: | H5: 2023-02-26 | M5: =SUM(P11:P86) -> 693.4163125
A6: Lat/Long: | C6: 38.58960, -76.9567 | F6: Sponsor: | H6: Acme Airports
A7: County: | C7: Baltimore | F7: Collaborators: | H7: DBT, CKL
A8: Raw Change in Reach Value (Functional Feet) | L8: Adjustments | P8: Stream Gains (Functional Feet) | Q8: REMARKS (Incude reach coordinates)
A9: Reach Name | B9: Physiographic Region | C9: Evaluation | D9: Activity | E9: Resource Type | F9: Length (Feet) | G9: Stream Quality | H9: Channel Thread | I9: Drainage Area (sqmi) | J9: Raw Reach Value (Functional Feet) | K9: Raw Change in Value (Functional Feet) | L9: Change in Reach Length Adjustment | M9: Site Sensitivity | N9: Site Protection
A11: reach 1 small perennial ex | B11: Piedmont | C11: Existing | D11: Preliminary Resource Evaluation | E11: Perennial Headwater | F11: 1000 | G11: 0.35 | H11: Primary | I11: 0.5 | J11: =IF(H11="Second",(F11*G11*H12*1), IF(H11="Third",(F11*G11*H12*1), (F11*G11*H12*I12))) -> 267.0953616 | K11: =J13-J11 -> 305.2518418 | L11: =IF(F11>F13, "Length Loss", IF(F11<F13, "Length Gain", IF(F11=F13, "No Change"))) -> No Change | M11: 0.1 | N11: Agricultural Easement | O11: Easement | P11: =IF(D13="Restoration/Enhancement",SUM(K11,L14,M13,N13),IF(D13="Preservation",((0.1*J13)+M13+N13),"NA")) -> 365.777026 | Q11: 36.90899, -76.99889. Main channel of reach 1
H12: =IF(H11="Primary",1,IF(H11="Second",0.2,IF(H11="Third",0.1,IF(H11="Select",0)))) -> 1 | I12: =IF(AND(B11="Piedmont",I11>0.0001,I11<0.1),0.41, IF(AND(B11="Piedmont",I11>10), 2.45, IF(B11="Piedmont",I11^0.39, IF(AND(B11="Coastal Plain",I11>0.0001,I11<0.1),0.42,IF(AND(B11="Coastal Plain",I11>10),2.4, IF(B11="Coastal Plain",I11^0.38, IF(AND(B11="Mountain",I11>0.0001,I11<0.1),0.36,IF(AND(B11="Mountain",I11>10),2.75,IF(B11="Mountain",I11^0.44))))))))) -> 0.7631296045 | L12: =F13-F11 -> 0 | N12: =IF(AND(N11="No Existing Protection",O11="Deed Restriction"), 0.02, IF(AND(N11="No Existing Protection",O11="Easement"), 0.05, IF(AND(N11="No Existing Protection", O11="Accredited Easement"), 0.07, IF(AND(N11="No Existing Protection", O11="Fee Simple to Conservation Holder"), 0.09, IF(AND(N11="Agricultural Easement",O11="Deed Restriction"), 0.01, IF(AND(N11="Agricultural Easement",O11="Easement"), 0.04, IF(AND(N11="Agricultural Easement", O11="Accredited Easement"), 0.06, IF(AND(N11="Agricultural Easement", O11="Fee Simple to Conservation Holder"), 0.09, IF(AND(N11="Environmental Easement",O11="Deed Restriction"), 0, IF(AND(N11="Environmental Easement", O11="Easement"), 0.02, IF(AND(N11="Environmental Easement", O11="Accredited Easement"), 0.03, IF(AND(N11="Public Land", O11="Public Land MOA"), 0.02, 0)))))))))))) -> 0.04
B13: =B11 -> Piedmont | C13: Proposed | D13: Restoration/Enhancement | E13: Perennial Headwater | F13: 1000 | G13: 0.75 | H13: =H11 -> Primary | I13: =I11 -> 0.5 | J13: =IF(H13="Second",(F13*G13*H14*1), IF(H13="Third",(F13*G13*H14*1), (F13*G13*H14*I14))) -> 572.3472034 | L13: 0.5 | M13: =IF(D13="Preservation",((J13*0.1)*M11),(K11+L14)*M11) -> 30.52518418 | N13: =IF(H11="Second",(J13*N12),IF(H11="Third",(J13*N12),(J13/I14*N12))) -> 30
H14: =IF(H13="Primary",1,IF(H13="Second",0.2,IF(H13="Third",0.1,IF(H13="Select",0)))) -> 1 | I14: =IF(AND(B13="Piedmont",I13>0.0001,I13<0.1),0.41, IF(AND(B13="Piedmont",I13>10), 2.45, IF(B13="Piedmont",I13^0.39, IF(AND(B13="Coastal Plain",I13>0.0001,I13<0.1),0.42,IF(AND(B13="Coastal Plain",I13>10),2.4, IF(B13="Coastal Plain",I13^0.38, IF(AND(B13="Mountain",I13>0.0001,I13<0.1),0.36,IF(AND(B13="Mountain",I13>10),2.75,IF(B13="Mountain",I13^0.44))))))))) -> 0.7631296045 | L14: =IF(AND(H11="Primary",L11="Length Loss"), L12*G11*I12*L13*-1,IF(AND(H11="Primary", L11="Length Gain"),L12*G13*I14*L13*-1,0)) -> 0
A15: Reach 2 mid perennial example | B15: Piedmont | C15: Existing | D15: Preliminary Resource Evaluation | E15: Perennial Headwater | F15: 325 | G15: 0.35 | H15: Primary | I15: 3 | J15: =IF(H15="Second",(F15*G15*H16*1), IF(H15="Third",(F15*G15*H16*1), (F15*G15*H16*I16))) -> 174.5937507 | K15: =J17-J15 -> 199.535715 | L15: =IF(F15>F17, "Length Loss", IF(F15<F17, "Length Gain", IF(F15=F17, "No Change"))) -> No Change | M15: 0.1 | N15: Agricultural Easement | O15: Easement | P15: =IF(D17="Restoration/Enhancement",SUM(K15,L18,M17,N17),IF(D17="Preservation",((0.1*J17)+M17+N17),"NA")) -> 229.2392865 | Q15: 36.90888, -76.99771
H16: =IF(H15="Primary",1,IF(H15="Second",0.2,IF(H15="Third",0.1,IF(H15="Select",0)))) -> 1 | I16: =IF(AND(B15="Piedmont",I15>0.0001,I15<0.1),0.41, IF(AND(B15="Piedmont",I15>10), 2.45, IF(B15="Piedmont",I15^0.39, IF(AND(B15="Coastal Plain",I15>0.0001,I15<0.1),0.42,IF(AND(B15="Coastal Plain",I15>10),2.4, IF(B15="Coastal Plain",I15^0.38, IF(AND(B15="Mountain",I15>0.0001,I15<0.1),0.36,IF(AND(B15="Mountain",I15>10),2.75,IF(B15="Mountain",I15^0.44))))))))) -> 1.534890116 | L16: =F17-F15 -> 0 | N16: =IF(AND(N15="No Existing Protection",O15="Deed Restriction"), 0.02, IF(AND(N15="No Existing Protection",O15="Easement"), 0.05, IF(AND(N15="No Existing Protection", O15="Accredited Easement"), 0.07, IF(AND(N15="No Existing Protection", O15="Fee Simple to Conservation Holder"), 0.09, IF(AND(N15="Agricultural Easement",O15="Deed Restriction"), 0.01, IF(AND(N15="Agricultural Easement",O15="Easement"), 0.04, IF(AND(N15="Agricultural Easement", O15="Accredited Easement"), 0.06, IF(AND(N15="Agricultural Easement", O15="Fee Simple to Conservation Holder"), 0.09, IF(AND(N15="Environmental Easement",O15="Deed Restriction"), 0, IF(AND(N15="Environmental Easement", O15="Easement"), 0.02, IF(AND(N15="Environmental Easement", O15="Accredited Easement"), 0.03, IF(AND(N15="Public Land", O15="Public Land MOA"), 0.02, 0)))))))))))) -> 0.04
B17: =B15 -> Piedmont | C17: Proposed | D17: Restoration/Enhancement | E17: Perennial Headwater | F17: 325 | G17: 0.75 | H17: =H15 -> Primary | I17: =I15 -> 3 | J17: =IF(H17="Second",(F17*G17*H18*1), IF(H17="Third",(F17*G17*H18*1), (F17*G17*H18*I18))) -> 374.1294657 | L17: 0.5 | M17: =IF(D17="Preservation",((J17*0.1)*M15),(K15+L18)*M15) -> 19.9535715 | N17: =IF(H15="Second",(J17*N16),IF(H15="Third",(J17*N16),(J17/I18*N16))) -> 9.75
H18: =IF(H17="Primary",1,IF(H17="Second",0.2,IF(H17="Third",0.1,IF(H17="Select",0)))) -> 1 | I18: =IF(AND(B17="Piedmont",I17>0.0001,I17<0.1),0.41, IF(AND(B17="Piedmont",I17>10), 2.45, IF(B17="Piedmont",I17^0.39, IF(AND(B17="Coastal Plain",I17>0.0001,I17<0.1),0.42,IF(AND(B17="Coastal Plain",I17>10),2.4, IF(B17="Coastal Plain",I17^0.38, IF(AND(B17="Mountain",I17>0.0001,I17<0.1),0.36,IF(AND(B17="Mountain",I17>10),2.75,IF(B17="Mountain",I17^0.44))))))))) -> 1.534890116 | L18: =IF(AND(H15="Primary",L15="Length Loss"), L16*G15*I16*L17*-1,IF(AND(H15="Primary", L15="Length Gain"),L16*G17*I18*L17*-1,0)) -> 0
A19: Reach 1 Second channel | B19: Piedmont | C19: Existing | D19: Preliminary Resource Evaluation | E19: Perennial Headwater | F19: 1000 | G19: 0.33 | H19: Second | I19: 1 | J19: =IF(H19="Second",(F19*G19*H20*1), IF(H19="Third",(F19*G19*H20*1), (F19*G19*H20*I20))) -> 66 | K19: =J21-J19 -> 84 | L19: =IF(F19>F21, "Length Loss", IF(F19<F21, "Length Gain", IF(F19=F21, "No Change"))) -> No Change | M19: 0.1 | N19: Agricultural Easement | O19: Easement | P19: =IF(D21="Restoration/Enhancement",SUM(K19,L22,M21,N21),IF(D21="Preservation",((0.1*J21)+M21+N21),"NA")) -> 98.4 | Q19: 36.90897, -76.99859. Secondary channel of reach 1.
H20: =IF(H19="Primary",1,IF(H19="Second",0.2,IF(H19="Third",0.1,IF(H19="Select",0)))) -> 0.2 | I20: =IF(AND(B19="Piedmont",I19>0.0001,I19<0.1),0.41, IF(AND(B19="Piedmont",I19>10), 2.45, IF(B19="Piedmont",I19^0.39, IF(AND(B19="Coastal Plain",I19>0.0001,I19<0.1),0.42,IF(AND(B19="Coastal Plain",I19>10),2.4, IF(B19="Coastal Plain",I19^0.38, IF(AND(B19="Mountain",I19>0.0001,I19<0.1),0.36,IF(AND(B19="Mountain",I19>10),2.75,IF(B19="Mountain",I19^0.44))))))))) -> 1 | L20: =F21-F19 -> 0 | N20: =IF(AND(N19="No Existing Protection",O19="Deed Restriction"), 0.02, IF(AND(N19="No Existing Protection",O19="Easement"), 0.05, IF(AND(N19="No Existing Protection", O19="Accredited Easement"), 0.07, IF(AND(N19="No Existing Protection", O19="Fee Simple to Conservation Holder"), 0.09, IF(AND(N19="Agricultural Easement",O19="Deed Restriction"), 0.01, IF(AND(N19="Agricultural Easement",O19="Easement"), 0.04, IF(AND(N19="Agricultural Easement", O19="Accredited Easement"), 0.06, IF(AND(N19="Agricultural Easement", O19="Fee Simple to Conservation Holder"), 0.09, IF(AND(N19="Environmental Easement",O19="Deed Restriction"), 0, IF(AND(N19="Environmental Easement", O19="Easement"), 0.02, IF(AND(N19="Environmental Easement", O19="Accredited Easement"), 0.03, IF(AND(N19="Public Land", O19="Public Land MOA"), 0.02, 0)))))))))))) -> 0.04
B21: =B19 -> Piedmont | C21: Proposed | D21: Restoration/Enhancement | E21: Perennial Headwater | F21: 1000 | G21: 0.75 | H21: =H19 -> Second | I21: =I19 -> 1 | J21: =IF(H21="Second",(F21*G21*H22*1), IF(H21="Third",(F21*G21*H22*1), (F21*G21*H22*I22))) -> 150 | L21: 0.5 | M21: =IF(D21="Preservation",((J21*0.1)*M19),(K19+L22)*M19) -> 8.4 | N21: =IF(H19="Second",(J21*N20),IF(H19="Third",(J21*N20),(J21/I22*N20))) -> 6
H22: =IF(H21="Primary",1,IF(H21="Second",0.2,IF(H21="Third",0.1,IF(H21="Select",0)))) -> 0.2 | I22: =IF(AND(B21="Piedmont",I21>0.0001,I21<0.1),0.41, IF(AND(B21="Piedmont",I21>10), 2.45, IF(B21="Piedmont",I21^0.39, IF(AND(B21="Coastal Plain",I21>0.0001,I21<0.1),0.42,IF(AND(B21="Coastal Plain",I21>10),2.4, IF(B21="Coastal Plain",I21^0.38, IF(AND(B21="Mountain",I21>0.0001,I21<0.1),0.36,IF(AND(B21="Mountain",I21>10),2.75,IF(B21="Mountain",I21^0.44))))))))) -> 1 | L22: =IF(AND(H19="Primary",L19="Length Loss"), L20*G19*I20*L21*-1,IF(AND(H19="Primary", L19="Length Gain"),L20*G21*I22*L21*-1,0)) -> 0
B23: Not Selected | C23: Existing | D23: Preliminary Resource Evaluation | E23: Select | H23: Select | J23: =IF(H23="Second",(F23*G23*H24*1), IF(H23="Third",(F23*G23*H24*1), (F23*G23*H24*I24))) -> 0 | K23: =J25-J23 -> 0 | L23: =IF(F23>F25, "Length Loss", IF(F23<F25, "Length Gain", IF(F23=F25, "No Change"))) -> No Change | M23: 0 | N23: Existing: Select From Dropdown | O23: Proposed: Select From Dropdown | P23: =IF(D25="Restoration/Enhancement",SUM(K23,L26,M25,N25),IF(D25="Preservation",((0.1*J25)+M25+N25),"NA")) -> NA
H24: =IF(H23="Primary",1,IF(H23="Second",0.2,IF(H23="Third",0.1,IF(H23="Select",0)))) -> 0 | I24: =IF(AND(B23="Piedmont",I23>0.0001,I23<0.1),0.41, IF(AND(B23="Piedmont",I23>10), 2.45, IF(B23="Piedmont",I23^0.39, IF(AND(B23="Coastal Plain",I23>0.0001,I23<0.1),0.42,IF(AND(B23="Coastal Plain",I23>10),2.4, IF(B23="Coastal Plain",I23^0.38, IF(AND(B23="Mountain",I23>0.0001,I23<0.1),0.36,IF(AND(B23="Mountain",I23>10),2.75,IF(B23="Mountain",I23^0.44))))))))) -> FALSE | L24: =F25-F23 -> 0 | N24: =IF(AND(N23="No Existing Protection",O23="Deed Restriction"), 0.02, IF(AND(N23="No Existing Protection",O23="Easement"), 0.05, IF(AND(N23="No Existing Protection", O23="Accredited Easement"), 0.07, IF(AND(N23="No Existing Protection", O23="Fee Simple to Conservation Holder"), 0.09, IF(AND(N23="Agricultural Easement",O23="Deed Restriction"), 0.01, IF(AND(N23="Agricultural Easement",O23="Easement"), 0.04, IF(AND(N23="Agricultural Easement", O23="Accredited Easement"), 0.06, IF(AND(N23="Agricultural Easement", O23="Fee Simple to Conservation Holder"), 0.09, IF(AND(N23="Environmental Easement",O23="Deed Restriction"), 0, IF(AND(N23="Environmental Easement", O23="Easement"), 0.02, IF(AND(N23="Environmental Easement", O23="Accredited Easement"), 0.03, IF(AND(N23="Public Land", O23="Public Land MOA"), 0.02, 0)))))))))))) -> 0
B25: =B23 -> Not Selected | C25: Proposed | D25: Select from Dropdown | E25: Select | H25: =H23 -> Select | I25: =I23 -> 0 | J25: =IF(H25="Second",(F25*G25*H26*1), IF(H25="Third",(F25*G25*H26*1), (F25*G25*H26*I26))) -> 0 | L25: 0.5 | M25: =IF(D25="Preservation",((J25*0.1)*M23),(K23+L26)*M23) -> 0 | N25: =IF(H23="Second",(J25*N24),IF(H23="Third",(J25*N24),(J25/I26*N24))) -> 
H26: =IF(H25="Primary",1,IF(H25="Second",0.2,IF(H25="Third",0.1,IF(H25="Select",0)))) -> 0 | I26: =IF(AND(B25="Piedmont",I25>0.0001,I25<0.1),0.41, IF(AND(B25="Piedmont",I25>10), 2.45, IF(B25="Piedmont",I25^0.39, IF(AND(B25="Coastal Plain",I25>0.0001,I25<0.1),0.42,IF(AND(B25="Coastal Plain",I25>10),2.4, IF(B25="Coastal Plain",I25^0.38, IF(AND(B25="Mountain",I25>0.0001,I25<0.1),0.36,IF(AND(B25="Mountain",I25>10),2.75,IF(B25="Mountain",I25^0.44))))))))) -> FALSE | L26: =IF(AND(H23="Primary",L23="Length Loss"), L24*G23*I24*L25*-1,IF(AND(H23="Primary", L23="Length Gain"),L24*G25*I26*L25*-1,0)) -> 0
B27: Not Selected | C27: Existing | D27: Preliminary Resource Evaluation | E27: Select | H27: Select | J27: =IF(H27="Second",(F27*G27*H28*1), IF(H27="Third",(F27*G27*H28*1), (F27*G27*H28*I28))) -> 0 | K27: =J29-J27 -> 0 | L27: =IF(F27>F29, "Length Loss", IF(F27<F29, "Length Gain", IF(F27=F29, "No Change"))) -> No Change | M27: 0 | N27: Existing: Select From Dropdown | O27: Proposed: Select From Dropdown | P27: =IF(D29="Restoration/Enhancement",SUM(K27,L30,M29,N29),IF(D29="Preservation",((0.1*J29)+M29+N29),"NA")) -> NA
H28: =IF(H27="Primary",1,IF(H27="Second",0.2,IF(H27="Third",0.1,IF(H27="Select",0)))) -> 0 | I28: =IF(AND(B27="Piedmont",I27>0.0001,I27<0.1),0.41, IF(AND(B27="Piedmont",I27>10), 2.45, IF(B27="Piedmont",I27^0.39, IF(AND(B27="Coastal Plain",I27>0.0001,I27<0.1),0.42,IF(AND(B27="Coastal Plain",I27>10),2.4, IF(B27="Coastal Plain",I27^0.38, IF(AND(B27="Mountain",I27>0.0001,I27<0.1),0.36,IF(AND(B27="Mountain",I27>10),2.75,IF(B27="Mountain",I27^0.44))))))))) -> FALSE | L28: =F29-F27 -> 0 | N28: =IF(AND(N27="No Existing Protection",O27="Deed Restriction"), 0.02, IF(AND(N27="No Existing Protection",O27="Easement"), 0.05, IF(AND(N27="No Existing Protection", O27="Accredited Easement"), 0.07, IF(AND(N27="No Existing Protection", O27="Fee Simple to Conservation Holder"), 0.09, IF(AND(N27="Agricultural Easement",O27="Deed Restriction"), 0.01, IF(AND(N27="Agricultural Easement",O27="Easement"), 0.04, IF(AND(N27="Agricultural Easement", O27="Accredited Easement"), 0.06, IF(AND(N27="Agricultural Easement", O27="Fee Simple to Conservation Holder"), 0.09, IF(AND(N27="Environmental Easement",O27="Deed Restriction"), 0, IF(AND(N27="Environmental Easement", O27="Easement"), 0.02, IF(AND(N27="Environmental Easement", O27="Accredited Easement"), 0.03, IF(AND(N27="Public Land", O27="Public Land MOA"), 0.02, 0)))))))))))) -> 0
B29: =B27 -> Not Selected | C29: Proposed | D29: Select from Dropdown | E29: Select | H29: =H27 -> Select | I29: 0 | J29: =IF(H29="Second",(F29*G29*H30*1), IF(H29="Third",(F29*G29*H30*1), (F29*G29*H30*I30))) -> 0 | L29: 0.5 | M29: =IF(D29="Preservation",((J29*0.1)*M27),(K27+L30)*M27) -> 0 | N29: =IF(H27="Second",(J29*N28),IF(H27="Third",(J29*N28),(J29/I30*N28))) -> 
H30: =IF(H29="Primary",1,IF(H29="Second",0.2,IF(H29="Third",0.1,IF(H29="Select",0)))) -> 0 | I30: =IF(AND(B29="Piedmont",I29>0.0001,I29<0.1),0.41, IF(AND(B29="Piedmont",I29>10), 2.45, IF(B29="Piedmont",I29^0.39, IF(AND(B29="Coastal Plain",I29>0.0001,I29<0.1),0.42,IF(AND(B29="Coastal Plain",I29>10),2.4, IF(B29="Coastal Plain",I29^0.38, IF(AND(B29="Mountain",I29>0.0001,I29<0.1),0.36,IF(AND(B29="Mountain",I29>10),2.75,IF(B29="Mountain",I29^0.44))))))))) -> FALSE | L30: =IF(AND(H27="Primary",L27="Length Loss"), L28*G27*I28*L29*-1,IF(AND(H27="Primary", L27="Length Gain"),L28*G29*I30*L29*-1,0)) -> 0
B31: Not Selected | C31: Existing | D31: Preliminary Resource Evaluation | E31: Select | H31: Select | J31: =IF(H31="Second",(F31*G31*H32*1), IF(H31="Third",(F31*G31*H32*1), (F31*G31*H32*I32))) -> 0 | K31: =J33-J31 -> 0 | L31: =IF(F31>F33, "Length Loss", IF(F31<F33, "Length Gain", IF(F31=F33, "No Change"))) -> No Change | M31: 0 | N31: Existing: Select From Dropdown | O31: Proposed: Select From Dropdown | P31: =IF(D33="Restoration/Enhancement",SUM(K31,L34,M33,N33),IF(D33="Preservation",((0.1*J33)+M33+N33),"NA")) -> NA
H32: =IF(H31="Primary",1,IF(H31="Second",0.2,IF(H31="Third",0.1,IF(H31="Select",0)))) -> 0 | I32: =IF(AND(B31="Piedmont",I31>0.0001,I31<0.1),0.41, IF(AND(B31="Piedmont",I31>10), 2.45, IF(B31="Piedmont",I31^0.39, IF(AND(B31="Coastal Plain",I31>0.0001,I31<0.1),0.42,IF(AND(B31="Coastal Plain",I31>10),2.4, IF(B31="Coastal Plain",I31^0.38, IF(AND(B31="Mountain",I31>0.0001,I31<0.1),0.36,IF(AND(B31="Mountain",I31>10),2.75,IF(B31="Mountain",I31^0.44))))))))) -> FALSE | L32: =F33-F31 -> 0 | N32: =IF(AND(N31="No Existing Protection",O31="Deed Restriction"), 0.02, IF(AND(N31="No Existing Protection",O31="Easement"), 0.05, IF(AND(N31="No Existing Protection", O31="Accredited Easement"), 0.07, IF(AND(N31="No Existing Protection", O31="Fee Simple to Conservation Holder"), 0.09, IF(AND(N31="Agricultural Easement",O31="Deed Restriction"), 0.01, IF(AND(N31="Agricultural Easement",O31="Easement"), 0.04, IF(AND(N31="Agricultural Easement", O31="Accredited Easement"), 0.06, IF(AND(N31="Agricultural Easement", O31="Fee Simple to Conservation Holder"), 0.09, IF(AND(N31="Environmental Easement",O31="Deed Restriction"), 0, IF(AND(N31="Environmental Easement", O31="Easement"), 0.02, IF(AND(N31="Environmental Easement", O31="Accredited Easement"), 0.03, IF(AND(N31="Public Land", O31="Public Land MOA"), 0.02, 0)))))))))))) -> 0
B33: =B31 -> Not Selected | C33: Proposed | D33: Select from Dropdown | E33: Select | H33: =H31 -> Select | I33: 0 | J33: =IF(H33="Second",(F33*G33*H34*1), IF(H33="Third",(F33*G33*H34*1), (F33*G33*H34*I34))) -> 0 | L33: 0.5 | M33: =IF(D33="Preservation",((J33*0.1)*M31),(K31+L34)*M31) -> 0 | N33: =IF(H31="Second",(J33*N32),IF(H31="Third",(J33*N32),(J33/I34*N32))) -> 
H34: =IF(H33="Primary",1,IF(H33="Second",0.2,IF(H33="Third",0.1,IF(H33="Select",0)))) -> 0 | I34: =IF(AND(B33="Piedmont",I33>0.0001,I33<0.1),0.41, IF(AND(B33="Piedmont",I33>10), 2.45, IF(B33="Piedmont",I33^0.39, IF(AND(B33="Coastal Plain",I33>0.0001,I33<0.1),0.42,IF(AND(B33="Coastal Plain",I33>10),2.4, IF(B33="Coastal Plain",I33^0.38, IF(AND(B33="Mountain",I33>0.0001,I33<0.1),0.36,IF(AND(B33="Mountain",I33>10),2.75,IF(B33="Mountain",I33^0.44))))))))) -> FALSE | L34: =IF(AND(H31="Primary",L31="Length Loss"), L32*G31*I32*L33*-1,IF(AND(H31="Primary", L31="Length Gain"),L32*G33*I34*L33*-1,0)) -> 0
B35: Not Selected | C35: Existing | D35: Preliminary Resource Evaluation | E35: Select | H35: Select | J35: =IF(H35="Second",(F35*G35*H36*1), IF(H35="Third",(F35*G35*H36*1), (F35*G35*H36*I36))) -> 0 | K35: =J37-J35 -> 0 | L35: =IF(F35>F37, "Length Loss", IF(F35<F37, "Length Gain", IF(F35=F37, "No Change"))) -> No Change | M35: 0 | N35: Existing: Select From Dropdown | O35: Proposed: Select From Dropdown | P35: =IF(D37="Restoration/Enhancement",SUM(K35,L38,M37,N37),IF(D37="Preservation",((0.1*J37)+M37+N37),"NA")) -> NA
H36: =IF(H35="Primary",1,IF(H35="Second",0.2,IF(H35="Third",0.1,IF(H35="Select",0)))) -> 0 | I36: =IF(AND(B35="Piedmont",I35>0.0001,I35<0.1),0.41, IF(AND(B35="Piedmont",I35>10), 2.45, IF(B35="Piedmont",I35^0.39, IF(AND(B35="Coastal Plain",I35>0.0001,I35<0.1),0.42,IF(AND(B35="Coastal Plain",I35>10),2.4, IF(B35="Coastal Plain",I35^0.38, IF(AND(B35="Mountain",I35>0.0001,I35<0.1),0.36,IF(AND(B35="Mountain",I35>10),2.75,IF(B35="Mountain",I35^0.44))))))))) -> FALSE | L36: =F37-F35 -> 0 | N36: =IF(AND(N35="No Existing Protection",O35="Deed Restriction"), 0.02, IF(AND(N35="No Existing Protection",O35="Easement"), 0.05, IF(AND(N35="No Existing Protection", O35="Accredited Easement"), 0.07, IF(AND(N35="No Existing Protection", O35="Fee Simple to Conservation Holder"), 0.09, IF(AND(N35="Agricultural Easement",O35="Deed Restriction"), 0.01, IF(AND(N35="Agricultural Easement",O35="Easement"), 0.04, IF(AND(N35="Agricultural Easement", O35="Accredited Easement"), 0.06, IF(AND(N35="Agricultural Easement", O35="Fee Simple to Conservation Holder"), 0.09, IF(AND(N35="Environmental Easement",O35="Deed Restriction"), 0, IF(AND(N35="Environmental Easement", O35="Easement"), 0.02, IF(AND(N35="Environmental Easement", O35="Accredited Easement"), 0.03, IF(AND(N35="Public Land", O35="Public Land MOA"), 0.02, 0)))))))))))) -> 0
B37: =B35 -> Not Selected | C37: Proposed | D37: Select from Dropdown | E37: Select | H37: =H35 -> Select | I37: 0 | J37: =IF(H37="Second",(F37*G37*H38*1), IF(H37="Third",(F37*G37*H38*1), (F37*G37*H38*I38))) -> 0 | L37: 0.5 | M37: =IF(D37="Preservation",((J37*0.1)*M35),(K35+L38)*M35) -> 0 | N37: =IF(H35="Second",(J37*N36),IF(H35="Third",(J37*N36),(J37/I38*N36))) -> 
H38: =IF(H37="Primary",1,IF(H37="Second",0.2,IF(H37="Third",0.1,IF(H37="Select",0)))) -> 0 | I38: =IF(AND(B37="Piedmont",I37>0.0001,I37<0.1),0.41, IF(AND(B37="Piedmont",I37>10), 2.45, IF(B37="Piedmont",I37^0.39, IF(AND(B37="Coastal Plain",I37>0.0001,I37<0.1),0.42,IF(AND(B37="Coastal Plain",I37>10),2.4, IF(B37="Coastal Plain",I37^0.38, IF(AND(B37="Mountain",I37>0.0001,I37<0.1),0.36,IF(AND(B37="Mountain",I37>10),2.75,IF(B37="Mountain",I37^0.44))))))))) -> FALSE | L38: =IF(AND(H35="Primary",L35="Length Loss"), L36*G35*I36*L37*-1,IF(AND(H35="Primary", L35="Length Gain"),L36*G37*I38*L37*-1,0)) -> 0
B39: Not Selected | C39: Existing | D39: Preliminary Resource Evaluation | E39: Select | H39: Select | J39: =IF(H39="Second",(F39*G39*H40*1), IF(H39="Third",(F39*G39*H40*1), (F39*G39*H40*I40))) -> 0 | K39: =J41-J39 -> 0 | L39: =IF(F39>F41, "Length Loss", IF(F39<F41, "Length Gain", IF(F39=F41, "No Change"))) -> No Change | M39: 0 | N39: Existing: Select From Dropdown | O39: Proposed: Select From Dropdown | P39: =IF(D41="Restoration/Enhancement",SUM(K39,L42,M41,N41),IF(D41="Preservation",((0.1*J41)+M41+N41),"NA")) -> NA
H40: =IF(H39="Primary",1,IF(H39="Second",0.2,IF(H39="Third",0.1,IF(H39="Select",0)))) -> 0 | I40: =IF(AND(B39="Piedmont",I39>0.0001,I39<0.1),0.41, IF(AND(B39="Piedmont",I39>10), 2.45, IF(B39="Piedmont",I39^0.39, IF(AND(B39="Coastal Plain",I39>0.0001,I39<0.1),0.42,IF(AND(B39="Coastal Plain",I39>10),2.4, IF(B39="Coastal Plain",I39^0.38, IF(AND(B39="Mountain",I39>0.0001,I39<0.1),0.36,IF(AND(B39="Mountain",I39>10),2.75,IF(B39="Mountain",I39^0.44))))))))) -> FALSE | L40: =F41-F39 -> 0 | N40: =IF(AND(N39="No Existing Protection",O39="Deed Restriction"), 0.02, IF(AND(N39="No Existing Protection",O39="Easement"), 0.05, IF(AND(N39="No Existing Protection", O39="Accredited Easement"), 0.07, IF(AND(N39="No Existing Protection", O39="Fee Simple to Conservation Holder"), 0.09, IF(AND(N39="Agricultural Easement",O39="Deed Restriction"), 0.01, IF(AND(N39="Agricultural Easement",O39="Easement"), 0.04, IF(AND(N39="Agricultural Easement", O39="Accredited Easement"), 0.06, IF(AND(N39="Agricultural Easement", O39="Fee Simple to Conservation Holder"), 0.09, IF(AND(N39="Environmental Easement",O39="Deed Restriction"), 0, IF(AND(N39="Environmental Easement", O39="Easement"), 0.02, IF(AND(N39="Environmental Easement", O39="Accredited Easement"), 0.03, IF(AND(N39="Public Land", O39="Public Land MOA"), 0.02, 0)))))))))))) -> 0
B41: =B39 -> Not Selected | C41: Proposed | D41: Select from Dropdown | E41: Select | H41: =H39 -> Select | I41: 0 | J41: =IF(H41="Second",(F41*G41*H42*1), IF(H41="Third",(F41*G41*H42*1), (F41*G41*H42*I42))) -> 0 | L41: 0.5 | M41: =IF(D41="Preservation",((J41*0.1)*M39),(K39+L42)*M39) -> 0 | N41: =IF(H39="Second",(J41*N40),IF(H39="Third",(J41*N40),(J41/I42*N40))) -> 
H42: =IF(H41="Primary",1,IF(H41="Second",0.2,IF(H41="Third",0.1,IF(H41="Select",0)))) -> 0 | I42: =IF(AND(B41="Piedmont",I41>0.0001,I41<0.1),0.41, IF(AND(B41="Piedmont",I41>10), 2.45, IF(B41="Piedmont",I41^0.39, IF(AND(B41="Coastal Plain",I41>0.0001,I41<0.1),0.42,IF(AND(B41="Coastal Plain",I41>10),2.4, IF(B41="Coastal Plain",I41^0.38, IF(AND(B41="Mountain",I41>0.0001,I41<0.1),0.36,IF(AND(B41="Mountain",I41>10),2.75,IF(B41="Mountain",I41^0.44))))))))) -> FALSE | L42: =IF(AND(H39="Primary",L39="Length Loss"), L40*G39*I40*L41*-1,IF(AND(H39="Primary", L39="Length Gain"),L40*G41*I42*L41*-1,0)) -> 0
B43: Not Selected | C43: Existing | D43: Preliminary Resource Evaluation | E43: Select | H43: Select | J43: =IF(H43="Second",(F43*G43*H44*1), IF(H43="Third",(F43*G43*H44*1), (F43*G43*H44*I44))) -> 0 | K43: =J45-J43 -> 0 | L43: =IF(F43>F45, "Length Loss", IF(F43<F45, "Length Gain", IF(F43=F45, "No Change"))) -> No Change | M43: 0 | N43: Existing: Select From Dropdown | O43: Proposed: Select From Dropdown | P43: =IF(D45="Restoration/Enhancement",SUM(K43,L46,M45,N45),IF(D45="Preservation",((0.1*J45)+M45+N45),"NA")) -> NA
H44: =IF(H43="Primary",1,IF(H43="Second",0.2,IF(H43="Third",0.1,IF(H43="Select",0)))) -> 0 | I44: =IF(AND(B43="Piedmont",I43>0.0001,I43<0.1),0.41, IF(AND(B43="Piedmont",I43>10), 2.45, IF(B43="Piedmont",I43^0.39, IF(AND(B43="Coastal Plain",I43>0.0001,I43<0.1),0.42,IF(AND(B43="Coastal Plain",I43>10),2.4, IF(B43="Coastal Plain",I43^0.38, IF(AND(B43="Mountain",I43>0.0001,I43<0.1),0.36,IF(AND(B43="Mountain",I43>10),2.75,IF(B43="Mountain",I43^0.44))))))))) -> FALSE | L44: =F45-F43 -> 0 | N44: =IF(AND(N43="No Existing Protection",O43="Deed Restriction"), 0.02, IF(AND(N43="No Existing Protection",O43="Easement"), 0.05, IF(AND(N43="No Existing Protection", O43="Accredited Easement"), 0.07, IF(AND(N43="No Existing Protection", O43="Fee Simple to Conservation Holder"), 0.09, IF(AND(N43="Agricultural Easement",O43="Deed Restriction"), 0.01, IF(AND(N43="Agricultural Easement",O43="Easement"), 0.04, IF(AND(N43="Agricultural Easement", O43="Accredited Easement"), 0.06, IF(AND(N43="Agricultural Easement", O43="Fee Simple to Conservation Holder"), 0.09, IF(AND(N43="Environmental Easement",O43="Deed Restriction"), 0, IF(AND(N43="Environmental Easement", O43="Easement"), 0.02, IF(AND(N43="Environmental Easement", O43="Accredited Easement"), 0.03, IF(AND(N43="Public Land", O43="Public Land MOA"), 0.02, 0)))))))))))) -> 0
B45: =B43 -> Not Selected | C45: Proposed | D45: Select from Dropdown | E45: Select | H45: =H43 -> Select | I45: 0 | J45: =IF(H45="Second",(F45*G45*H46*1), IF(H45="Third",(F45*G45*H46*1), (F45*G45*H46*I46))) -> 0 | L45: 0.5 | M45: =IF(D45="Preservation",((J45*0.1)*M43),(K43+L46)*M43) -> 0 | N45: =IF(H43="Second",(J45*N44),IF(H43="Third",(J45*N44),(J45/I46*N44))) -> 
H46: =IF(H45="Primary",1,IF(H45="Second",0.2,IF(H45="Third",0.1,IF(H45="Select",0)))) -> 0 | I46: =IF(AND(B45="Piedmont",I45>0.0001,I45<0.1),0.41, IF(AND(B45="Piedmont",I45>10), 2.45, IF(B45="Piedmont",I45^0.39, IF(AND(B45="Coastal Plain",I45>0.0001,I45<0.1),0.42,IF(AND(B45="Coastal Plain",I45>10),2.4, IF(B45="Coastal Plain",I45^0.38, IF(AND(B45="Mountain",I45>0.0001,I45<0.1),0.36,IF(AND(B45="Mountain",I45>10),2.75,IF(B45="Mountain",I45^0.44))))))))) -> FALSE | L46: =IF(AND(H43="Primary",L43="Length Loss"), L44*G43*I44*L45*-1,IF(AND(H43="Primary", L43="Length Gain"),L44*G45*I46*L45*-1,0)) -> 0
B47: Not Selected | C47: Existing | D47: Preliminary Resource Evaluation | E47: Select | H47: Select | J47: =IF(H47="Second",(F47*G47*H48*1), IF(H47="Third",(F47*G47*H48*1), (F47*G47*H48*I48))) -> 0 | K47: =J49-J47 -> 0 | L47: =IF(F47>F49, "Length Loss", IF(F47<F49, "Length Gain", IF(F47=F49, "No Change"))) -> No Change | M47: 0 | N47: Existing: Select From Dropdown | O47: Proposed: Select From Dropdown | P47: =IF(D49="Restoration/Enhancement",SUM(K47,L50,M49,N49),IF(D49="Preservation",((0.1*J49)+M49+N49),"NA")) -> NA
H48: =IF(H47="Primary",1,IF(H47="Second",0.2,IF(H47="Third",0.1,IF(H47="Select",0)))) -> 0 | I48: =IF(AND(B47="Piedmont",I47>0.0001,I47<0.1),0.41, IF(AND(B47="Piedmont",I47>10), 2.45, IF(B47="Piedmont",I47^0.39, IF(AND(B47="Coastal Plain",I47>0.0001,I47<0.1),0.42,IF(AND(B47="Coastal Plain",I47>10),2.4, IF(B47="Coastal Plain",I47^0.38, IF(AND(B47="Mountain",I47>0.0001,I47<0.1),0.36,IF(AND(B47="Mountain",I47>10),2.75,IF(B47="Mountain",I47^0.44))))))))) -> FALSE | L48: =F49-F47 -> 0 | N48: =IF(AND(N47="No Existing Protection",O47="Deed Restriction"), 0.02, IF(AND(N47="No Existing Protection",O47="Easement"), 0.05, IF(AND(N47="No Existing Protection", O47="Accredited Easement"), 0.07, IF(AND(N47="No Existing Protection", O47="Fee Simple to Conservation Holder"), 0.09, IF(AND(N47="Agricultural Easement",O47="Deed Restriction"), 0.01, IF(AND(N47="Agricultural Easement",O47="Easement"), 0.04, IF(AND(N47="Agricultural Easement", O47="Accredited Easement"), 0.06, IF(AND(N47="Agricultural Easement", O47="Fee Simple to Conservation Holder"), 0.09, IF(AND(N47="Environmental Easement",O47="Deed Restriction"), 0, IF(AND(N47="Environmental Easement", O47="Easement"), 0.02, IF(AND(N47="Environmental Easement", O47="Accredited Easement"), 0.03, IF(AND(N47="Public Land", O47="Public Land MOA"), 0.02, 0)))))))))))) -> 0
B49: =B47 -> Not Selected | C49: Proposed | D49: Select from Dropdown | E49: Select | H49: =H47 -> Select | I49: 0 | J49: =IF(H49="Second",(F49*G49*H50*1), IF(H49="Third",(F49*G49*H50*1), (F49*G49*H50*I50))) -> 0 | L49: 0.5 | M49: =IF(D49="Preservation",((J49*0.1)*M47),(K47+L50)*M47) -> 0 | N49: =IF(H47="Second",(J49*N48),IF(H47="Third",(J49*N48),(J49/I50*N48))) -> 
H50: =IF(H49="Primary",1,IF(H49="Second",0.2,IF(H49="Third",0.1,IF(H49="Select",0)))) -> 0 | I50: =IF(AND(B49="Piedmont",I49>0.0001,I49<0.1),0.41, IF(AND(B49="Piedmont",I49>10), 2.45, IF(B49="Piedmont",I49^0.39, IF(AND(B49="Coastal Plain",I49>0.0001,I49<0.1),0.42,IF(AND(B49="Coastal Plain",I49>10),2.4, IF(B49="Coastal Plain",I49^0.38, IF(AND(B49="Mountain",I49>0.0001,I49<0.1),0.36,IF(AND(B49="Mountain",I49>10),2.75,IF(B49="Mountain",I49^0.44))))))))) -> FALSE | L50: =IF(AND(H47="Primary",L47="Length Loss"), L48*G47*I48*L49*-1,IF(AND(H47="Primary", L47="Length Gain"),L48*G49*I50*L49*-1,0)) -> 0
B51: Not Selected | C51: Existing | D51: Preliminary Resource Evaluation | E51: Select | H51: Select | J51: =IF(H51="Second",(F51*G51*H52*1), IF(H51="Third",(F51*G51*H52*1), (F51*G51*H52*I52))) -> 0 | K51: =J53-J51 -> 0 | L51: =IF(F51>F53, "Length Loss", IF(F51<F53, "Length Gain", IF(F51=F53, "No Change"))) -> No Change | M51: 0 | N51: Existing: Select From Dropdown | O51: Proposed: Select From Dropdown | P51: =IF(D53="Restoration/Enhancement",SUM(K51,L54,M53,N53),IF(D53="Preservation",((0.1*J53)+M53+N53),"NA")) -> NA
H52: =IF(H51="Primary",1,IF(H51="Second",0.2,IF(H51="Third",0.1,IF(H51="Select",0)))) -> 0 | I52: =IF(AND(B51="Piedmont",I51>0.0001,I51<0.1),0.41, IF(AND(B51="Piedmont",I51>10), 2.45, IF(B51="Piedmont",I51^0.39, IF(AND(B51="Coastal Plain",I51>0.0001,I51<0.1),0.42,IF(AND(B51="Coastal Plain",I51>10),2.4, IF(B51="Coastal Plain",I51^0.38, IF(AND(B51="Mountain",I51>0.0001,I51<0.1),0.36,IF(AND(B51="Mountain",I51>10),2.75,IF(B51="Mountain",I51^0.44))))))))) -> FALSE | L52: =F53-F51 -> 0 | N52: =IF(AND(N51="No Existing Protection",O51="Deed Restriction"), 0.02, IF(AND(N51="No Existing Protection",O51="Easement"), 0.05, IF(AND(N51="No Existing Protection", O51="Accredited Easement"), 0.07, IF(AND(N51="No Existing Protection", O51="Fee Simple to Conservation Holder"), 0.09, IF(AND(N51="Agricultural Easement",O51="Deed Restriction"), 0.01, IF(AND(N51="Agricultural Easement",O51="Easement"), 0.04, IF(AND(N51="Agricultural Easement", O51="Accredited Easement"), 0.06, IF(AND(N51="Agricultural Easement", O51="Fee Simple to Conservation Holder"), 0.09, IF(AND(N51="Environmental Easement",O51="Deed Restriction"), 0, IF(AND(N51="Environmental Easement", O51="Easement"), 0.02, IF(AND(N51="Environmental Easement", O51="Accredited Easement"), 0.03, IF(AND(N51="Public Land", O51="Public Land MOA"), 0.02, 0)))))))))))) -> 0
B53: =B51 -> Not Selected | C53: Proposed | D53: Select from Dropdown | E53: Select | H53: =H51 -> Select | I53: 0 | J53: =IF(H53="Second",(F53*G53*H54*1), IF(H53="Third",(F53*G53*H54*1), (F53*G53*H54*I54))) -> 0 | L53: 0.5 | M53: =IF(D53="Preservation",((J53*0.1)*M51),(K51+L54)*M51) -> 0 | N53: =IF(H51="Second",(J53*N52),IF(H51="Third",(J53*N52),(J53/I54*N52))) -> 
H54: =IF(H53="Primary",1,IF(H53="Second",0.2,IF(H53="Third",0.1,IF(H53="Select",0)))) -> 0 | I54: =IF(AND(B53="Piedmont",I53>0.0001,I53<0.1),0.41, IF(AND(B53="Piedmont",I53>10), 2.45, IF(B53="Piedmont",I53^0.39, IF(AND(B53="Coastal Plain",I53>0.0001,I53<0.1),0.42,IF(AND(B53="Coastal Plain",I53>10),2.4, IF(B53="Coastal Plain",I53^0.38, IF(AND(B53="Mountain",I53>0.0001,I53<0.1),0.36,IF(AND(B53="Mountain",I53>10),2.75,IF(B53="Mountain",I53^0.44))))))))) -> FALSE | L54: =IF(AND(H51="Primary",L51="Length Loss"), L52*G51*I52*L53*-1,IF(AND(H51="Primary", L51="Length Gain"),L52*G53*I54*L53*-1,0)) -> 0
B55: Not Selected | C55: Existing | D55: Preliminary Resource Evaluation | E55: Select | H55: Select | J55: =IF(H55="Second",(F55*G55*H56*1), IF(H55="Third",(F55*G55*H56*1), (F55*G55*H56*I56))) -> 0 | K55: =J57-J55 -> 0 | L55: =IF(F55>F57, "Length Loss", IF(F55<F57, "Length Gain", IF(F55=F57, "No Change"))) -> No Change | M55: 0 | N55: Existing: Select From Dropdown | O55: Proposed: Select From Dropdown | P55: =IF(D57="Restoration/Enhancement",SUM(K55,L58,M57,N57),IF(D57="Preservation",((0.1*J57)+M57+N57),"NA")) -> NA
H56: =IF(H55="Primary",1,IF(H55="Second",0.2,IF(H55="Third",0.1,IF(H55="Select",0)))) -> 0 | I56: =IF(AND(B55="Piedmont",I55>0.0001,I55<0.1),0.41, IF(AND(B55="Piedmont",I55>10), 2.45, IF(B55="Piedmont",I55^0.39, IF(AND(B55="Coastal Plain",I55>0.0001,I55<0.1),0.42,IF(AND(B55="Coastal Plain",I55>10),2.4, IF(B55="Coastal Plain",I55^0.38, IF(AND(B55="Mountain",I55>0.0001,I55<0.1),0.36,IF(AND(B55="Mountain",I55>10),2.75,IF(B55="Mountain",I55^0.44))))))))) -> FALSE | L56: =F57-F55 -> 0 | N56: =IF(AND(N55="No Existing Protection",O55="Deed Restriction"), 0.02, IF(AND(N55="No Existing Protection",O55="Easement"), 0.05, IF(AND(N55="No Existing Protection", O55="Accredited Easement"), 0.07, IF(AND(N55="No Existing Protection", O55="Fee Simple to Conservation Holder"), 0.09, IF(AND(N55="Agricultural Easement",O55="Deed Restriction"), 0.01, IF(AND(N55="Agricultural Easement",O55="Easement"), 0.04, IF(AND(N55="Agricultural Easement", O55="Accredited Easement"), 0.06, IF(AND(N55="Agricultural Easement", O55="Fee Simple to Conservation Holder"), 0.09, IF(AND(N55="Environmental Easement",O55="Deed Restriction"), 0, IF(AND(N55="Environmental Easement", O55="Easement"), 0.02, IF(AND(N55="Environmental Easement", O55="Accredited Easement"), 0.03, IF(AND(N55="Public Land", O55="Public Land MOA"), 0.02, 0)))))))))))) -> 0
B57: =B55 -> Not Selected | C57: Proposed | D57: Select from Dropdown | E57: Select | H57: =H55 -> Select | I57: 0 | J57: =IF(H57="Second",(F57*G57*H58*1), IF(H57="Third",(F57*G57*H58*1), (F57*G57*H58*I58))) -> 0 | L57: 0.5 | M57: =IF(D57="Preservation",((J57*0.1)*M55),(K55+L58)*M55) -> 0 | N57: =IF(H55="Second",(J57*N56),IF(H55="Third",(J57*N56),(J57/I58*N56))) -> 
H58: =IF(H57="Primary",1,IF(H57="Second",0.2,IF(H57="Third",0.1,IF(H57="Select",0)))) -> 0 | I58: =IF(AND(B57="Piedmont",I57>0.0001,I57<0.1),0.41, IF(AND(B57="Piedmont",I57>10), 2.45, IF(B57="Piedmont",I57^0.39, IF(AND(B57="Coastal Plain",I57>0.0001,I57<0.1),0.42,IF(AND(B57="Coastal Plain",I57>10),2.4, IF(B57="Coastal Plain",I57^0.38, IF(AND(B57="Mountain",I57>0.0001,I57<0.1),0.36,IF(AND(B57="Mountain",I57>10),2.75,IF(B57="Mountain",I57^0.44))))))))) -> FALSE | L58: =IF(AND(H55="Primary",L55="Length Loss"), L56*G55*I56*L57*-1,IF(AND(H55="Primary", L55="Length Gain"),L56*G57*I58*L57*-1,0)) -> 0
B59: Not Selected | C59: Existing | D59: Preliminary Resource Evaluation | E59: Select | H59: Select | J59: =IF(H59="Second",(F59*G59*H60*1), IF(H59="Third",(F59*G59*H60*1), (F59*G59*H60*I60))) -> 0 | K59: =J61-J59 -> 0 | L59: =IF(F59>F61, "Length Loss", IF(F59<F61, "Length Gain", IF(F59=F61, "No Change"))) -> No Change | M59: 0 | N59: Existing: Select From Dropdown | O59: Proposed: Select From Dropdown | P59: =IF(D61="Restoration/Enhancement",SUM(K59,L62,M61,N61),IF(D61="Preservation",((0.1*J61)+M61+N61),"NA")) -> NA
H60: =IF(H59="Primary",1,IF(H59="Second",0.2,IF(H59="Third",0.1,IF(H59="Select",0)))) -> 0 | I60: =IF(AND(B59="Piedmont",I59>0.0001,I59<0.1),0.41, IF(AND(B59="Piedmont",I59>10), 2.45, IF(B59="Piedmont",I59^0.39, IF(AND(B59="Coastal Plain",I59>0.0001,I59<0.1),0.42,IF(AND(B59="Coastal Plain",I59>10),2.4, IF(B59="Coastal Plain",I59^0.38, IF(AND(B59="Mountain",I59>0.0001,I59<0.1),0.36,IF(AND(B59="Mountain",I59>10),2.75,IF(B59="Mountain",I59^0.44))))))))) -> FALSE | L60: =F61-F59 -> 0 | N60: =IF(AND(N59="No Existing Protection",O59="Deed Restriction"), 0.02, IF(AND(N59="No Existing Protection",O59="Easement"), 0.05, IF(AND(N59="No Existing Protection", O59="Accredited Easement"), 0.07, IF(AND(N59="No Existing Protection", O59="Fee Simple to Conservation Holder"), 0.09, IF(AND(N59="Agricultural Easement",O59="Deed Restriction"), 0.01, IF(AND(N59="Agricultural Easement",O59="Easement"), 0.04, IF(AND(N59="Agricultural Easement", O59="Accredited Easement"), 0.06, IF(AND(N59="Agricultural Easement", O59="Fee Simple to Conservation Holder"), 0.09, IF(AND(N59="Environmental Easement",O59="Deed Restriction"), 0, IF(AND(N59="Environmental Easement", O59="Easement"), 0.02, IF(AND(N59="Environmental Easement", O59="Accredited Easement"), 0.03, IF(AND(N59="Public Land", O59="Public Land MOA"), 0.02, 0)))))))))))) -> 0
B61: =B59 -> Not Selected | C61: Proposed | D61: Select from Dropdown | E61: Select | H61: =H59 -> Select | I61: 0 | J61: =IF(H61="Second",(F61*G61*H62*1), IF(H61="Third",(F61*G61*H62*1), (F61*G61*H62*I62))) -> 0 | L61: 0.5 | M61: =IF(D61="Preservation",((J61*0.1)*M59),(K59+L62)*M59) -> 0 | N61: =IF(H59="Second",(J61*N60),IF(H59="Third",(J61*N60),(J61/I62*N60))) -> 
H62: =IF(H61="Primary",1,IF(H61="Second",0.2,IF(H61="Third",0.1,IF(H61="Select",0)))) -> 0 | I62: =IF(AND(B61="Piedmont",I61>0.0001,I61<0.1),0.41, IF(AND(B61="Piedmont",I61>10), 2.45, IF(B61="Piedmont",I61^0.39, IF(AND(B61="Coastal Plain",I61>0.0001,I61<0.1),0.42,IF(AND(B61="Coastal Plain",I61>10),2.4, IF(B61="Coastal Plain",I61^0.38, IF(AND(B61="Mountain",I61>0.0001,I61<0.1),0.36,IF(AND(B61="Mountain",I61>10),2.75,IF(B61="Mountain",I61^0.44))))))))) -> FALSE | L62: =IF(AND(H59="Primary",L59="Length Loss"), L60*G59*I60*L61*-1,IF(AND(H59="Primary", L59="Length Gain"),L60*G61*I62*L61*-1,0)) -> 0
B63: Not Selected | C63: Existing | D63: Preliminary Resource Evaluation | E63: Select | H63: Select | J63: =IF(H63="Second",(F63*G63*H64*1), IF(H63="Third",(F63*G63*H64*1), (F63*G63*H64*I64))) -> 0 | K63: =J65-J63 -> 0 | L63: =IF(F63>F65, "Length Loss", IF(F63<F65, "Length Gain", IF(F63=F65, "No Change"))) -> No Change | M63: 0 | N63: Existing: Select From Dropdown | O63: Proposed: Select From Dropdown | P63: =IF(D65="Restoration/Enhancement",SUM(K63,L66,M65,N65),IF(D65="Preservation",((0.1*J65)+M65+N65),"NA")) -> NA
H64: =IF(H63="Primary",1,IF(H63="Second",0.2,IF(H63="Third",0.1,IF(H63="Select",0)))) -> 0 | I64: =IF(AND(B63="Piedmont",I63>0.0001,I63<0.1),0.41, IF(AND(B63="Piedmont",I63>10), 2.45, IF(B63="Piedmont",I63^0.39, IF(AND(B63="Coastal Plain",I63>0.0001,I63<0.1),0.42,IF(AND(B63="Coastal Plain",I63>10),2.4, IF(B63="Coastal Plain",I63^0.38, IF(AND(B63="Mountain",I63>0.0001,I63<0.1),0.36,IF(AND(B63="Mountain",I63>10),2.75,IF(B63="Mountain",I63^0.44))))))))) -> FALSE | L64: =F65-F63 -> 0 | N64: =IF(AND(N63="No Existing Protection",O63="Deed Restriction"), 0.02, IF(AND(N63="No Existing Protection",O63="Easement"), 0.05, IF(AND(N63="No Existing Protection", O63="Accredited Easement"), 0.07, IF(AND(N63="No Existing Protection", O63="Fee Simple to Conservation Holder"), 0.09, IF(AND(N63="Agricultural Easement",O63="Deed Restriction"), 0.01, IF(AND(N63="Agricultural Easement",O63="Easement"), 0.04, IF(AND(N63="Agricultural Easement", O63="Accredited Easement"), 0.06, IF(AND(N63="Agricultural Easement", O63="Fee Simple to Conservation Holder"), 0.09, IF(AND(N63="Environmental Easement",O63="Deed Restriction"), 0, IF(AND(N63="Environmental Easement", O63="Easement"), 0.02, IF(AND(N63="Environmental Easement", O63="Accredited Easement"), 0.03, IF(AND(N63="Public Land", O63="Public Land MOA"), 0.02, 0)))))))))))) -> 0
B65: =B63 -> Not Selected | C65: Proposed | D65: Select from Dropdown | E65: Select | H65: =H63 -> Select | I65: 0 | J65: =IF(H65="Second",(F65*G65*H66*1), IF(H65="Third",(F65*G65*H66*1), (F65*G65*H66*I66))) -> 0 | L65: 0.5 | M65: =IF(D65="Preservation",((J65*0.1)*M63),(K63+L66)*M63) -> 0 | N65: =IF(H63="Second",(J65*N64),IF(H63="Third",(J65*N64),(J65/I66*N64))) -> 
H66: =IF(H65="Primary",1,IF(H65="Second",0.2,IF(H65="Third",0.1,IF(H65="Select",0)))) -> 0 | I66: =IF(AND(B65="Piedmont",I65>0.0001,I65<0.1),0.41, IF(AND(B65="Piedmont",I65>10), 2.45, IF(B65="Piedmont",I65^0.39, IF(AND(B65="Coastal Plain",I65>0.0001,I65<0.1),0.42,IF(AND(B65="Coastal Plain",I65>10),2.4, IF(B65="Coastal Plain",I65^0.38, IF(AND(B65="Mountain",I65>0.0001,I65<0.1),0.36,IF(AND(B65="Mountain",I65>10),2.75,IF(B65="Mountain",I65^0.44))))))))) -> FALSE | L66: =IF(AND(H63="Primary",L63="Length Loss"), L64*G63*I64*L65*-1,IF(AND(H63="Primary", L63="Length Gain"),L64*G65*I66*L65*-1,0)) -> 0
B67: Not Selected | C67: Existing | D67: Preliminary Resource Evaluation | E67: Select | H67: Select | J67: =IF(H67="Second",(F67*G67*H68*1), IF(H67="Third",(F67*G67*H68*1), (F67*G67*H68*I68))) -> 0 | K67: =J69-J67 -> 0 | L67: =IF(F67>F69, "Length Loss", IF(F67<F69, "Length Gain", IF(F67=F69, "No Change"))) -> No Change | M67: 0 | N67: Existing: Select From Dropdown | O67: Proposed: Select From Dropdown | P67: =IF(D69="Restoration/Enhancement",SUM(K67,L70,M69,N69),IF(D69="Preservation",((0.1*J69)+M69+N69),"NA")) -> NA
H68: =IF(H67="Primary",1,IF(H67="Second",0.2,IF(H67="Third",0.1,IF(H67="Select",0)))) -> 0 | I68: =IF(AND(B67="Piedmont",I67>0.0001,I67<0.1),0.41, IF(AND(B67="Piedmont",I67>10), 2.45, IF(B67="Piedmont",I67^0.39, IF(AND(B67="Coastal Plain",I67>0.0001,I67<0.1),0.42,IF(AND(B67="Coastal Plain",I67>10),2.4, IF(B67="Coastal Plain",I67^0.38, IF(AND(B67="Mountain",I67>0.0001,I67<0.1),0.36,IF(AND(B67="Mountain",I67>10),2.75,IF(B67="Mountain",I67^0.44))))))))) -> FALSE | L68: =F69-F67 -> 0 | N68: =IF(AND(N67="No Existing Protection",O67="Deed Restriction"), 0.02, IF(AND(N67="No Existing Protection",O67="Easement"), 0.05, IF(AND(N67="No Existing Protection", O67="Accredited Easement"), 0.07, IF(AND(N67="No Existing Protection", O67="Fee Simple to Conservation Holder"), 0.09, IF(AND(N67="Agricultural Easement",O67="Deed Restriction"), 0.01, IF(AND(N67="Agricultural Easement",O67="Easement"), 0.04, IF(AND(N67="Agricultural Easement", O67="Accredited Easement"), 0.06, IF(AND(N67="Agricultural Easement", O67="Fee Simple to Conservation Holder"), 0.09, IF(AND(N67="Environmental Easement",O67="Deed Restriction"), 0, IF(AND(N67="Environmental Easement", O67="Easement"), 0.02, IF(AND(N67="Environmental Easement", O67="Accredited Easement"), 0.03, IF(AND(N67="Public Land", O67="Public Land MOA"), 0.02, 0)))))))))))) -> 0
B69: =B67 -> Not Selected | C69: Proposed | D69: Select from Dropdown | E69: Select | H69: =H67 -> Select | I69: 0 | J69: =IF(H69="Second",(F69*G69*H70*1), IF(H69="Third",(F69*G69*H70*1), (F69*G69*H70*I70))) -> 0 | L69: 0.5 | M69: =IF(D69="Preservation",((J69*0.1)*M67),(K67+L70)*M67) -> 0 | N69: =IF(H67="Second",(J69*N68),IF(H67="Third",(J69*N68),(J69/I70*N68))) -> 
H70: =IF(H69="Primary",1,IF(H69="Second",0.2,IF(H69="Third",0.1,IF(H69="Select",0)))) -> 0 | I70: =IF(AND(B69="Piedmont",I69>0.0001,I69<0.1),0.41, IF(AND(B69="Piedmont",I69>10), 2.45, IF(B69="Piedmont",I69^0.39, IF(AND(B69="Coastal Plain",I69>0.0001,I69<0.1),0.42,IF(AND(B69="Coastal Plain",I69>10),2.4, IF(B69="Coastal Plain",I69^0.38, IF(AND(B69="Mountain",I69>0.0001,I69<0.1),0.36,IF(AND(B69="Mountain",I69>10),2.75,IF(B69="Mountain",I69^0.44))))))))) -> FALSE | L70: =IF(AND(H67="Primary",L67="Length Loss"), L68*G67*I68*L69*-1,IF(AND(H67="Primary", L67="Length Gain"),L68*G69*I70*L69*-1,0)) -> 0
B71: Not Selected | C71: Existing | D71: Preliminary Resource Evaluation | E71: Select | H71: Select | J71: =IF(H71="Second",(F71*G71*H72*1), IF(H71="Third",(F71*G71*H72*1), (F71*G71*H72*I72))) -> 0 | K71: =J73-J71 -> 0 | L71: =IF(F71>F73, "Length Loss", IF(F71<F73, "Length Gain", IF(F71=F73, "No Change"))) -> No Change | M71: 0 | N71: Existing: Select From Dropdown | O71: Proposed: Select From Dropdown | P71: =IF(D73="Restoration/Enhancement",SUM(K71,L74,M73,N73),IF(D73="Preservation",((0.1*J73)+M73+N73),"NA")) -> NA
H72: =IF(H71="Primary",1,IF(H71="Second",0.2,IF(H71="Third",0.1,IF(H71="Select",0)))) -> 0 | I72: =IF(AND(B71="Piedmont",I71>0.0001,I71<0.1),0.41, IF(AND(B71="Piedmont",I71>10), 2.45, IF(B71="Piedmont",I71^0.39, IF(AND(B71="Coastal Plain",I71>0.0001,I71<0.1),0.42,IF(AND(B71="Coastal Plain",I71>10),2.4, IF(B71="Coastal Plain",I71^0.38, IF(AND(B71="Mountain",I71>0.0001,I71<0.1),0.36,IF(AND(B71="Mountain",I71>10),2.75,IF(B71="Mountain",I71^0.44))))))))) -> FALSE | L72: =F73-F71 -> 0 | N72: =IF(AND(N71="No Existing Protection",O71="Deed Restriction"), 0.02, IF(AND(N71="No Existing Protection",O71="Easement"), 0.05, IF(AND(N71="No Existing Protection", O71="Accredited Easement"), 0.07, IF(AND(N71="No Existing Protection", O71="Fee Simple to Conservation Holder"), 0.09, IF(AND(N71="Agricultural Easement",O71="Deed Restriction"), 0.01, IF(AND(N71="Agricultural Easement",O71="Easement"), 0.04, IF(AND(N71="Agricultural Easement", O71="Accredited Easement"), 0.06, IF(AND(N71="Agricultural Easement", O71="Fee Simple to Conservation Holder"), 0.09, IF(AND(N71="Environmental Easement",O71="Deed Restriction"), 0, IF(AND(N71="Environmental Easement", O71="Easement"), 0.02, IF(AND(N71="Environmental Easement", O71="Accredited Easement"), 0.03, IF(AND(N71="Public Land", O71="Public Land MOA"), 0.02, 0)))))))))))) -> 0
B73: =B71 -> Not Selected | C73: Proposed | D73: Select from Dropdown | E73: Select | H73: =H71 -> Select | I73: 0 | J73: =IF(H73="Second",(F73*G73*H74*1), IF(H73="Third",(F73*G73*H74*1), (F73*G73*H74*I74))) -> 0 | L73: 0.5 | M73: =IF(D73="Preservation",((J73*0.1)*M71),(K71+L74)*M71) -> 0 | N73: =IF(H71="Second",(J73*N72),IF(H71="Third",(J73*N72),(J73/I74*N72))) -> 
H74: =IF(H73="Primary",1,IF(H73="Second",0.2,IF(H73="Third",0.1,IF(H73="Select",0)))) -> 0 | I74: =IF(AND(B73="Piedmont",I73>0.0001,I73<0.1),0.41, IF(AND(B73="Piedmont",I73>10), 2.45, IF(B73="Piedmont",I73^0.39, IF(AND(B73="Coastal Plain",I73>0.0001,I73<0.1),0.42,IF(AND(B73="Coastal Plain",I73>10),2.4, IF(B73="Coastal Plain",I73^0.38, IF(AND(B73="Mountain",I73>0.0001,I73<0.1),0.36,IF(AND(B73="Mountain",I73>10),2.75,IF(B73="Mountain",I73^0.44))))))))) -> FALSE | L74: =IF(AND(H71="Primary",L71="Length Loss"), L72*G71*I72*L73*-1,IF(AND(H71="Primary", L71="Length Gain"),L72*G73*I74*L73*-1,0)) -> 0
B75: Not Selected | C75: Existing | D75: Preliminary Resource Evaluation | E75: Select | H75: Select | J75: =IF(H75="Second",(F75*G75*H76*1), IF(H75="Third",(F75*G75*H76*1), (F75*G75*H76*I76))) -> 0 | K75: =J77-J75 -> 0 | L75: =IF(F75>F77, "Length Loss", IF(F75<F77, "Length Gain", IF(F75=F77, "No Change"))) -> No Change | M75: 0 | N75: Existing: Select From Dropdown | O75: Proposed: Select From Dropdown | P75: =IF(D77="Restoration/Enhancement",SUM(K75,L78,M77,N77),IF(D77="Preservation",((0.1*J77)+M77+N77),"NA")) -> NA
H76: =IF(H75="Primary",1,IF(H75="Second",0.2,IF(H75="Third",0.1,IF(H75="Select",0)))) -> 0 | I76: =IF(AND(B75="Piedmont",I75>0.0001,I75<0.1),0.41, IF(AND(B75="Piedmont",I75>10), 2.45, IF(B75="Piedmont",I75^0.39, IF(AND(B75="Coastal Plain",I75>0.0001,I75<0.1),0.42,IF(AND(B75="Coastal Plain",I75>10),2.4, IF(B75="Coastal Plain",I75^0.38, IF(AND(B75="Mountain",I75>0.0001,I75<0.1),0.36,IF(AND(B75="Mountain",I75>10),2.75,IF(B75="Mountain",I75^0.44))))))))) -> FALSE | L76: =F77-F75 -> 0 | N76: =IF(AND(N75="No Existing Protection",O75="Deed Restriction"), 0.02, IF(AND(N75="No Existing Protection",O75="Easement"), 0.05, IF(AND(N75="No Existing Protection", O75="Accredited Easement"), 0.07, IF(AND(N75="No Existing Protection", O75="Fee Simple to Conservation Holder"), 0.09, IF(AND(N75="Agricultural Easement",O75="Deed Restriction"), 0.01, IF(AND(N75="Agricultural Easement",O75="Easement"), 0.04, IF(AND(N75="Agricultural Easement", O75="Accredited Easement"), 0.06, IF(AND(N75="Agricultural Easement", O75="Fee Simple to Conservation Holder"), 0.09, IF(AND(N75="Environmental Easement",O75="Deed Restriction"), 0, IF(AND(N75="Environmental Easement", O75="Easement"), 0.02, IF(AND(N75="Environmental Easement", O75="Accredited Easement"), 0.03, IF(AND(N75="Public Land", O75="Public Land MOA"), 0.02, 0)))))))))))) -> 0
B77: =B75 -> Not Selected | C77: Proposed | D77: Select from Dropdown | E77: Select | H77: =H75 -> Select | I77: 0 | J77: =IF(H77="Second",(F77*G77*H78*1), IF(H77="Third",(F77*G77*H78*1), (F77*G77*H78*I78))) -> 0 | L77: 0.5 | M77: =IF(D77="Preservation",((J77*0.1)*M75),(K75+L78)*M75) -> 0 | N77: =IF(H75="Second",(J77*N76),IF(H75="Third",(J77*N76),(J77/I78*N76))) -> 
H78: =IF(H77="Primary",1,IF(H77="Second",0.2,IF(H77="Third",0.1,IF(H77="Select",0)))) -> 0 | I78: =IF(AND(B77="Piedmont",I77>0.0001,I77<0.1),0.41, IF(AND(B77="Piedmont",I77>10), 2.45, IF(B77="Piedmont",I77^0.39, IF(AND(B77="Coastal Plain",I77>0.0001,I77<0.1),0.42,IF(AND(B77="Coastal Plain",I77>10),2.4, IF(B77="Coastal Plain",I77^0.38, IF(AND(B77="Mountain",I77>0.0001,I77<0.1),0.36,IF(AND(B77="Mountain",I77>10),2.75,IF(B77="Mountain",I77^0.44))))))))) -> FALSE | L78: =IF(AND(H75="Primary",L75="Length Loss"), L76*G75*I76*L77*-1,IF(AND(H75="Primary", L75="Length Gain"),L76*G77*I78*L77*-1,0)) -> 0
B79: Not Selected | C79: Existing | D79: Preliminary Resource Evaluation | E79: Select | H79: Select | J79: =IF(H79="Second",(F79*G79*H80*1), IF(H79="Third",(F79*G79*H80*1), (F79*G79*H80*I80))) -> 0 | K79: =J81-J79 -> 0 | L79: =IF(F79>F81, "Length Loss", IF(F79<F81, "Length Gain", IF(F79=F81, "No Change"))) -> No Change | M79: 0 | N79: Existing: Select From Dropdown | O79: Proposed: Select From Dropdown | P79: =IF(D81="Restoration/Enhancement",SUM(K79,L82,M81,N81),IF(D81="Preservation",((0.1*J81)+M81+N81),"NA")) -> NA
H80: =IF(H79="Primary",1,IF(H79="Second",0.2,IF(H79="Third",0.1,IF(H79="Select",0)))) -> 0 | I80: =IF(AND(B79="Piedmont",I79>0.0001,I79<0.1),0.41, IF(AND(B79="Piedmont",I79>10), 2.45, IF(B79="Piedmont",I79^0.39, IF(AND(B79="Coastal Plain",I79>0.0001,I79<0.1),0.42,IF(AND(B79="Coastal Plain",I79>10),2.4, IF(B79="Coastal Plain",I79^0.38, IF(AND(B79="Mountain",I79>0.0001,I79<0.1),0.36,IF(AND(B79="Mountain",I79>10),2.75,IF(B79="Mountain",I79^0.44))))))))) -> FALSE | L80: =F81-F79 -> 0 | N80: =IF(AND(N79="No Existing Protection",O79="Deed Restriction"), 0.02, IF(AND(N79="No Existing Protection",O79="Easement"), 0.05, IF(AND(N79="No Existing Protection", O79="Accredited Easement"), 0.07, IF(AND(N79="No Existing Protection", O79="Fee Simple to Conservation Holder"), 0.09, IF(AND(N79="Agricultural Easement",O79="Deed Restriction"), 0.01, IF(AND(N79="Agricultural Easement",O79="Easement"), 0.04, IF(AND(N79="Agricultural Easement", O79="Accredited Easement"), 0.06, IF(AND(N79="Agricultural Easement", O79="Fee Simple to Conservation Holder"), 0.09, IF(AND(N79="Environmental Easement",O79="Deed Restriction"), 0, IF(AND(N79="Environmental Easement", O79="Easement"), 0.02, IF(AND(N79="Environmental Easement", O79="Accredited Easement"), 0.03, IF(AND(N79="Public Land", O79="Public Land MOA"), 0.02, 0)))))))))))) -> 0
B81: =B79 -> Not Selected | C81: Proposed | D81: Select from Dropdown | E81: Select | H81: =H79 -> Select | I81: 0 | J81: =IF(H81="Second",(F81*G81*H82*1), IF(H81="Third",(F81*G81*H82*1), (F81*G81*H82*I82))) -> 0 | L81: 0.5 | M81: =IF(D81="Preservation",((J81*0.1)*M79),(K79+L82)*M79) -> 0 | N81: =IF(H79="Second",(J81*N80),IF(H79="Third",(J81*N80),(J81/I82*N80))) -> 
H82: =IF(H81="Primary",1,IF(H81="Second",0.2,IF(H81="Third",0.1,IF(H81="Select",0)))) -> 0 | I82: =IF(AND(B81="Piedmont",I81>0.0001,I81<0.1),0.41, IF(AND(B81="Piedmont",I81>10), 2.45, IF(B81="Piedmont",I81^0.39, IF(AND(B81="Coastal Plain",I81>0.0001,I81<0.1),0.42,IF(AND(B81="Coastal Plain",I81>10),2.4, IF(B81="Coastal Plain",I81^0.38, IF(AND(B81="Mountain",I81>0.0001,I81<0.1),0.36,IF(AND(B81="Mountain",I81>10),2.75,IF(B81="Mountain",I81^0.44))))))))) -> FALSE | L82: =IF(AND(H79="Primary",L79="Length Loss"), L80*G79*I80*L81*-1,IF(AND(H79="Primary", L79="Length Gain"),L80*G81*I82*L81*-1,0)) -> 0
B83: Not Selected | C83: Existing | D83: Preliminary Resource Evaluation | E83: Select | H83: Select | J83: =IF(H83="Second",(F83*G83*H84*1), IF(H83="Third",(F83*G83*H84*1), (F83*G83*H84*I84))) -> 0 | K83: =J85-J83 -> 0 | L83: =IF(F83>F85, "Length Loss", IF(F83<F85, "Length Gain", IF(F83=F85, "No Change"))) -> No Change | M83: 0 | N83: Existing: Select From Dropdown | O83: Proposed: Select From Dropdown | P83: =IF(D85="Restoration/Enhancement",SUM(K83,L86,M85,N85),IF(D85="Preservation",((0.1*J85)+M85+N85),"NA")) -> NA
H84: =IF(H83="Primary",1,IF(H83="Second",0.2,IF(H83="Third",0.1,IF(H83="Select",0)))) -> 0 | I84: =IF(AND(B83="Piedmont",I83>0.0001,I83<0.1),0.41, IF(AND(B83="Piedmont",I83>10), 2.45, IF(B83="Piedmont",I83^0.39, IF(AND(B83="Coastal Plain",I83>0.0001,I83<0.1),0.42,IF(AND(B83="Coastal Plain",I83>10),2.4, IF(B83="Coastal Plain",I83^0.38, IF(AND(B83="Mountain",I83>0.0001,I83<0.1),0.36,IF(AND(B83="Mountain",I83>10),2.75,IF(B83="Mountain",I83^0.44))))))))) -> FALSE | L84: =F85-F83 -> 0 | N84: =IF(AND(N83="No Existing Protection",O83="Deed Restriction"), 0.02, IF(AND(N83="No Existing Protection",O83="Easement"), 0.05, IF(AND(N83="No Existing Protection", O83="Accredited Easement"), 0.07, IF(AND(N83="No Existing Protection", O83="Fee Simple to Conservation Holder"), 0.09, IF(AND(N83="Agricultural Easement",O83="Deed Restriction"), 0.01, IF(AND(N83="Agricultural Easement",O83="Easement"), 0.04, IF(AND(N83="Agricultural Easement", O83="Accredited Easement"), 0.06, IF(AND(N83="Agricultural Easement", O83="Fee Simple to Conservation Holder"), 0.09, IF(AND(N83="Environmental Easement",O83="Deed Restriction"), 0, IF(AND(N83="Environmental Easement", O83="Easement"), 0.02, IF(AND(N83="Environmental Easement", O83="Accredited Easement"), 0.03, IF(AND(N83="Public Land", O83="Public Land MOA"), 0.02, 0)))))))))))) -> 0
B85: =B83 -> Not Selected | C85: Proposed | D85: Select from Dropdown | E85: Select | H85: =H83 -> Select | I85: 0 | J85: =IF(H85="Second",(F85*G85*H86*1), IF(H85="Third",(F85*G85*H86*1), (F85*G85*H86*I86))) -> 0 | L85: 0.5 | M85: =IF(D85="Preservation",((J85*0.1)*M83),(K83+L86)*M83) -> 0 | N85: =IF(H83="Second",(J85*N84),IF(H83="Third",(J85*N84),(J85/I86*N84))) -> 
H86: =IF(H85="Primary",1,IF(H85="Second",0.2,IF(H85="Third",0.1,IF(H85="Select",0)))) -> 0 | I86: =IF(AND(B85="Piedmont",I85>0.0001,I85<0.1),0.41, IF(AND(B85="Piedmont",I85>10), 2.45, IF(B85="Piedmont",I85^0.39, IF(AND(B85="Coastal Plain",I85>0.0001,I85<0.1),0.42,IF(AND(B85="Coastal Plain",I85>10),2.4, IF(B85="Coastal Plain",I85^0.38, IF(AND(B85="Mountain",I85>0.0001,I85<0.1),0.36,IF(AND(B85="Mountain",I85>10),2.75,IF(B85="Mountain",I85^0.44))))))))) -> FALSE | L86: =IF(AND(H83="Primary",L83="Length Loss"), L84*G83*I84*L85*-1,IF(AND(H83="Primary", L83="Length Gain"),L84*G85*I86*L85*-1,0)) -> 0

Sheet 4_Stream Mitigation-Buffers
A1: STREAM MITIGATION CALCULATOR for Stream Buffers
A3: BACKGROUND INFORMATION | N3: Total Stream Gains from Buffers (Functional Feet)
A4: Corps Project ID #: | D4: NAB-2023-88552 | G4: Corps PM: | I4: James Brown
A5: Project Name: | D5: Panther Branch Mit | G5: Date: | I5: 2023-02-23 | N5: =SUM(M11:M64) -> 216.5625
A6: Lat/Long: | D6: 38.58960,-76.9567 | G6: Sponsor: | I6: Acme Airports
A7: County: | D7: Baltimore | G7: Collaborators: | I7: DBT, CKL
A8: Raw Change in Buffer Value | J8: Adjustments | M8: Stream Gains (Functional Feet) | N8: REMARKS (include CSBA Coordinates)
A9: Credited Stream Buffer Area Name (CBSA) | C9: Activity | D9: Evaluation | E9: Buffer Area (Acres) | F9: Buffer Quality | G9: Quality Acres | H9: Raw Buffer Value (Functional Feet) | I9: Raw Change in Buffer Value (Functional Feet) | J9: Site Sensitivity | K9: Site Protection
A11: CSBA 1 mature forest | C11: Preliminary Resource Eval | D11: Existing Buffer | E11: 4 | F11: 0.75 | G11: =E11*F11 -> 3 | H11: =G11*75 -> 225 | I11: =H12-H11 -> 0 | J11: 0.1 | K11: Agricultural Easement | L11: Easement | M11: =IF(C12="Preservation", (H12+J13+K13)*0.25, SUM(I11,J13,K13)) -> 59.0625 | N11: 38.58960, -78.9565. Preservation of mature forest.
C12: Preservation | D12: Proposed Buffer | E12: 4 | F12: 0.75 | G12: =E12*F12 -> 3 | H12: =G12*75 -> 225 | K12: =IF(AND(K11="No Existing Protection",L11="Deed Restriction"), 0.02, IF(AND(K11="No Existing Protection",L11="Easement"), 0.05, IF(AND(K11="No Existing Protection", L11="Accredited Easement"), 0.07, IF(AND(K11="No Existing Protection", L11="Fee Simple to Conservation Holder"), 0.09, IF(AND(K11="Agricultural Easement",L11="Deed Restriction"), 0.01, IF(AND(K11="Agricultural Easement",L11="Easement"), 0.04, IF(AND(K11="Agricultural Easement", L11="Accredited Easement"), 0.06, IF(AND(K11="Agricultural Easement", L11="Fee Simple to Conservation Holder"), 0.09, IF(AND(K11="Environmental Easement",L11="Deed Restriction"), 0, IF(AND(K11="Environmental Easement", L11="Easement"), 0.02, IF(AND(K11="Environmental Easement", L11="Accredited Easement"), 0.03, IF(AND(K11="Public Land", L11="Public Land MOA"), 0.02, 0)))))))))))) -> 0.04
J13: =IF(C12="Preservation",((H11*0.1*J11)),I11*J11) -> 2.25 | K13: =H12*K12 -> 9
A14: CSBA 2 Pasture | C14: Preliminary Resource Eval | D14: Existing Buffer | E14: 4 | F14: 0.3 | G14: =E14*F14 -> 1.2 | H14: =G14*75 -> 90 | I14: =H15-H14 -> 135 | J14: 0.1 | K14: Agricultural Easement | L14: Easement | M14: =IF(C15="Preservation", (H15+J16+K16)*0.25, SUM(I14,J16,K16)) -> 157.5 | N14: 38.58960, -78.9567. Forest buffer planted in pasture.
C15: Restoration/Enhancement | D15: Proposed Buffer | E15: 4 | F15: 0.75 | G15: =E15*F15 -> 3 | H15: =G15*75 -> 225 | K15: =IF(AND(K14="No Existing Protection",L14="Deed Restriction"), 0.02, IF(AND(K14="No Existing Protection",L14="Easement"), 0.05, IF(AND(K14="No Existing Protection", L14="Accredited Easement"), 0.07, IF(AND(K14="No Existing Protection", L14="Fee Simple to Conservation Holder"), 0.09, IF(AND(K14="Agricultural Easement",L14="Deed Restriction"), 0.01, IF(AND(K14="Agricultural Easement",L14="Easement"), 0.04, IF(AND(K14="Agricultural Easement", L14="Accredited Easement"), 0.06, IF(AND(K14="Agricultural Easement", L14="Fee Simple to Conservation Holder"), 0.09, IF(AND(K14="Environmental Easement",L14="Deed Restriction"), 0, IF(AND(K14="Environmental Easement", L14="Easement"), 0.02, IF(AND(K14="Environmental Easement", L14="Accredited Easement"), 0.03, IF(AND(K14="Public Land", L14="Public Land MOA"), 0.02, 0)))))))))))) -> 0.04
J16: =IF(C15="Preservation",((H14*0.1*J14)),I14*J14) -> 13.5 | K16: =H15*K15 -> 9
C17: Preliminary Resource Eval | D17: Existing Buffer | G17: =E17*F17 -> 0 | H17: =G17*75 -> 0 | I17: =H18-H17 -> 0 | J17: 0 | K17: Existing: Select From Dropdown | L17: Proposed: Select From Dropdown | M17: =IF(C18="Preservation", (H18+J19+K19)*0.25, SUM(I17,J19,K19)) -> 0
C18: Select from Dropdown | D18: Proposed Buffer | G18: =E18*F18 -> 0 | H18: =G18*75 -> 0 | K18: =IF(AND(K17="No Existing Protection",L17="Deed Restriction"), 0.02, IF(AND(K17="No Existing Protection",L17="Easement"), 0.05, IF(AND(K17="No Existing Protection", L17="Accredited Easement"), 0.07, IF(AND(K17="No Existing Protection", L17="Fee Simple to Conservation Holder"), 0.09, IF(AND(K17="Agricultural Easement",L17="Deed Restriction"), 0.01, IF(AND(K17="Agricultural Easement",L17="Easement"), 0.04, IF(AND(K17="Agricultural Easement", L17="Accredited Easement"), 0.06, IF(AND(K17="Agricultural Easement", L17="Fee Simple to Conservation Holder"), 0.09, IF(AND(K17="Environmental Easement",L17="Deed Restriction"), 0, IF(AND(K17="Environmental Easement", L17="Easement"), 0.02, IF(AND(K17="Environmental Easement", L17="Accredited Easement"), 0.03, IF(AND(K17="Public Land", L17="Public Land MOA"), 0.02, 0)))))))))))) -> 0
J19: =IF(C18="Preservation",((H17*0.1*J18)),I17*J18) -> 0 | K19: =H18*K18 -> 0
C20: Preliminary Resource Eval | D20: Existing Buffer | G20: =E20*F20 -> 0 | H20: =G20*75 -> 0 | I20: =H21-H20 -> 0 | J20: 0 | K20: Existing: Select From Dropdown | L20: Proposed: Select From Dropdown | M20: =IF(C21="Preservation", (H21+J22+K22)*0.25, SUM(I20,J22,K22)) -> 0
C21: Select from Dropdown | D21: Proposed Buffer | G21: 0 | H21: 0 | K21: =IF(AND(K20="No Existing Protection",L20="Deed Restriction"), 0.02, IF(AND(K20="No Existing Protection",L20="Easement"), 0.05, IF(AND(K20="No Existing Protection", L20="Accredited Easement"), 0.07, IF(AND(K20="No Existing Protection", L20="Fee Simple to Conservation Holder"), 0.09, IF(AND(K20="Agricultural Easement",L20="Deed Restriction"), 0.01, IF(AND(K20="Agricultural Easement",L20="Easement"), 0.04, IF(AND(K20="Agricultural Easement", L20="Accredited Easement"), 0.06, IF(AND(K20="Agricultural Easement", L20="Fee Simple to Conservation Holder"), 0.09, IF(AND(K20="Environmental Easement",L20="Deed Restriction"), 0, IF(AND(K20="Environmental Easement", L20="Easement"), 0.02, IF(AND(K20="Environmental Easement", L20="Accredited Easement"), 0.03, IF(AND(K20="Public Land", L20="Public Land MOA"), 0.02, 0)))))))))))) -> 0
J22: =IF(C21="Preservation",((H20*0.1*J21)),I20*J21) -> 0 | K22: =H21*K21 -> 0
C23: Preliminary Resource Eval | D23: Existing Buffer | G23: =E23*F23 -> 0 | H23: =G23*75 -> 0 | I23: =H24-H23 -> 0 | J23: 0 | K23: Existing: Select From Dropdown | L23: Proposed: Select From Dropdown | M23: =IF(C24="Preservation", (H24+J25+K25)*0.25, SUM(I23,J25,K25)) -> 0
C24: Select from Dropdown | D24: Proposed Buffer | G24: 0 | H24: 0 | K24: =IF(AND(K23="No Existing Protection",L23="Deed Restriction"), 0.02, IF(AND(K23="No Existing Protection",L23="Easement"), 0.05, IF(AND(K23="No Existing Protection", L23="Accredited Easement"), 0.07, IF(AND(K23="No Existing Protection", L23="Fee Simple to Conservation Holder"), 0.09, IF(AND(K23="Agricultural Easement",L23="Deed Restriction"), 0.01, IF(AND(K23="Agricultural Easement",L23="Easement"), 0.04, IF(AND(K23="Agricultural Easement", L23="Accredited Easement"), 0.06, IF(AND(K23="Agricultural Easement", L23="Fee Simple to Conservation Holder"), 0.09, IF(AND(K23="Environmental Easement",L23="Deed Restriction"), 0, IF(AND(K23="Environmental Easement", L23="Easement"), 0.02, IF(AND(K23="Environmental Easement", L23="Accredited Easement"), 0.03, IF(AND(K23="Public Land", L23="Public Land MOA"), 0.02, 0)))))))))))) -> 0
J25: =IF(C24="Preservation",((H23*0.1*J24)),I23*J24) -> 0 | K25: =H24*K24 -> 0
C26: Preliminary Resource Eval | D26: Existing Buffer | G26: =E26*F26 -> 0 | H26: =G26*75 -> 0 | I26: =H27-H26 -> 0 | J26: 0 | K26: Existing: Select From Dropdown | L26: Proposed: Select From Dropdown | M26: =IF(C27="Preservation", (H27+J28+K28)*0.25, SUM(I26,J28,K28)) -> 0
C27: Select from Dropdown | D27: Proposed Buffer | G27: 0 | H27: 0 | K27: =IF(AND(K26="No Existing Protection",L26="Deed Restriction"), 0.02, IF(AND(K26="No Existing Protection",L26="Easement"), 0.05, IF(AND(K26="No Existing Protection", L26="Accredited Easement"), 0.07, IF(AND(K26="No Existing Protection", L26="Fee Simple to Conservation Holder"), 0.09, IF(AND(K26="Agricultural Easement",L26="Deed Restriction"), 0.01, IF(AND(K26="Agricultural Easement",L26="Easement"), 0.04, IF(AND(K26="Agricultural Easement", L26="Accredited Easement"), 0.06, IF(AND(K26="Agricultural Easement", L26="Fee Simple to Conservation Holder"), 0.09, IF(AND(K26="Environmental Easement",L26="Deed Restriction"), 0, IF(AND(K26="Environmental Easement", L26="Easement"), 0.02, IF(AND(K26="Environmental Easement", L26="Accredited Easement"), 0.03, IF(AND(K26="Public Land", L26="Public Land MOA"), 0.02, 0)))))))))))) -> 0
J28: =IF(C27="Preservation",((H26*0.1*J27)),I26*J27) -> 0 | K28: =H27*K27 -> 0
C29: Preliminary Resource Eval | D29: Existing Buffer | G29: =E29*F29 -> 0 | H29: =G29*75 -> 0 | I29: =H30-H29 -> 0 | J29: 0 | K29: Existing: Select From Dropdown | L29: Proposed: Select From Dropdown | M29: =IF(C30="Preservation", (H30+J31+K31)*0.25, SUM(I29,J31,K31)) -> 0
C30: Select from Dropdown | D30: Proposed Buffer | G30: 0 | H30: 0 | K30: =IF(AND(K29="No Existing Protection",L29="Deed Restriction"), 0.02, IF(AND(K29="No Existing Protection",L29="Easement"), 0.05, IF(AND(K29="No Existing Protection", L29="Accredited Easement"), 0.07, IF(AND(K29="No Existing Protection", L29="Fee Simple to Conservation Holder"), 0.09, IF(AND(K29="Agricultural Easement",L29="Deed Restriction"), 0.01, IF(AND(K29="Agricultural Easement",L29="Easement"), 0.04, IF(AND(K29="Agricultural Easement", L29="Accredited Easement"), 0.06, IF(AND(K29="Agricultural Easement", L29="Fee Simple to Conservation Holder"), 0.09, IF(AND(K29="Environmental Easement",L29="Deed Restriction"), 0, IF(AND(K29="Environmental Easement", L29="Easement"), 0.02, IF(AND(K29="Environmental Easement", L29="Accredited Easement"), 0.03, IF(AND(K29="Public Land", L29="Public Land MOA"), 0.02, 0)))))))))))) -> 0
J31: =IF(C30="Preservation",((H29*0.1*J30)),I29*J30) -> 0 | K31: =H30*K30 -> 0
C32: Preliminary Resource Eval | D32: Existing Buffer | G32: =E32*F32 -> 0 | H32: =G32*75 -> 0 | I32: =H33-H32 -> 0 | J32: 0 | K32: Existing: Select From Dropdown | L32: Proposed: Select From Dropdown | M32: =IF(C33="Preservation", (H33+J34+K34)*0.25, SUM(I32,J34,K34)) -> 0
C33: Select from Dropdown | D33: Proposed Buffer | G33: 0 | H33: 0 | K33: =IF(AND(K32="No Existing Protection",L32="Deed Restriction"), 0.02, IF(AND(K32="No Existing Protection",L32="Easement"), 0.05, IF(AND(K32="No Existing Protection", L32="Accredited Easement"), 0.07, IF(AND(K32="No Existing Protection", L32="Fee Simple to Conservation Holder"), 0.09, IF(AND(K32="Agricultural Easement",L32="Deed Restriction"), 0.01, IF(AND(K32="Agricultural Easement",L32="Easement"), 0.04, IF(AND(K32="Agricultural Easement", L32="Accredited Easement"), 0.06, IF(AND(K32="Agricultural Easement", L32="Fee Simple to Conservation Holder"), 0.09, IF(AND(K32="Environmental Easement",L32="Deed Restriction"), 0, IF(AND(K32="Environmental Easement", L32="Easement"), 0.02, IF(AND(K32="Environmental Easement", L32="Accredited Easement"), 0.03, IF(AND(K32="Public Land", L32="Public Land MOA"), 0.02, 0)))))))))))) -> 0
J34: =IF(C33="Preservation",((H32*0.1*J33)),I32*J33) -> 0 | K34: =H33*K33 -> 0
C35: Preliminary Resource Eval | D35: Existing Buffer | G35: =E35*F35 -> 0 | H35: =G35*75 -> 0 | I35: =H36-H35 -> 0 | J35: 0 | K35: Existing: Select From Dropdown | L35: Proposed: Select From Dropdown | M35: =IF(C36="Preservation", (H36+J37+K37)*0.25, SUM(I35,J37,K37)) -> 0
C36: Select from Dropdown | D36: Proposed Buffer | G36: 0 | H36: 0 | K36: =IF(AND(K35="No Existing Protection",L35="Deed Restriction"), 0.02, IF(AND(K35="No Existing Protection",L35="Easement"), 0.05, IF(AND(K35="No Existing Protection", L35="Accredited Easement"), 0.07, IF(AND(K35="No Existing Protection", L35="Fee Simple to Conservation Holder"), 0.09, IF(AND(K35="Agricultural Easement",L35="Deed Restriction"), 0.01, IF(AND(K35="Agricultural Easement",L35="Easement"), 0.04, IF(AND(K35="Agricultural Easement", L35="Accredited Easement"), 0.06, IF(AND(K35="Agricultural Easement", L35="Fee Simple to Conservation Holder"), 0.09, IF(AND(K35="Environmental Easement",L35="Deed Restriction"), 0, IF(AND(K35="Environmental Easement", L35="Easement"), 0.02, IF(AND(K35="Environmental Easement", L35="Accredited Easement"), 0.03, IF(AND(K35="Public Land", L35="Public Land MOA"), 0.02, 0)))))))))))) -> 0
J37: =IF(C36="Preservation",((H35*0.1*J36)),I35*J36) -> 0 | K37: =H36*K36 -> 0
C38: Preliminary Resource Eval | D38: Existing Buffer | G38: =E38*F38 -> 0 | H38: =G38*75 -> 0 | I38: =H39-H38 -> 0 | J38: 0 | K38: Existing: Select From Dropdown | L38: Proposed: Select From Dropdown | M38: =IF(C39="Preservation", (H39+J40+K40)*0.25, SUM(I38,J40,K40)) -> 0
C39: Select from Dropdown | D39: Proposed Buffer | G39: 0 | H39: 0 | K39: =IF(AND(K38="No Existing Protection",L38="Deed Restriction"), 0.02, IF(AND(K38="No Existing Protection",L38="Easement"), 0.05, IF(AND(K38="No Existing Protection", L38="Accredited Easement"), 0.07, IF(AND(K38="No Existing Protection", L38="Fee Simple to Conservation Holder"), 0.09, IF(AND(K38="Agricultural Easement",L38="Deed Restriction"), 0.01, IF(AND(K38="Agricultural Easement",L38="Easement"), 0.04, IF(AND(K38="Agricultural Easement", L38="Accredited Easement"), 0.06, IF(AND(K38="Agricultural Easement", L38="Fee Simple to Conservation Holder"), 0.09, IF(AND(K38="Environmental Easement",L38="Deed Restriction"), 0, IF(AND(K38="Environmental Easement", L38="Easement"), 0.02, IF(AND(K38="Environmental Easement", L38="Accredited Easement"), 0.03, IF(AND(K38="Public Land", L38="Public Land MOA"), 0.02, 0)))))))))))) -> 0
J40: =IF(C39="Preservation",((H38*0.1*J39)),I38*J39) -> 0 | K40: =H39*K39 -> 0
C41: Preliminary Resource Eval | D41: Existing Buffer | G41: =E41*F41 -> 0 | H41: =G41*75 -> 0 | I41: =H42-H41 -> 0 | J41: 0 | K41: Existing: Select From Dropdown | L41: Proposed: Select From Dropdown | M41: =IF(C42="Preservation", (H42+J43+K43)*0.25, SUM(I41,J43,K43)) -> 0
C42: Select from Dropdown | D42: Proposed Buffer | G42: 0 | H42: 0 | K42: =IF(AND(K41="No Existing Protection",L41="Deed Restriction"), 0.02, IF(AND(K41="No Existing Protection",L41="Easement"), 0.05, IF(AND(K41="No Existing Protection", L41="Accredited Easement"), 0.07, IF(AND(K41="No Existing Protection", L41="Fee Simple to Conservation Holder"), 0.09, IF(AND(K41="Agricultural Easement",L41="Deed Restriction"), 0.01, IF(AND(K41="Agricultural Easement",L41="Easement"), 0.04, IF(AND(K41="Agricultural Easement", L41="Accredited Easement"), 0.06, IF(AND(K41="Agricultural Easement", L41="Fee Simple to Conservation Holder"), 0.09, IF(AND(K41="Environmental Easement",L41="Deed Restriction"), 0, IF(AND(K41="Environmental Easement", L41="Easement"), 0.02, IF(AND(K41="Environmental Easement", L41="Accredited Easement"), 0.03, IF(AND(K41="Public Land", L41="Public Land MOA"), 0.02, 0)))))))))))) -> 0
J43: =IF(C42="Preservation",((H41*0.1*J42)),I41*J42) -> 0 | K43: =H42*K42 -> 0
C44: Preliminary Resource Eval | D44: Existing Buffer | G44: =E44*F44 -> 0 | H44: =G44*75 -> 0 | I44: =H45-H44 -> 0 | J44: 0 | K44: Existing: Select From Dropdown | L44: Proposed: Select From Dropdown | M44: =IF(C45="Preservation", (H45+J46+K46)*0.25, SUM(I44,J46,K46)) -> 0
C45: Select from Dropdown | D45: Proposed Buffer | G45: 0 | H45: 0 | K45: =IF(AND(K44="No Existing Protection",L44="Deed Restriction"), 0.02, IF(AND(K44="No Existing Protection",L44="Easement"), 0.05, IF(AND(K44="No Existing Protection", L44="Accredited Easement"), 0.07, IF(AND(K44="No Existing Protection", L44="Fee Simple to Conservation Holder"), 0.09, IF(AND(K44="Agricultural Easement",L44="Deed Restriction"), 0.01, IF(AND(K44="Agricultural Easement",L44="Easement"), 0.04, IF(AND(K44="Agricultural Easement", L44="Accredited Easement"), 0.06, IF(AND(K44="Agricultural Easement", L44="Fee Simple to Conservation Holder"), 0.09, IF(AND(K44="Environmental Easement",L44="Deed Restriction"), 0, IF(AND(K44="Environmental Easement", L44="Easement"), 0.02, IF(AND(K44="Environmental Easement", L44="Accredited Easement"), 0.03, IF(AND(K44="Public Land", L44="Public Land MOA"), 0.02, 0)))))))))))) -> 0
J46: =IF(C45="Preservation",((H44*0.1*J45)),I44*J45) -> 0 | K46: =H45*K45 -> 0
C47: Preliminary Resource Eval | D47: Existing Buffer | G47: =E47*F47 -> 0 | H47: =G47*75 -> 0 | I47: =H48-H47 -> 0 | J47: 0 | K47: Existing: Select From Dropdown | L47: Proposed: Select From Dropdown | M47: =IF(C48="Preservation", (H48+J49+K49)*0.25, SUM(I47,J49,K49)) -> 0
C48: Select from Dropdown | D48: Proposed Buffer | G48: 0 | H48: 0 | K48: =IF(AND(K47="No Existing Protection",L47="Deed Restriction"), 0.02, IF(AND(K47="No Existing Protection",L47="Easement"), 0.05, IF(AND(K47="No Existing Protection", L47="Accredited Easement"), 0.07, IF(AND(K47="No Existing Protection", L47="Fee Simple to Conservation Holder"), 0.09, IF(AND(K47="Agricultural Easement",L47="Deed Restriction"), 0.01, IF(AND(K47="Agricultural Easement",L47="Easement"), 0.04, IF(AND(K47="Agricultural Easement", L47="Accredited Easement"), 0.06, IF(AND(K47="Agricultural Easement", L47="Fee Simple to Conservation Holder"), 0.09, IF(AND(K47="Environmental Easement",L47="Deed Restriction"), 0, IF(AND(K47="Environmental Easement", L47="Easement"), 0.02, IF(AND(K47="Environmental Easement", L47="Accredited Easement"), 0.03, IF(AND(K47="Public Land", L47="Public Land MOA"), 0.02, 0)))))))))))) -> 0
J49: =IF(C48="Preservation",((H47*0.1*J48)),I47*J48) -> 0 | K49: =H48*K48 -> 0
C50: Preliminary Resource Eval | D50: Existing Buffer | G50: =E50*F50 -> 0 | H50: =G50*75 -> 0 | I50: =H51-H50 -> 0 | J50: 0 | K50: Existing: Select From Dropdown | L50: Proposed: Select From Dropdown | M50: =IF(C51="Preservation", (H51+J52+K52)*0.25, SUM(I50,J52,K52)) -> 0
C51: Select from Dropdown | D51: Proposed Buffer | G51: 0 | H51: 0 | K51: =IF(AND(K50="No Existing Protection",L50="Deed Restriction"), 0.02, IF(AND(K50="No Existing Protection",L50="Easement"), 0.05, IF(AND(K50="No Existing Protection", L50="Accredited Easement"), 0.07, IF(AND(K50="No Existing Protection", L50="Fee Simple to Conservation Holder"), 0.09, IF(AND(K50="Agricultural Easement",L50="Deed Restriction"), 0.01, IF(AND(K50="Agricultural Easement",L50="Easement"), 0.04, IF(AND(K50="Agricultural Easement", L50="Accredited Easement"), 0.06, IF(AND(K50="Agricultural Easement", L50="Fee Simple to Conservation Holder"), 0.09, IF(AND(K50="Environmental Easement",L50="Deed Restriction"), 0, IF(AND(K50="Environmental Easement", L50="Easement"), 0.02, IF(AND(K50="Environmental Easement", L50="Accredited Easement"), 0.03, IF(AND(K50="Public Land", L50="Public Land MOA"), 0.02, 0)))))))))))) -> 0
J52: =IF(C51="Preservation",((H50*0.1*J51)),I50*J51) -> 0 | K52: =H51*K51 -> 0
C53: Preliminary Resource Eval | D53: Existing Buffer | G53: =E53*F53 -> 0 | H53: =G53*75 -> 0 | I53: =H54-H53 -> 0 | J53: 0 | K53: Existing: Select From Dropdown | L53: Proposed: Select From Dropdown | M53: =IF(C54="Preservation", (H54+J55+K55)*0.25, SUM(I53,J55,K55)) -> 0
C54: Select from Dropdown | D54: Proposed Buffer | G54: 0 | H54: 0 | K54: =IF(AND(K53="No Existing Protection",L53="Deed Restriction"), 0.02, IF(AND(K53="No Existing Protection",L53="Easement"), 0.05, IF(AND(K53="No Existing Protection", L53="Accredited Easement"), 0.07, IF(AND(K53="No Existing Protection", L53="Fee Simple to Conservation Holder"), 0.09, IF(AND(K53="Agricultural Easement",L53="Deed Restriction"), 0.01, IF(AND(K53="Agricultural Easement",L53="Easement"), 0.04, IF(AND(K53="Agricultural Easement", L53="Accredited Easement"), 0.06, IF(AND(K53="Agricultural Easement", L53="Fee Simple to Conservation Holder"), 0.09, IF(AND(K53="Environmental Easement",L53="Deed Restriction"), 0, IF(AND(K53="Environmental Easement", L53="Easement"), 0.02, IF(AND(K53="Environmental Easement", L53="Accredited Easement"), 0.03, IF(AND(K53="Public Land", L53="Public Land MOA"), 0.02, 0)))))))))))) -> 0
J55: =IF(C54="Preservation",((H53*0.1*J54)),I53*J54) -> 0 | K55: =H54*K54 -> 0
C56: Preliminary Resource Eval | D56: Existing Buffer | G56: =E56*F56 -> 0 | H56: =G56*75 -> 0 | I56: =H57-H56 -> 0 | J56: 0 | K56: Existing: Select From Dropdown | L56: Proposed: Select From Dropdown | M56: =IF(C57="Preservation", (H57+J58+K58)*0.25, SUM(I56,J58,K58)) -> 0
C57: Select from Dropdown | D57: Proposed Buffer | G57: 0 | H57: 0 | K57: =IF(AND(K56="No Existing Protection",L56="Deed Restriction"), 0.02, IF(AND(K56="No Existing Protection",L56="Easement"), 0.05, IF(AND(K56="No Existing Protection", L56="Accredited Easement"), 0.07, IF(AND(K56="No Existing Protection", L56="Fee Simple to Conservation Holder"), 0.09, IF(AND(K56="Agricultural Easement",L56="Deed Restriction"), 0.01, IF(AND(K56="Agricultural Easement",L56="Easement"), 0.04, IF(AND(K56="Agricultural Easement", L56="Accredited Easement"), 0.06, IF(AND(K56="Agricultural Easement", L56="Fee Simple to Conservation Holder"), 0.09, IF(AND(K56="Environmental Easement",L56="Deed Restriction"), 0, IF(AND(K56="Environmental Easement", L56="Easement"), 0.02, IF(AND(K56="Environmental Easement", L56="Accredited Easement"), 0.03, IF(AND(K56="Public Land", L56="Public Land MOA"), 0.02, 0)))))))))))) -> 0
J58: =IF(C57="Preservation",((H56*0.1*J57)),I56*J57) -> 0 | K58: =H57*K57 -> 0
C59: Preliminary Resource Eval | D59: Existing Buffer | G59: =E59*F59 -> 0 | H59: =G59*75 -> 0 | I59: =H60-H59 -> 0 | J59: 0 | K59: Existing: Select From Dropdown | L59: Proposed: Select From Dropdown | M59: =IF(C60="Preservation", (H60+J61+K61)*0.25, SUM(I59,J61,K61)) -> 0
C60: Select from Dropdown | D60: Proposed Buffer | G60: 0 | H60: 0 | K60: =IF(AND(K59="No Existing Protection",L59="Deed Restriction"), 0.02, IF(AND(K59="No Existing Protection",L59="Easement"), 0.05, IF(AND(K59="No Existing Protection", L59="Accredited Easement"), 0.07, IF(AND(K59="No Existing Protection", L59="Fee Simple to Conservation Holder"), 0.09, IF(AND(K59="Agricultural Easement",L59="Deed Restriction"), 0.01, IF(AND(K59="Agricultural Easement",L59="Easement"), 0.04, IF(AND(K59="Agricultural Easement", L59="Accredited Easement"), 0.06, IF(AND(K59="Agricultural Easement", L59="Fee Simple to Conservation Holder"), 0.09, IF(AND(K59="Environmental Easement",L59="Deed Restriction"), 0, IF(AND(K59="Environmental Easement", L59="Easement"), 0.02, IF(AND(K59="Environmental Easement", L59="Accredited Easement"), 0.03, IF(AND(K59="Public Land", L59="Public Land MOA"), 0.02, 0)))))))))))) -> 0
J61: =IF(C60="Preservation",((H59*0.1*J60)),I59*J60) -> 0 | K61: =H60*K60 -> 0
C62: Preliminary Resource Eval | D62: Existing Buffer | G62: =E62*F62 -> 0 | H62: =G62*75 -> 0 | I62: =H63-H62 -> 0 | J62: 0 | K62: Existing: Select From Dropdown | L62: Proposed: Select From Dropdown | M62: =IF(C63="Preservation", (H63+J64+K64)*0.25, SUM(I62,J64,K64)) -> 0
C63: Select from Dropdown | D63: Proposed Buffer | G63: 0 | H63: 0 | K63: =IF(AND(K62="No Existing Protection",L62="Deed Restriction"), 0.02, IF(AND(K62="No Existing Protection",L62="Easement"), 0.05, IF(AND(K62="No Existing Protection", L62="Accredited Easement"), 0.07, IF(AND(K62="No Existing Protection", L62="Fee Simple to Conservation Holder"), 0.09, IF(AND(K62="Agricultural Easement",L62="Deed Restriction"), 0.01, IF(AND(K62="Agricultural Easement",L62="Easement"), 0.04, IF(AND(K62="Agricultural Easement", L62="Accredited Easement"), 0.06, IF(AND(K62="Agricultural Easement", L62="Fee Simple to Conservation Holder"), 0.09, IF(AND(K62="Environmental Easement",L62="Deed Restriction"), 0, IF(AND(K62="Environmental Easement", L62="Easement"), 0.02, IF(AND(K62="Environmental Easement", L62="Accredited Easement"), 0.03, IF(AND(K62="Public Land", L62="Public Land MOA"), 0.02, 0)))))))))))) -> 0
J64: =IF(C63="Preservation",((H62*0.1*J63)),I62*J63) -> 0 | K64: =H63*K63 -> 0

Sheet 5_Bundled StreamChannel Mit
A1: STREAM MITIGATION CALCULATOR for Stream Channels
A3: BACKGROUND INFORMATION | M3: TOTAL STREAM GAINS from Stream Channels (Functional Feet)
A4: Corps Project ID #: | F4: Corps PM:
A5: Project Name: | F5: Date: | M5: =SUM(P11:P86) -> 0
A6: Lat/Long: | F6: Sponsor:
A7: County: | F7: Collaborators:
A8: Raw Change in Reach Value (Functional Feet) | L8: Adjustments | P8: Stream Gains (Functional Feet) | Q8: REMARKS (Incude reach coordinates)
A9: Reach Name | B9: Physiographic Region | C9: Evaluation | D9: Activity | E9: Resource Type | F9: Length (Feet) | G9: Stream Quality | H9: Channel Thread | I9: Drainage Area (sqmi) | J9: Raw Reach Value (Functional Feet) | K9: Raw Change in Value (Functional Feet) | L9: Change in Reach Length Adjustment | M9: Site Sensitivity | N9: Site Protection
B11: Not Selected | C11: Existing | D11: Preliminary Resource Evaluation | E11: Select | H11: Select | J11: =IF(H11="Second",(F11*G11*H12*1), IF(H11="Third",(F11*G11*H12*1), (F11*G11*H12*I12))) -> 0 | K11: =J13-J11 -> 0 | L11: =IF(F11>F13, "Length Loss", IF(F11<F13, "Length Gain", IF(F11=F13, "No Change"))) -> No Change | M11: 0 | N11: Existing: Select From Dropdown | O11: Proposed: Select From Dropdown | P11: =IF(D13="Restoration/Enhancement",SUM(K11,L14,M13,N13),IF(D13="Preservation",((0.1*J13)+M13+N13),"NA")) -> NA
H12: =IF(H11="Primary",1,IF(H11="Second",0.2,IF(H11="Third",0.1,IF(H11="Select",0)))) -> 0 | I12: =IF(AND(B11="Piedmont",I11>0.0001,I11<0.1),0.41, IF(AND(B11="Piedmont",I11>10), 2.45, IF(B11="Piedmont",I11^0.39, IF(AND(B11="Coastal Plain",I11>0.0001,I11<0.1),0.42,IF(AND(B11="Coastal Plain",I11>10),2.4, IF(B11="Coastal Plain",I11^0.38, IF(AND(B11="Mountain",I11>0.0001,I11<0.1),0.36,IF(AND(B11="Mountain",I11>10),2.75,IF(B11="Mountain",I11^0.44))))))))) -> FALSE | L12: =F13-F11 -> 0 | N12: =IF(AND(N11="No Existing Protection",O11="Deed Restriction"), 0.02, IF(AND(N11="No Existing Protection",O11="Easement"), 0.05, IF(AND(N11="No Existing Protection", O11="Accredited Easement"), 0.07, IF(AND(N11="No Existing Protection", O11="Fee Simple to Conservation Holder"), 0.09, IF(AND(N11="Agricultural Easement",O11="Deed Restriction"), 0.01, IF(AND(N11="Agricultural Easement",O11="Easement"), 0.04, IF(AND(N11="Agricultural Easement", O11="Accredited Easement"), 0.06, IF(AND(N11="Agricultural Easement", O11="Fee Simple to Conservation Holder"), 0.09, IF(AND(N11="Environmental Easement",O11="Deed Restriction"), 0, IF(AND(N11="Environmental Easement", O11="Easement"), 0.02, IF(AND(N11="Environmental Easement", O11="Accredited Easement"), 0.03, IF(AND(N11="Public Land", O11="Public Land MOA"), 0.02, 0)))))))))))) -> 0
B13: =B11 -> Not Selected | C13: Proposed | D13: Select from Dropdown | E13: Select | H13: =H11 -> Select | I13: =I11 -> 0 | J13: =IF(H13="Second",(F13*G13*H14*1), IF(H13="Third",(F13*G13*H14*1), (F13*G13*H14*I14))) -> 0 | L13: 0.5 | M13: =IF(D13="Preservation",((J13*0.1)*M11),(K11+L14)*M11) -> 0 | N13: =IF(H11="Second",(J13*N12),IF(H11="Third",(J13*N12),(J13/I14*N12))) -> 
H14: =IF(H13="Primary",1,IF(H13="Second",0.2,IF(H13="Third",0.1,IF(H13="Select",0)))) -> 0 | I14: =IF(AND(B13="Piedmont",I13>0.0001,I13<0.1),0.41, IF(AND(B13="Piedmont",I13>10), 2.45, IF(B13="Piedmont",I13^0.39, IF(AND(B13="Coastal Plain",I13>0.0001,I13<0.1),0.42,IF(AND(B13="Coastal Plain",I13>10),2.4, IF(B13="Coastal Plain",I13^0.38, IF(AND(B13="Mountain",I13>0.0001,I13<0.1),0.36,IF(AND(B13="Mountain",I13>10),2.75,IF(B13="Mountain",I13^0.44))))))))) -> FALSE | L14: =IF(AND(H11="Primary",L11="Length Loss"), L12*G11*I12*L13*-1,IF(AND(H11="Primary", L11="Length Gain"),L12*G13*I14*L13*-1,0)) -> 0
B15: Not Selected | C15: Existing | D15: Preliminary Resource Evaluation | E15: Select | H15: Select | J15: =IF(H15="Second",(F15*G15*H16*1), IF(H15="Third",(F15*G15*H16*1), (F15*G15*H16*I16))) -> 0 | K15: =J17-J15 -> 0 | L15: =IF(F15>F17, "Length Loss", IF(F15<F17, "Length Gain", IF(F15=F17, "No Change"))) -> Length Gain | M15: 0 | N15: Existing: Select From Dropdown | O15: Proposed: Select From Dropdown | P15: =IF(D17="Restoration/Enhancement",SUM(K15,L18,M17,N17),IF(D17="Preservation",((0.1*J17)+M17+N17),"NA")) -> NA
H16: =IF(H15="Primary",1,IF(H15="Second",0.2,IF(H15="Third",0.1,IF(H15="Select",0)))) -> 0 | I16: =IF(AND(B15="Piedmont",I15>0.0001,I15<0.1),0.41, IF(AND(B15="Piedmont",I15>10), 2.45, IF(B15="Piedmont",I15^0.39, IF(AND(B15="Coastal Plain",I15>0.0001,I15<0.1),0.42,IF(AND(B15="Coastal Plain",I15>10),2.4, IF(B15="Coastal Plain",I15^0.38, IF(AND(B15="Mountain",I15>0.0001,I15<0.1),0.36,IF(AND(B15="Mountain",I15>10),2.75,IF(B15="Mountain",I15^0.44))))))))) -> FALSE | L16: =F17-F15 -> 325 | N16: =IF(AND(N15="No Existing Protection",O15="Deed Restriction"), 0.02, IF(AND(N15="No Existing Protection",O15="Easement"), 0.05, IF(AND(N15="No Existing Protection", O15="Accredited Easement"), 0.07, IF(AND(N15="No Existing Protection", O15="Fee Simple to Conservation Holder"), 0.09, IF(AND(N15="Agricultural Easement",O15="Deed Restriction"), 0.01, IF(AND(N15="Agricultural Easement",O15="Easement"), 0.04, IF(AND(N15="Agricultural Easement", O15="Accredited Easement"), 0.06, IF(AND(N15="Agricultural Easement", O15="Fee Simple to Conservation Holder"), 0.09, IF(AND(N15="Environmental Easement",O15="Deed Restriction"), 0, IF(AND(N15="Environmental Easement", O15="Easement"), 0.02, IF(AND(N15="Environmental Easement", O15="Accredited Easement"), 0.03, IF(AND(N15="Public Land", O15="Public Land MOA"), 0.02, 0)))))))))))) -> 0
B17: =B15 -> Not Selected | C17: Proposed | D17: Select from Dropdown | E17: Select | F17: 325 | H17: =H15 -> Select | I17: =I15 -> 0 | J17: =IF(H17="Second",(F17*G17*H18*1), IF(H17="Third",(F17*G17*H18*1), (F17*G17*H18*I18))) -> 0 | L17: 0.5 | M17: =IF(D17="Preservation",((J17*0.1)*M15),(K15+L18)*M15) -> 0 | N17: =IF(H15="Second",(J17*N16),IF(H15="Third",(J17*N16),(J17/I18*N16))) -> 
H18: =IF(H17="Primary",1,IF(H17="Second",0.2,IF(H17="Third",0.1,IF(H17="Select",0)))) -> 0 | I18: =IF(AND(B17="Piedmont",I17>0.0001,I17<0.1),0.41, IF(AND(B17="Piedmont",I17>10), 2.45, IF(B17="Piedmont",I17^0.39, IF(AND(B17="Coastal Plain",I17>0.0001,I17<0.1),0.42,IF(AND(B17="Coastal Plain",I17>10),2.4, IF(B17="Coastal Plain",I17^0.38, IF(AND(B17="Mountain",I17>0.0001,I17<0.1),0.36,IF(AND(B17="Mountain",I17>10),2.75,IF(B17="Mountain",I17^0.44))))))))) -> FALSE | L18: =IF(AND(H15="Primary",L15="Length Loss"), L16*G15*I16*L17*-1,IF(AND(H15="Primary", L15="Length Gain"),L16*G17*I18*L17*-1,0)) -> 0
B19: Not Selected | C19: Existing | D19: Preliminary Resource Evaluation | E19: Select | H19: Select | J19: =IF(H19="Second",(F19*G19*H20*1), IF(H19="Third",(F19*G19*H20*1), (F19*G19*H20*I20))) -> 0 | K19: =J21-J19 -> 0 | L19: =IF(F19>F21, "Length Loss", IF(F19<F21, "Length Gain", IF(F19=F21, "No Change"))) -> No Change | M19: 0 | N19: Existing: Select From Dropdown | O19: Proposed: Select From Dropdown | P19: =IF(D21="Restoration/Enhancement",SUM(K19,L22,M21,N21),IF(D21="Preservation",((0.1*J21)+M21+N21),"NA")) -> NA
H20: =IF(H19="Primary",1,IF(H19="Second",0.2,IF(H19="Third",0.1,IF(H19="Select",0)))) -> 0 | I20: =IF(AND(B19="Piedmont",I19>0.0001,I19<0.1),0.41, IF(AND(B19="Piedmont",I19>10), 2.45, IF(B19="Piedmont",I19^0.39, IF(AND(B19="Coastal Plain",I19>0.0001,I19<0.1),0.42,IF(AND(B19="Coastal Plain",I19>10),2.4, IF(B19="Coastal Plain",I19^0.38, IF(AND(B19="Mountain",I19>0.0001,I19<0.1),0.36,IF(AND(B19="Mountain",I19>10),2.75,IF(B19="Mountain",I19^0.44))))))))) -> FALSE | L20: =F21-F19 -> 0 | N20: =IF(AND(N19="No Existing Protection",O19="Deed Restriction"), 0.02, IF(AND(N19="No Existing Protection",O19="Easement"), 0.05, IF(AND(N19="No Existing Protection", O19="Accredited Easement"), 0.07, IF(AND(N19="No Existing Protection", O19="Fee Simple to Conservation Holder"), 0.09, IF(AND(N19="Agricultural Easement",O19="Deed Restriction"), 0.01, IF(AND(N19="Agricultural Easement",O19="Easement"), 0.04, IF(AND(N19="Agricultural Easement", O19="Accredited Easement"), 0.06, IF(AND(N19="Agricultural Easement", O19="Fee Simple to Conservation Holder"), 0.09, IF(AND(N19="Environmental Easement",O19="Deed Restriction"), 0, IF(AND(N19="Environmental Easement", O19="Easement"), 0.02, IF(AND(N19="Environmental Easement", O19="Accredited Easement"), 0.03, IF(AND(N19="Public Land", O19="Public Land MOA"), 0.02, 0)))))))))))) -> 0
B21: =B19 -> Not Selected | C21: Proposed | D21: Select from Dropdown | E21: Select | H21: =H19 -> Select | I21: =I19 -> 0 | J21: =IF(H21="Second",(F21*G21*H22*1), IF(H21="Third",(F21*G21*H22*1), (F21*G21*H22*I22))) -> 0 | L21: 0.5 | M21: =IF(D21="Preservation",((J21*0.1)*M19),(K19+L22)*M19) -> 0 | N21: =IF(H19="Second",(J21*N20),IF(H19="Third",(J21*N20),(J21/I22*N20))) -> 
H22: =IF(H21="Primary",1,IF(H21="Second",0.2,IF(H21="Third",0.1,IF(H21="Select",0)))) -> 0 | I22: =IF(AND(B21="Piedmont",I21>0.0001,I21<0.1),0.41, IF(AND(B21="Piedmont",I21>10), 2.45, IF(B21="Piedmont",I21^0.39, IF(AND(B21="Coastal Plain",I21>0.0001,I21<0.1),0.42,IF(AND(B21="Coastal Plain",I21>10),2.4, IF(B21="Coastal Plain",I21^0.38, IF(AND(B21="Mountain",I21>0.0001,I21<0.1),0.36,IF(AND(B21="Mountain",I21>10),2.75,IF(B21="Mountain",I21^0.44))))))))) -> FALSE | L22: =IF(AND(H19="Primary",L19="Length Loss"), L20*G19*I20*L21*-1,IF(AND(H19="Primary", L19="Length Gain"),L20*G21*I22*L21*-1,0)) -> 0
B23: Not Selected | C23: Existing | D23: Preliminary Resource Evaluation | E23: Select | H23: Select | J23: =IF(H23="Second",(F23*G23*H24*1), IF(H23="Third",(F23*G23*H24*1), (F23*G23*H24*I24))) -> 0 | K23: =J25-J23 -> 0 | L23: =IF(F23>F25, "Length Loss", IF(F23<F25, "Length Gain", IF(F23=F25, "No Change"))) -> No Change | M23: 0 | N23: Existing: Select From Dropdown | O23: Proposed: Select From Dropdown | P23: =IF(D25="Restoration/Enhancement",SUM(K23,L26,M25,N25),IF(D25="Preservation",((0.1*J25)+M25+N25),"NA")) -> NA
H24: =IF(H23="Primary",1,IF(H23="Second",0.2,IF(H23="Third",0.1,IF(H23="Select",0)))) -> 0 | I24: =IF(AND(B23="Piedmont",I23>0.0001,I23<0.1),0.41, IF(AND(B23="Piedmont",I23>10), 2.45, IF(B23="Piedmont",I23^0.39, IF(AND(B23="Coastal Plain",I23>0.0001,I23<0.1),0.42,IF(AND(B23="Coastal Plain",I23>10),2.4, IF(B23="Coastal Plain",I23^0.38, IF(AND(B23="Mountain",I23>0.0001,I23<0.1),0.36,IF(AND(B23="Mountain",I23>10),2.75,IF(B23="Mountain",I23^0.44))))))))) -> FALSE | L24: =F25-F23 -> 0 | N24: =IF(AND(N23="No Existing Protection",O23="Deed Restriction"), 0.02, IF(AND(N23="No Existing Protection",O23="Easement"), 0.05, IF(AND(N23="No Existing Protection", O23="Accredited Easement"), 0.07, IF(AND(N23="No Existing Protection", O23="Fee Simple to Conservation Holder"), 0.09, IF(AND(N23="Agricultural Easement",O23="Deed Restriction"), 0.01, IF(AND(N23="Agricultural Easement",O23="Easement"), 0.04, IF(AND(N23="Agricultural Easement", O23="Accredited Easement"), 0.06, IF(AND(N23="Agricultural Easement", O23="Fee Simple to Conservation Holder"), 0.09, IF(AND(N23="Environmental Easement",O23="Deed Restriction"), 0, IF(AND(N23="Environmental Easement", O23="Easement"), 0.02, IF(AND(N23="Environmental Easement", O23="Accredited Easement"), 0.03, IF(AND(N23="Public Land", O23="Public Land MOA"), 0.02, 0)))))))))))) -> 0
B25: =B23 -> Not Selected | C25: Proposed | D25: Select from Dropdown | E25: Select | H25: =H23 -> Select | I25: =I23 -> 0 | J25: =IF(H25="Second",(F25*G25*H26*1), IF(H25="Third",(F25*G25*H26*1), (F25*G25*H26*I26))) -> 0 | L25: 0.5 | M25: =IF(D25="Preservation",((J25*0.1)*M23),(K23+L26)*M23) -> 0 | N25: =IF(H23="Second",(J25*N24),IF(H23="Third",(J25*N24),(J25/I26*N24))) -> 
H26: =IF(H25="Primary",1,IF(H25="Second",0.2,IF(H25="Third",0.1,IF(H25="Select",0)))) -> 0 | I26: =IF(AND(B25="Piedmont",I25>0.0001,I25<0.1),0.41, IF(AND(B25="Piedmont",I25>10), 2.45, IF(B25="Piedmont",I25^0.39, IF(AND(B25="Coastal Plain",I25>0.0001,I25<0.1),0.42,IF(AND(B25="Coastal Plain",I25>10),2.4, IF(B25="Coastal Plain",I25^0.38, IF(AND(B25="Mountain",I25>0.0001,I25<0.1),0.36,IF(AND(B25="Mountain",I25>10),2.75,IF(B25="Mountain",I25^0.44))))))))) -> FALSE | L26: =IF(AND(H23="Primary",L23="Length Loss"), L24*G23*I24*L25*-1,IF(AND(H23="Primary", L23="Length Gain"),L24*G25*I26*L25*-1,0)) -> 0
B27: Not Selected | C27: Existing | D27: Preliminary Resource Evaluation | E27: Select | H27: Select | J27: =IF(H27="Second",(F27*G27*H28*1), IF(H27="Third",(F27*G27*H28*1), (F27*G27*H28*I28))) -> 0 | K27: =J29-J27 -> 0 | L27: =IF(F27>F29, "Length Loss", IF(F27<F29, "Length Gain", IF(F27=F29, "No Change"))) -> No Change | M27: 0 | N27: Existing: Select From Dropdown | O27: Proposed: Select From Dropdown | P27: =IF(D29="Restoration/Enhancement",SUM(K27,L30,M29,N29),IF(D29="Preservation",((0.1*J29)+M29+N29),"NA")) -> NA
H28: =IF(H27="Primary",1,IF(H27="Second",0.2,IF(H27="Third",0.1,IF(H27="Select",0)))) -> 0 | I28: =IF(AND(B27="Piedmont",I27>0.0001,I27<0.1),0.41, IF(AND(B27="Piedmont",I27>10), 2.45, IF(B27="Piedmont",I27^0.39, IF(AND(B27="Coastal Plain",I27>0.0001,I27<0.1),0.42,IF(AND(B27="Coastal Plain",I27>10),2.4, IF(B27="Coastal Plain",I27^0.38, IF(AND(B27="Mountain",I27>0.0001,I27<0.1),0.36,IF(AND(B27="Mountain",I27>10),2.75,IF(B27="Mountain",I27^0.44))))))))) -> FALSE | L28: =F29-F27 -> 0 | N28: =IF(AND(N27="No Existing Protection",O27="Deed Restriction"), 0.02, IF(AND(N27="No Existing Protection",O27="Easement"), 0.05, IF(AND(N27="No Existing Protection", O27="Accredited Easement"), 0.07, IF(AND(N27="No Existing Protection", O27="Fee Simple to Conservation Holder"), 0.09, IF(AND(N27="Agricultural Easement",O27="Deed Restriction"), 0.01, IF(AND(N27="Agricultural Easement",O27="Easement"), 0.04, IF(AND(N27="Agricultural Easement", O27="Accredited Easement"), 0.06, IF(AND(N27="Agricultural Easement", O27="Fee Simple to Conservation Holder"), 0.09, IF(AND(N27="Environmental Easement",O27="Deed Restriction"), 0, IF(AND(N27="Environmental Easement", O27="Easement"), 0.02, IF(AND(N27="Environmental Easement", O27="Accredited Easement"), 0.03, IF(AND(N27="Public Land", O27="Public Land MOA"), 0.02, 0)))))))))))) -> 0
B29: =B27 -> Not Selected | C29: Proposed | D29: Select from Dropdown | E29: Select | H29: =H27 -> Select | I29: 0 | J29: =IF(H29="Second",(F29*G29*H30*1), IF(H29="Third",(F29*G29*H30*1), (F29*G29*H30*I30))) -> 0 | L29: 0.5 | M29: =IF(D29="Preservation",((J29*0.1)*M27),(K27+L30)*M27) -> 0 | N29: =IF(H27="Second",(J29*N28),IF(H27="Third",(J29*N28),(J29/I30*N28))) -> 
H30: =IF(H29="Primary",1,IF(H29="Second",0.2,IF(H29="Third",0.1,IF(H29="Select",0)))) -> 0 | I30: =IF(AND(B29="Piedmont",I29>0.0001,I29<0.1),0.41, IF(AND(B29="Piedmont",I29>10), 2.45, IF(B29="Piedmont",I29^0.39, IF(AND(B29="Coastal Plain",I29>0.0001,I29<0.1),0.42,IF(AND(B29="Coastal Plain",I29>10),2.4, IF(B29="Coastal Plain",I29^0.38, IF(AND(B29="Mountain",I29>0.0001,I29<0.1),0.36,IF(AND(B29="Mountain",I29>10),2.75,IF(B29="Mountain",I29^0.44))))))))) -> FALSE | L30: =IF(AND(H27="Primary",L27="Length Loss"), L28*G27*I28*L29*-1,IF(AND(H27="Primary", L27="Length Gain"),L28*G29*I30*L29*-1,0)) -> 0
B31: Not Selected | C31: Existing | D31: Preliminary Resource Evaluation | E31: Select | H31: Select | J31: =IF(H31="Second",(F31*G31*H32*1), IF(H31="Third",(F31*G31*H32*1), (F31*G31*H32*I32))) -> 0 | K31: =J33-J31 -> 0 | L31: =IF(F31>F33, "Length Loss", IF(F31<F33, "Length Gain", IF(F31=F33, "No Change"))) -> No Change | M31: 0 | N31: Existing: Select From Dropdown | O31: Proposed: Select From Dropdown | P31: =IF(D33="Restoration/Enhancement",SUM(K31,L34,M33,N33),IF(D33="Preservation",((0.1*J33)+M33+N33),"NA")) -> NA
H32: =IF(H31="Primary",1,IF(H31="Second",0.2,IF(H31="Third",0.1,IF(H31="Select",0)))) -> 0 | I32: =IF(AND(B31="Piedmont",I31>0.0001,I31<0.1),0.41, IF(AND(B31="Piedmont",I31>10), 2.45, IF(B31="Piedmont",I31^0.39, IF(AND(B31="Coastal Plain",I31>0.0001,I31<0.1),0.42,IF(AND(B31="Coastal Plain",I31>10),2.4, IF(B31="Coastal Plain",I31^0.38, IF(AND(B31="Mountain",I31>0.0001,I31<0.1),0.36,IF(AND(B31="Mountain",I31>10),2.75,IF(B31="Mountain",I31^0.44))))))))) -> FALSE | L32: =F33-F31 -> 0 | N32: =IF(AND(N31="No Existing Protection",O31="Deed Restriction"), 0.02, IF(AND(N31="No Existing Protection",O31="Easement"), 0.05, IF(AND(N31="No Existing Protection", O31="Accredited Easement"), 0.07, IF(AND(N31="No Existing Protection", O31="Fee Simple to Conservation Holder"), 0.09, IF(AND(N31="Agricultural Easement",O31="Deed Restriction"), 0.01, IF(AND(N31="Agricultural Easement",O31="Easement"), 0.04, IF(AND(N31="Agricultural Easement", O31="Accredited Easement"), 0.06, IF(AND(N31="Agricultural Easement", O31="Fee Simple to Conservation Holder"), 0.09, IF(AND(N31="Environmental Easement",O31="Deed Restriction"), 0, IF(AND(N31="Environmental Easement", O31="Easement"), 0.02, IF(AND(N31="Environmental Easement", O31="Accredited Easement"), 0.03, IF(AND(N31="Public Land", O31="Public Land MOA"), 0.02, 0)))))))))))) -> 0
B33: =B31 -> Not Selected | C33: Proposed | D33: Select from Dropdown | E33: Select | H33: =H31 -> Select | I33: 0 | J33: =IF(H33="Second",(F33*G33*H34*1), IF(H33="Third",(F33*G33*H34*1), (F33*G33*H34*I34))) -> 0 | L33: 0.5 | M33: =IF(D33="Preservation",((J33*0.1)*M31),(K31+L34)*M31) -> 0 | N33: =IF(H31="Second",(J33*N32),IF(H31="Third",(J33*N32),(J33/I34*N32))) -> 
H34: =IF(H33="Primary",1,IF(H33="Second",0.2,IF(H33="Third",0.1,IF(H33="Select",0)))) -> 0 | I34: =IF(AND(B33="Piedmont",I33>0.0001,I33<0.1),0.41, IF(AND(B33="Piedmont",I33>10), 2.45, IF(B33="Piedmont",I33^0.39, IF(AND(B33="Coastal Plain",I33>0.0001,I33<0.1),0.42,IF(AND(B33="Coastal Plain",I33>10),2.4, IF(B33="Coastal Plain",I33^0.38, IF(AND(B33="Mountain",I33>0.0001,I33<0.1),0.36,IF(AND(B33="Mountain",I33>10),2.75,IF(B33="Mountain",I33^0.44))))))))) -> FALSE | L34: =IF(AND(H31="Primary",L31="Length Loss"), L32*G31*I32*L33*-1,IF(AND(H31="Primary", L31="Length Gain"),L32*G33*I34*L33*-1,0)) -> 0
B35: Not Selected | C35: Existing | D35: Preliminary Resource Evaluation | E35: Select | H35: Select | J35: =IF(H35="Second",(F35*G35*H36*1), IF(H35="Third",(F35*G35*H36*1), (F35*G35*H36*I36))) -> 0 | K35: =J37-J35 -> 0 | L35: =IF(F35>F37, "Length Loss", IF(F35<F37, "Length Gain", IF(F35=F37, "No Change"))) -> No Change | M35: 0 | N35: Existing: Select From Dropdown | O35: Proposed: Select From Dropdown | P35: =IF(D37="Restoration/Enhancement",SUM(K35,L38,M37,N37),IF(D37="Preservation",((0.1*J37)+M37+N37),"NA")) -> NA
H36: =IF(H35="Primary",1,IF(H35="Second",0.2,IF(H35="Third",0.1,IF(H35="Select",0)))) -> 0 | I36: =IF(AND(B35="Piedmont",I35>0.0001,I35<0.1),0.41, IF(AND(B35="Piedmont",I35>10), 2.45, IF(B35="Piedmont",I35^0.39, IF(AND(B35="Coastal Plain",I35>0.0001,I35<0.1),0.42,IF(AND(B35="Coastal Plain",I35>10),2.4, IF(B35="Coastal Plain",I35^0.38, IF(AND(B35="Mountain",I35>0.0001,I35<0.1),0.36,IF(AND(B35="Mountain",I35>10),2.75,IF(B35="Mountain",I35^0.44))))))))) -> FALSE | L36: =F37-F35 -> 0 | N36: =IF(AND(N35="No Existing Protection",O35="Deed Restriction"), 0.02, IF(AND(N35="No Existing Protection",O35="Easement"), 0.05, IF(AND(N35="No Existing Protection", O35="Accredited Easement"), 0.07, IF(AND(N35="No Existing Protection", O35="Fee Simple to Conservation Holder"), 0.09, IF(AND(N35="Agricultural Easement",O35="Deed Restriction"), 0.01, IF(AND(N35="Agricultural Easement",O35="Easement"), 0.04, IF(AND(N35="Agricultural Easement", O35="Accredited Easement"), 0.06, IF(AND(N35="Agricultural Easement", O35="Fee Simple to Conservation Holder"), 0.09, IF(AND(N35="Environmental Easement",O35="Deed Restriction"), 0, IF(AND(N35="Environmental Easement", O35="Easement"), 0.02, IF(AND(N35="Environmental Easement", O35="Accredited Easement"), 0.03, IF(AND(N35="Public Land", O35="Public Land MOA"), 0.02, 0)))))))))))) -> 0
B37: =B35 -> Not Selected | C37: Proposed | D37: Select from Dropdown | E37: Select | H37: =H35 -> Select | I37: 0 | J37: =IF(H37="Second",(F37*G37*H38*1), IF(H37="Third",(F37*G37*H38*1), (F37*G37*H38*I38))) -> 0 | L37: 0.5 | M37: =IF(D37="Preservation",((J37*0.1)*M35),(K35+L38)*M35) -> 0 | N37: =IF(H35="Second",(J37*N36),IF(H35="Third",(J37*N36),(J37/I38*N36))) -> 
H38: =IF(H37="Primary",1,IF(H37="Second",0.2,IF(H37="Third",0.1,IF(H37="Select",0)))) -> 0 | I38: =IF(AND(B37="Piedmont",I37>0.0001,I37<0.1),0.41, IF(AND(B37="Piedmont",I37>10), 2.45, IF(B37="Piedmont",I37^0.39, IF(AND(B37="Coastal Plain",I37>0.0001,I37<0.1),0.42,IF(AND(B37="Coastal Plain",I37>10),2.4, IF(B37="Coastal Plain",I37^0.38, IF(AND(B37="Mountain",I37>0.0001,I37<0.1),0.36,IF(AND(B37="Mountain",I37>10),2.75,IF(B37="Mountain",I37^0.44))))))))) -> FALSE | L38: =IF(AND(H35="Primary",L35="Length Loss"), L36*G35*I36*L37*-1,IF(AND(H35="Primary", L35="Length Gain"),L36*G37*I38*L37*-1,0)) -> 0
B39: Not Selected | C39: Existing | D39: Preliminary Resource Evaluation | E39: Select | H39: Select | J39: =IF(H39="Second",(F39*G39*H40*1), IF(H39="Third",(F39*G39*H40*1), (F39*G39*H40*I40))) -> 0 | K39: =J41-J39 -> 0 | L39: =IF(F39>F41, "Length Loss", IF(F39<F41, "Length Gain", IF(F39=F41, "No Change"))) -> No Change | M39: 0 | N39: Existing: Select From Dropdown | O39: Proposed: Select From Dropdown | P39: =IF(D41="Restoration/Enhancement",SUM(K39,L42,M41,N41),IF(D41="Preservation",((0.1*J41)+M41+N41),"NA")) -> NA
H40: =IF(H39="Primary",1,IF(H39="Second",0.2,IF(H39="Third",0.1,IF(H39="Select",0)))) -> 0 | I40: =IF(AND(B39="Piedmont",I39>0.0001,I39<0.1),0.41, IF(AND(B39="Piedmont",I39>10), 2.45, IF(B39="Piedmont",I39^0.39, IF(AND(B39="Coastal Plain",I39>0.0001,I39<0.1),0.42,IF(AND(B39="Coastal Plain",I39>10),2.4, IF(B39="Coastal Plain",I39^0.38, IF(AND(B39="Mountain",I39>0.0001,I39<0.1),0.36,IF(AND(B39="Mountain",I39>10),2.75,IF(B39="Mountain",I39^0.44))))))))) -> FALSE | L40: =F41-F39 -> 0 | N40: =IF(AND(N39="No Existing Protection",O39="Deed Restriction"), 0.02, IF(AND(N39="No Existing Protection",O39="Easement"), 0.05, IF(AND(N39="No Existing Protection", O39="Accredited Easement"), 0.07, IF(AND(N39="No Existing Protection", O39="Fee Simple to Conservation Holder"), 0.09, IF(AND(N39="Agricultural Easement",O39="Deed Restriction"), 0.01, IF(AND(N39="Agricultural Easement",O39="Easement"), 0.04, IF(AND(N39="Agricultural Easement", O39="Accredited Easement"), 0.06, IF(AND(N39="Agricultural Easement", O39="Fee Simple to Conservation Holder"), 0.09, IF(AND(N39="Environmental Easement",O39="Deed Restriction"), 0, IF(AND(N39="Environmental Easement", O39="Easement"), 0.02, IF(AND(N39="Environmental Easement", O39="Accredited Easement"), 0.03, IF(AND(N39="Public Land", O39="Public Land MOA"), 0.02, 0)))))))))))) -> 0
B41: =B39 -> Not Selected | C41: Proposed | D41: Select from Dropdown | E41: Select | H41: =H39 -> Select | I41: 0 | J41: =IF(H41="Second",(F41*G41*H42*1), IF(H41="Third",(F41*G41*H42*1), (F41*G41*H42*I42))) -> 0 | L41: 0.5 | M41: =IF(D41="Preservation",((J41*0.1)*M39),(K39+L42)*M39) -> 0 | N41: =IF(H39="Second",(J41*N40),IF(H39="Third",(J41*N40),(J41/I42*N40))) -> 
H42: =IF(H41="Primary",1,IF(H41="Second",0.2,IF(H41="Third",0.1,IF(H41="Select",0)))) -> 0 | I42: =IF(AND(B41="Piedmont",I41>0.0001,I41<0.1),0.41, IF(AND(B41="Piedmont",I41>10), 2.45, IF(B41="Piedmont",I41^0.39, IF(AND(B41="Coastal Plain",I41>0.0001,I41<0.1),0.42,IF(AND(B41="Coastal Plain",I41>10),2.4, IF(B41="Coastal Plain",I41^0.38, IF(AND(B41="Mountain",I41>0.0001,I41<0.1),0.36,IF(AND(B41="Mountain",I41>10),2.75,IF(B41="Mountain",I41^0.44))))))))) -> FALSE | L42: =IF(AND(H39="Primary",L39="Length Loss"), L40*G39*I40*L41*-1,IF(AND(H39="Primary", L39="Length Gain"),L40*G41*I42*L41*-1,0)) -> 0
B43: Not Selected | C43: Existing | D43: Preliminary Resource Evaluation | E43: Select | H43: Select | J43: =IF(H43="Second",(F43*G43*H44*1), IF(H43="Third",(F43*G43*H44*1), (F43*G43*H44*I44))) -> 0 | K43: =J45-J43 -> 0 | L43: =IF(F43>F45, "Length Loss", IF(F43<F45, "Length Gain", IF(F43=F45, "No Change"))) -> No Change | M43: 0 | N43: Existing: Select From Dropdown | O43: Proposed: Select From Dropdown | P43: =IF(D45="Restoration/Enhancement",SUM(K43,L46,M45,N45),IF(D45="Preservation",((0.1*J45)+M45+N45),"NA")) -> NA
H44: =IF(H43="Primary",1,IF(H43="Second",0.2,IF(H43="Third",0.1,IF(H43="Select",0)))) -> 0 | I44: =IF(AND(B43="Piedmont",I43>0.0001,I43<0.1),0.41, IF(AND(B43="Piedmont",I43>10), 2.45, IF(B43="Piedmont",I43^0.39, IF(AND(B43="Coastal Plain",I43>0.0001,I43<0.1),0.42,IF(AND(B43="Coastal Plain",I43>10),2.4, IF(B43="Coastal Plain",I43^0.38, IF(AND(B43="Mountain",I43>0.0001,I43<0.1),0.36,IF(AND(B43="Mountain",I43>10),2.75,IF(B43="Mountain",I43^0.44))))))))) -> FALSE | L44: =F45-F43 -> 0 | N44: =IF(AND(N43="No Existing Protection",O43="Deed Restriction"), 0.02, IF(AND(N43="No Existing Protection",O43="Easement"), 0.05, IF(AND(N43="No Existing Protection", O43="Accredited Easement"), 0.07, IF(AND(N43="No Existing Protection", O43="Fee Simple to Conservation Holder"), 0.09, IF(AND(N43="Agricultural Easement",O43="Deed Restriction"), 0.01, IF(AND(N43="Agricultural Easement",O43="Easement"), 0.04, IF(AND(N43="Agricultural Easement", O43="Accredited Easement"), 0.06, IF(AND(N43="Agricultural Easement", O43="Fee Simple to Conservation Holder"), 0.09, IF(AND(N43="Environmental Easement",O43="Deed Restriction"), 0, IF(AND(N43="Environmental Easement", O43="Easement"), 0.02, IF(AND(N43="Environmental Easement", O43="Accredited Easement"), 0.03, IF(AND(N43="Public Land", O43="Public Land MOA"), 0.02, 0)))))))))))) -> 0
B45: =B43 -> Not Selected | C45: Proposed | D45: Select from Dropdown | E45: Select | H45: =H43 -> Select | I45: 0 | J45: =IF(H45="Second",(F45*G45*H46*1), IF(H45="Third",(F45*G45*H46*1), (F45*G45*H46*I46))) -> 0 | L45: 0.5 | M45: =IF(D45="Preservation",((J45*0.1)*M43),(K43+L46)*M43) -> 0 | N45: =IF(H43="Second",(J45*N44),IF(H43="Third",(J45*N44),(J45/I46*N44))) -> 
H46: =IF(H45="Primary",1,IF(H45="Second",0.2,IF(H45="Third",0.1,IF(H45="Select",0)))) -> 0 | I46: =IF(AND(B45="Piedmont",I45>0.0001,I45<0.1),0.41, IF(AND(B45="Piedmont",I45>10), 2.45, IF(B45="Piedmont",I45^0.39, IF(AND(B45="Coastal Plain",I45>0.0001,I45<0.1),0.42,IF(AND(B45="Coastal Plain",I45>10),2.4, IF(B45="Coastal Plain",I45^0.38, IF(AND(B45="Mountain",I45>0.0001,I45<0.1),0.36,IF(AND(B45="Mountain",I45>10),2.75,IF(B45="Mountain",I45^0.44))))))))) -> FALSE | L46: =IF(AND(H43="Primary",L43="Length Loss"), L44*G43*I44*L45*-1,IF(AND(H43="Primary", L43="Length Gain"),L44*G45*I46*L45*-1,0)) -> 0
B47: Not Selected | C47: Existing | D47: Preliminary Resource Evaluation | E47: Select | H47: Select | J47: =IF(H47="Second",(F47*G47*H48*1), IF(H47="Third",(F47*G47*H48*1), (F47*G47*H48*I48))) -> 0 | K47: =J49-J47 -> 0 | L47: =IF(F47>F49, "Length Loss", IF(F47<F49, "Length Gain", IF(F47=F49, "No Change"))) -> No Change | M47: 0 | N47: Existing: Select From Dropdown | O47: Proposed: Select From Dropdown | P47: =IF(D49="Restoration/Enhancement",SUM(K47,L50,M49,N49),IF(D49="Preservation",((0.1*J49)+M49+N49),"NA")) -> NA
H48: =IF(H47="Primary",1,IF(H47="Second",0.2,IF(H47="Third",0.1,IF(H47="Select",0)))) -> 0 | I48: =IF(AND(B47="Piedmont",I47>0.0001,I47<0.1),0.41, IF(AND(B47="Piedmont",I47>10), 2.45, IF(B47="Piedmont",I47^0.39, IF(AND(B47="Coastal Plain",I47>0.0001,I47<0.1),0.42,IF(AND(B47="Coastal Plain",I47>10),2.4, IF(B47="Coastal Plain",I47^0.38, IF(AND(B47="Mountain",I47>0.0001,I47<0.1),0.36,IF(AND(B47="Mountain",I47>10),2.75,IF(B47="Mountain",I47^0.44))))))))) -> FALSE | L48: =F49-F47 -> 0 | N48: =IF(AND(N47="No Existing Protection",O47="Deed Restriction"), 0.02, IF(AND(N47="No Existing Protection",O47="Easement"), 0.05, IF(AND(N47="No Existing Protection", O47="Accredited Easement"), 0.07, IF(AND(N47="No Existing Protection", O47="Fee Simple to Conservation Holder"), 0.09, IF(AND(N47="Agricultural Easement",O47="Deed Restriction"), 0.01, IF(AND(N47="Agricultural Easement",O47="Easement"), 0.04, IF(AND(N47="Agricultural Easement", O47="Accredited Easement"), 0.06, IF(AND(N47="Agricultural Easement", O47="Fee Simple to Conservation Holder"), 0.09, IF(AND(N47="Environmental Easement",O47="Deed Restriction"), 0, IF(AND(N47="Environmental Easement", O47="Easement"), 0.02, IF(AND(N47="Environmental Easement", O47="Accredited Easement"), 0.03, IF(AND(N47="Public Land", O47="Public Land MOA"), 0.02, 0)))))))))))) -> 0
B49: =B47 -> Not Selected | C49: Proposed | D49: Select from Dropdown | E49: Select | H49: =H47 -> Select | I49: 0 | J49: =IF(H49="Second",(F49*G49*H50*1), IF(H49="Third",(F49*G49*H50*1), (F49*G49*H50*I50))) -> 0 | L49: 0.5 | M49: =IF(D49="Preservation",((J49*0.1)*M47),(K47+L50)*M47) -> 0 | N49: =IF(H47="Second",(J49*N48),IF(H47="Third",(J49*N48),(J49/I50*N48))) -> 
H50: =IF(H49="Primary",1,IF(H49="Second",0.2,IF(H49="Third",0.1,IF(H49="Select",0)))) -> 0 | I50: =IF(AND(B49="Piedmont",I49>0.0001,I49<0.1),0.41, IF(AND(B49="Piedmont",I49>10), 2.45, IF(B49="Piedmont",I49^0.39, IF(AND(B49="Coastal Plain",I49>0.0001,I49<0.1),0.42,IF(AND(B49="Coastal Plain",I49>10),2.4, IF(B49="Coastal Plain",I49^0.38, IF(AND(B49="Mountain",I49>0.0001,I49<0.1),0.36,IF(AND(B49="Mountain",I49>10),2.75,IF(B49="Mountain",I49^0.44))))))))) -> FALSE | L50: =IF(AND(H47="Primary",L47="Length Loss"), L48*G47*I48*L49*-1,IF(AND(H47="Primary", L47="Length Gain"),L48*G49*I50*L49*-1,0)) -> 0
B51: Not Selected | C51: Existing | D51: Preliminary Resource Evaluation | E51: Select | H51: Select | J51: =IF(H51="Second",(F51*G51*H52*1), IF(H51="Third",(F51*G51*H52*1), (F51*G51*H52*I52))) -> 0 | K51: =J53-J51 -> 0 | L51: =IF(F51>F53, "Length Loss", IF(F51<F53, "Length Gain", IF(F51=F53, "No Change"))) -> No Change | M51: 0 | N51: Existing: Select From Dropdown | O51: Proposed: Select From Dropdown | P51: =IF(D53="Restoration/Enhancement",SUM(K51,L54,M53,N53),IF(D53="Preservation",((0.1*J53)+M53+N53),"NA")) -> NA
H52: =IF(H51="Primary",1,IF(H51="Second",0.2,IF(H51="Third",0.1,IF(H51="Select",0)))) -> 0 | I52: =IF(AND(B51="Piedmont",I51>0.0001,I51<0.1),0.41, IF(AND(B51="Piedmont",I51>10), 2.45, IF(B51="Piedmont",I51^0.39, IF(AND(B51="Coastal Plain",I51>0.0001,I51<0.1),0.42,IF(AND(B51="Coastal Plain",I51>10),2.4, IF(B51="Coastal Plain",I51^0.38, IF(AND(B51="Mountain",I51>0.0001,I51<0.1),0.36,IF(AND(B51="Mountain",I51>10),2.75,IF(B51="Mountain",I51^0.44))))))))) -> FALSE | L52: =F53-F51 -> 0 | N52: =IF(AND(N51="No Existing Protection",O51="Deed Restriction"), 0.02, IF(AND(N51="No Existing Protection",O51="Easement"), 0.05, IF(AND(N51="No Existing Protection", O51="Accredited Easement"), 0.07, IF(AND(N51="No Existing Protection", O51="Fee Simple to Conservation Holder"), 0.09, IF(AND(N51="Agricultural Easement",O51="Deed Restriction"), 0.01, IF(AND(N51="Agricultural Easement",O51="Easement"), 0.04, IF(AND(N51="Agricultural Easement", O51="Accredited Easement"), 0.06, IF(AND(N51="Agricultural Easement", O51="Fee Simple to Conservation Holder"), 0.09, IF(AND(N51="Environmental Easement",O51="Deed Restriction"), 0, IF(AND(N51="Environmental Easement", O51="Easement"), 0.02, IF(AND(N51="Environmental Easement", O51="Accredited Easement"), 0.03, IF(AND(N51="Public Land", O51="Public Land MOA"), 0.02, 0)))))))))))) -> 0
B53: =B51 -> Not Selected | C53: Proposed | D53: Select from Dropdown | E53: Select | H53: =H51 -> Select | I53: 0 | J53: =IF(H53="Second",(F53*G53*H54*1), IF(H53="Third",(F53*G53*H54*1), (F53*G53*H54*I54))) -> 0 | L53: 0.5 | M53: =IF(D53="Preservation",((J53*0.1)*M51),(K51+L54)*M51) -> 0 | N53: =IF(H51="Second",(J53*N52),IF(H51="Third",(J53*N52),(J53/I54*N52))) -> 
H54: =IF(H53="Primary",1,IF(H53="Second",0.2,IF(H53="Third",0.1,IF(H53="Select",0)))) -> 0 | I54: =IF(AND(B53="Piedmont",I53>0.0001,I53<0.1),0.41, IF(AND(B53="Piedmont",I53>10), 2.45, IF(B53="Piedmont",I53^0.39, IF(AND(B53="Coastal Plain",I53>0.0001,I53<0.1),0.42,IF(AND(B53="Coastal Plain",I53>10),2.4, IF(B53="Coastal Plain",I53^0.38, IF(AND(B53="Mountain",I53>0.0001,I53<0.1),0.36,IF(AND(B53="Mountain",I53>10),2.75,IF(B53="Mountain",I53^0.44))))))))) -> FALSE | L54: =IF(AND(H51="Primary",L51="Length Loss"), L52*G51*I52*L53*-1,IF(AND(H51="Primary", L51="Length Gain"),L52*G53*I54*L53*-1,0)) -> 0
B55: Not Selected | C55: Existing | D55: Preliminary Resource Evaluation | E55: Select | H55: Select | J55: =IF(H55="Second",(F55*G55*H56*1), IF(H55="Third",(F55*G55*H56*1), (F55*G55*H56*I56))) -> 0 | K55: =J57-J55 -> 0 | L55: =IF(F55>F57, "Length Loss", IF(F55<F57, "Length Gain", IF(F55=F57, "No Change"))) -> No Change | M55: 0 | N55: Existing: Select From Dropdown | O55: Proposed: Select From Dropdown | P55: =IF(D57="Restoration/Enhancement",SUM(K55,L58,M57,N57),IF(D57="Preservation",((0.1*J57)+M57+N57),"NA")) -> NA
H56: =IF(H55="Primary",1,IF(H55="Second",0.2,IF(H55="Third",0.1,IF(H55="Select",0)))) -> 0 | I56: =IF(AND(B55="Piedmont",I55>0.0001,I55<0.1),0.41, IF(AND(B55="Piedmont",I55>10), 2.45, IF(B55="Piedmont",I55^0.39, IF(AND(B55="Coastal Plain",I55>0.0001,I55<0.1),0.42,IF(AND(B55="Coastal Plain",I55>10),2.4, IF(B55="Coastal Plain",I55^0.38, IF(AND(B55="Mountain",I55>0.0001,I55<0.1),0.36,IF(AND(B55="Mountain",I55>10),2.75,IF(B55="Mountain",I55^0.44))))))))) -> FALSE | L56: =F57-F55 -> 0 | N56: =IF(AND(N55="No Existing Protection",O55="Deed Restriction"), 0.02, IF(AND(N55="No Existing Protection",O55="Easement"), 0.05, IF(AND(N55="No Existing Protection", O55="Accredited Easement"), 0.07, IF(AND(N55="No Existing Protection", O55="Fee Simple to Conservation Holder"), 0.09, IF(AND(N55="Agricultural Easement",O55="Deed Restriction"), 0.01, IF(AND(N55="Agricultural Easement",O55="Easement"), 0.04, IF(AND(N55="Agricultural Easement", O55="Accredited Easement"), 0.06, IF(AND(N55="Agricultural Easement", O55="Fee Simple to Conservation Holder"), 0.09, IF(AND(N55="Environmental Easement",O55="Deed Restriction"), 0, IF(AND(N55="Environmental Easement", O55="Easement"), 0.02, IF(AND(N55="Environmental Easement", O55="Accredited Easement"), 0.03, IF(AND(N55="Public Land", O55="Public Land MOA"), 0.02, 0)))))))))))) -> 0
B57: =B55 -> Not Selected | C57: Proposed | D57: Select from Dropdown | E57: Select | H57: =H55 -> Select | I57: 0 | J57: =IF(H57="Second",(F57*G57*H58*1), IF(H57="Third",(F57*G57*H58*1), (F57*G57*H58*I58))) -> 0 | L57: 0.5 | M57: =IF(D57="Preservation",((J57*0.1)*M55),(K55+L58)*M55) -> 0 | N57: =IF(H55="Second",(J57*N56),IF(H55="Third",(J57*N56),(J57/I58*N56))) -> 
H58: =IF(H57="Primary",1,IF(H57="Second",0.2,IF(H57="Third",0.1,IF(H57="Select",0)))) -> 0 | I58: =IF(AND(B57="Piedmont",I57>0.0001,I57<0.1),0.41, IF(AND(B57="Piedmont",I57>10), 2.45, IF(B57="Piedmont",I57^0.39, IF(AND(B57="Coastal Plain",I57>0.0001,I57<0.1),0.42,IF(AND(B57="Coastal Plain",I57>10),2.4, IF(B57="Coastal Plain",I57^0.38, IF(AND(B57="Mountain",I57>0.0001,I57<0.1),0.36,IF(AND(B57="Mountain",I57>10),2.75,IF(B57="Mountain",I57^0.44))))))))) -> FALSE | L58: =IF(AND(H55="Primary",L55="Length Loss"), L56*G55*I56*L57*-1,IF(AND(H55="Primary", L55="Length Gain"),L56*G57*I58*L57*-1,0)) -> 0
B59: Not Selected | C59: Existing | D59: Preliminary Resource Evaluation | E59: Select | H59: Select | J59: =IF(H59="Second",(F59*G59*H60*1), IF(H59="Third",(F59*G59*H60*1), (F59*G59*H60*I60))) -> 0 | K59: =J61-J59 -> 0 | L59: =IF(F59>F61, "Length Loss", IF(F59<F61, "Length Gain", IF(F59=F61, "No Change"))) -> No Change | M59: 0 | N59: Existing: Select From Dropdown | O59: Proposed: Select From Dropdown | P59: =IF(D61="Restoration/Enhancement",SUM(K59,L62,M61,N61),IF(D61="Preservation",((0.1*J61)+M61+N61),"NA")) -> NA
H60: =IF(H59="Primary",1,IF(H59="Second",0.2,IF(H59="Third",0.1,IF(H59="Select",0)))) -> 0 | I60: =IF(AND(B59="Piedmont",I59>0.0001,I59<0.1),0.41, IF(AND(B59="Piedmont",I59>10), 2.45, IF(B59="Piedmont",I59^0.39, IF(AND(B59="Coastal Plain",I59>0.0001,I59<0.1),0.42,IF(AND(B59="Coastal Plain",I59>10),2.4, IF(B59="Coastal Plain",I59^0.38, IF(AND(B59="Mountain",I59>0.0001,I59<0.1),0.36,IF(AND(B59="Mountain",I59>10),2.75,IF(B59="Mountain",I59^0.44))))))))) -> FALSE | L60: =F61-F59 -> 0 | N60: =IF(AND(N59="No Existing Protection",O59="Deed Restriction"), 0.02, IF(AND(N59="No Existing Protection",O59="Easement"), 0.05, IF(AND(N59="No Existing Protection", O59="Accredited Easement"), 0.07, IF(AND(N59="No Existing Protection", O59="Fee Simple to Conservation Holder"), 0.09, IF(AND(N59="Agricultural Easement",O59="Deed Restriction"), 0.01, IF(AND(N59="Agricultural Easement",O59="Easement"), 0.04, IF(AND(N59="Agricultural Easement", O59="Accredited Easement"), 0.06, IF(AND(N59="Agricultural Easement", O59="Fee Simple to Conservation Holder"), 0.09, IF(AND(N59="Environmental Easement",O59="Deed Restriction"), 0, IF(AND(N59="Environmental Easement", O59="Easement"), 0.02, IF(AND(N59="Environmental Easement", O59="Accredited Easement"), 0.03, IF(AND(N59="Public Land", O59="Public Land MOA"), 0.02, 0)))))))))))) -> 0
B61: =B59 -> Not Selected | C61: Proposed | D61: Select from Dropdown | E61: Select | H61: =H59 -> Select | I61: 0 | J61: =IF(H61="Second",(F61*G61*H62*1), IF(H61="Third",(F61*G61*H62*1), (F61*G61*H62*I62))) -> 0 | L61: 0.5 | M61: =IF(D61="Preservation",((J61*0.1)*M59),(K59+L62)*M59) -> 0 | N61: =IF(H59="Second",(J61*N60),IF(H59="Third",(J61*N60),(J61/I62*N60))) -> 
H62: =IF(H61="Primary",1,IF(H61="Second",0.2,IF(H61="Third",0.1,IF(H61="Select",0)))) -> 0 | I62: =IF(AND(B61="Piedmont",I61>0.0001,I61<0.1),0.41, IF(AND(B61="Piedmont",I61>10), 2.45, IF(B61="Piedmont",I61^0.39, IF(AND(B61="Coastal Plain",I61>0.0001,I61<0.1),0.42,IF(AND(B61="Coastal Plain",I61>10),2.4, IF(B61="Coastal Plain",I61^0.38, IF(AND(B61="Mountain",I61>0.0001,I61<0.1),0.36,IF(AND(B61="Mountain",I61>10),2.75,IF(B61="Mountain",I61^0.44))))))))) -> FALSE | L62: =IF(AND(H59="Primary",L59="Length Loss"), L60*G59*I60*L61*-1,IF(AND(H59="Primary", L59="Length Gain"),L60*G61*I62*L61*-1,0)) -> 0
B63: Not Selected | C63: Existing | D63: Preliminary Resource Evaluation | E63: Select | H63: Select | J63: =IF(H63="Second",(F63*G63*H64*1), IF(H63="Third",(F63*G63*H64*1), (F63*G63*H64*I64))) -> 0 | K63: =J65-J63 -> 0 | L63: =IF(F63>F65, "Length Loss", IF(F63<F65, "Length Gain", IF(F63=F65, "No Change"))) -> No Change | M63: 0 | N63: Existing: Select From Dropdown | O63: Proposed: Select From Dropdown | P63: =IF(D65="Restoration/Enhancement",SUM(K63,L66,M65,N65),IF(D65="Preservation",((0.1*J65)+M65+N65),"NA")) -> NA
H64: =IF(H63="Primary",1,IF(H63="Second",0.2,IF(H63="Third",0.1,IF(H63="Select",0)))) -> 0 | I64: =IF(AND(B63="Piedmont",I63>0.0001,I63<0.1),0.41, IF(AND(B63="Piedmont",I63>10), 2.45, IF(B63="Piedmont",I63^0.39, IF(AND(B63="Coastal Plain",I63>0.0001,I63<0.1),0.42,IF(AND(B63="Coastal Plain",I63>10),2.4, IF(B63="Coastal Plain",I63^0.38, IF(AND(B63="Mountain",I63>0.0001,I63<0.1),0.36,IF(AND(B63="Mountain",I63>10),2.75,IF(B63="Mountain",I63^0.44))))))))) -> FALSE | L64: =F65-F63 -> 0 | N64: =IF(AND(N63="No Existing Protection",O63="Deed Restriction"), 0.02, IF(AND(N63="No Existing Protection",O63="Easement"), 0.05, IF(AND(N63="No Existing Protection", O63="Accredited Easement"), 0.07, IF(AND(N63="No Existing Protection", O63="Fee Simple to Conservation Holder"), 0.09, IF(AND(N63="Agricultural Easement",O63="Deed Restriction"), 0.01, IF(AND(N63="Agricultural Easement",O63="Easement"), 0.04, IF(AND(N63="Agricultural Easement", O63="Accredited Easement"), 0.06, IF(AND(N63="Agricultural Easement", O63="Fee Simple to Conservation Holder"), 0.09, IF(AND(N63="Environmental Easement",O63="Deed Restriction"), 0, IF(AND(N63="Environmental Easement", O63="Easement"), 0.02, IF(AND(N63="Environmental Easement", O63="Accredited Easement"), 0.03, IF(AND(N63="Public Land", O63="Public Land MOA"), 0.02, 0)))))))))))) -> 0
B65: =B63 -> Not Selected | C65: Proposed | D65: Select from Dropdown | E65: Select | H65: =H63 -> Select | I65: 0 | J65: =IF(H65="Second",(F65*G65*H66*1), IF(H65="Third",(F65*G65*H66*1), (F65*G65*H66*I66))) -> 0 | L65: 0.5 | M65: =IF(D65="Preservation",((J65*0.1)*M63),(K63+L66)*M63) -> 0 | N65: =IF(H63="Second",(J65*N64),IF(H63="Third",(J65*N64),(J65/I66*N64))) -> 
H66: =IF(H65="Primary",1,IF(H65="Second",0.2,IF(H65="Third",0.1,IF(H65="Select",0)))) -> 0 | I66: =IF(AND(B65="Piedmont",I65>0.0001,I65<0.1),0.41, IF(AND(B65="Piedmont",I65>10), 2.45, IF(B65="Piedmont",I65^0.39, IF(AND(B65="Coastal Plain",I65>0.0001,I65<0.1),0.42,IF(AND(B65="Coastal Plain",I65>10),2.4, IF(B65="Coastal Plain",I65^0.38, IF(AND(B65="Mountain",I65>0.0001,I65<0.1),0.36,IF(AND(B65="Mountain",I65>10),2.75,IF(B65="Mountain",I65^0.44))))))))) -> FALSE | L66: =IF(AND(H63="Primary",L63="Length Loss"), L64*G63*I64*L65*-1,IF(AND(H63="Primary", L63="Length Gain"),L64*G65*I66*L65*-1,0)) -> 0
B67: Not Selected | C67: Existing | D67: Preliminary Resource Evaluation | E67: Select | H67: Select | J67: =IF(H67="Second",(F67*G67*H68*1), IF(H67="Third",(F67*G67*H68*1), (F67*G67*H68*I68))) -> 0 | K67: =J69-J67 -> 0 | L67: =IF(F67>F69, "Length Loss", IF(F67<F69, "Length Gain", IF(F67=F69, "No Change"))) -> No Change | M67: 0 | N67: Existing: Select From Dropdown | O67: Proposed: Select From Dropdown | P67: =IF(D69="Restoration/Enhancement",SUM(K67,L70,M69,N69),IF(D69="Preservation",((0.1*J69)+M69+N69),"NA")) -> NA
H68: =IF(H67="Primary",1,IF(H67="Second",0.2,IF(H67="Third",0.1,IF(H67="Select",0)))) -> 0 | I68: =IF(AND(B67="Piedmont",I67>0.0001,I67<0.1),0.41, IF(AND(B67="Piedmont",I67>10), 2.45, IF(B67="Piedmont",I67^0.39, IF(AND(B67="Coastal Plain",I67>0.0001,I67<0.1),0.42,IF(AND(B67="Coastal Plain",I67>10),2.4, IF(B67="Coastal Plain",I67^0.38, IF(AND(B67="Mountain",I67>0.0001,I67<0.1),0.36,IF(AND(B67="Mountain",I67>10),2.75,IF(B67="Mountain",I67^0.44))))))))) -> FALSE | L68: =F69-F67 -> 0 | N68: =IF(AND(N67="No Existing Protection",O67="Deed Restriction"), 0.02, IF(AND(N67="No Existing Protection",O67="Easement"), 0.05, IF(AND(N67="No Existing Protection", O67="Accredited Easement"), 0.07, IF(AND(N67="No Existing Protection", O67="Fee Simple to Conservation Holder"), 0.09, IF(AND(N67="Agricultural Easement",O67="Deed Restriction"), 0.01, IF(AND(N67="Agricultural Easement",O67="Easement"), 0.04, IF(AND(N67="Agricultural Easement", O67="Accredited Easement"), 0.06, IF(AND(N67="Agricultural Easement", O67="Fee Simple to Conservation Holder"), 0.09, IF(AND(N67="Environmental Easement",O67="Deed Restriction"), 0, IF(AND(N67="Environmental Easement", O67="Easement"), 0.02, IF(AND(N67="Environmental Easement", O67="Accredited Easement"), 0.03, IF(AND(N67="Public Land", O67="Public Land MOA"), 0.02, 0)))))))))))) -> 0
B69: =B67 -> Not Selected | C69: Proposed | D69: Select from Dropdown | E69: Select | H69: =H67 -> Select | I69: 0 | J69: =IF(H69="Second",(F69*G69*H70*1), IF(H69="Third",(F69*G69*H70*1), (F69*G69*H70*I70))) -> 0 | L69: 0.5 | M69: =IF(D69="Preservation",((J69*0.1)*M67),(K67+L70)*M67) -> 0 | N69: =IF(H67="Second",(J69*N68),IF(H67="Third",(J69*N68),(J69/I70*N68))) -> 
H70: =IF(H69="Primary",1,IF(H69="Second",0.2,IF(H69="Third",0.1,IF(H69="Select",0)))) -> 0 | I70: =IF(AND(B69="Piedmont",I69>0.0001,I69<0.1),0.41, IF(AND(B69="Piedmont",I69>10), 2.45, IF(B69="Piedmont",I69^0.39, IF(AND(B69="Coastal Plain",I69>0.0001,I69<0.1),0.42,IF(AND(B69="Coastal Plain",I69>10),2.4, IF(B69="Coastal Plain",I69^0.38, IF(AND(B69="Mountain",I69>0.0001,I69<0.1),0.36,IF(AND(B69="Mountain",I69>10),2.75,IF(B69="Mountain",I69^0.44))))))))) -> FALSE | L70: =IF(AND(H67="Primary",L67="Length Loss"), L68*G67*I68*L69*-1,IF(AND(H67="Primary", L67="Length Gain"),L68*G69*I70*L69*-1,0)) -> 0
B71: Not Selected | C71: Existing | D71: Preliminary Resource Evaluation | E71: Select | H71: Select | J71: =IF(H71="Second",(F71*G71*H72*1), IF(H71="Third",(F71*G71*H72*1), (F71*G71*H72*I72))) -> 0 | K71: =J73-J71 -> 0 | L71: =IF(F71>F73, "Length Loss", IF(F71<F73, "Length Gain", IF(F71=F73, "No Change"))) -> No Change | M71: 0 | N71: Existing: Select From Dropdown | O71: Proposed: Select From Dropdown | P71: =IF(D73="Restoration/Enhancement",SUM(K71,L74,M73,N73),IF(D73="Preservation",((0.1*J73)+M73+N73),"NA")) -> NA
H72: =IF(H71="Primary",1,IF(H71="Second",0.2,IF(H71="Third",0.1,IF(H71="Select",0)))) -> 0 | I72: =IF(AND(B71="Piedmont",I71>0.0001,I71<0.1),0.41, IF(AND(B71="Piedmont",I71>10), 2.45, IF(B71="Piedmont",I71^0.39, IF(AND(B71="Coastal Plain",I71>0.0001,I71<0.1),0.42,IF(AND(B71="Coastal Plain",I71>10),2.4, IF(B71="Coastal Plain",I71^0.38, IF(AND(B71="Mountain",I71>0.0001,I71<0.1),0.36,IF(AND(B71="Mountain",I71>10),2.75,IF(B71="Mountain",I71^0.44))))))))) -> FALSE | L72: =F73-F71 -> 0 | N72: =IF(AND(N71="No Existing Protection",O71="Deed Restriction"), 0.02, IF(AND(N71="No Existing Protection",O71="Easement"), 0.05, IF(AND(N71="No Existing Protection", O71="Accredited Easement"), 0.07, IF(AND(N71="No Existing Protection", O71="Fee Simple to Conservation Holder"), 0.09, IF(AND(N71="Agricultural Easement",O71="Deed Restriction"), 0.01, IF(AND(N71="Agricultural Easement",O71="Easement"), 0.04, IF(AND(N71="Agricultural Easement", O71="Accredited Easement"), 0.06, IF(AND(N71="Agricultural Easement", O71="Fee Simple to Conservation Holder"), 0.09, IF(AND(N71="Environmental Easement",O71="Deed Restriction"), 0, IF(AND(N71="Environmental Easement", O71="Easement"), 0.02, IF(AND(N71="Environmental Easement", O71="Accredited Easement"), 0.03, IF(AND(N71="Public Land", O71="Public Land MOA"), 0.02, 0)))))))))))) -> 0
B73: =B71 -> Not Selected | C73: Proposed | D73: Select from Dropdown | E73: Select | H73: =H71 -> Select | I73: 0 | J73: =IF(H73="Second",(F73*G73*H74*1), IF(H73="Third",(F73*G73*H74*1), (F73*G73*H74*I74))) -> 0 | L73: 0.5 | M73: =IF(D73="Preservation",((J73*0.1)*M71),(K71+L74)*M71) -> 0 | N73: =IF(H71="Second",(J73*N72),IF(H71="Third",(J73*N72),(J73/I74*N72))) -> 
H74: =IF(H73="Primary",1,IF(H73="Second",0.2,IF(H73="Third",0.1,IF(H73="Select",0)))) -> 0 | I74: =IF(AND(B73="Piedmont",I73>0.0001,I73<0.1),0.41, IF(AND(B73="Piedmont",I73>10), 2.45, IF(B73="Piedmont",I73^0.39, IF(AND(B73="Coastal Plain",I73>0.0001,I73<0.1),0.42,IF(AND(B73="Coastal Plain",I73>10),2.4, IF(B73="Coastal Plain",I73^0.38, IF(AND(B73="Mountain",I73>0.0001,I73<0.1),0.36,IF(AND(B73="Mountain",I73>10),2.75,IF(B73="Mountain",I73^0.44))))))))) -> FALSE | L74: =IF(AND(H71="Primary",L71="Length Loss"), L72*G71*I72*L73*-1,IF(AND(H71="Primary", L71="Length Gain"),L72*G73*I74*L73*-1,0)) -> 0
B75: Not Selected | C75: Existing | D75: Preliminary Resource Evaluation | E75: Select | H75: Select | J75: =IF(H75="Second",(F75*G75*H76*1), IF(H75="Third",(F75*G75*H76*1), (F75*G75*H76*I76))) -> 0 | K75: =J77-J75 -> 0 | L75: =IF(F75>F77, "Length Loss", IF(F75<F77, "Length Gain", IF(F75=F77, "No Change"))) -> No Change | M75: 0 | N75: Existing: Select From Dropdown | O75: Proposed: Select From Dropdown | P75: =IF(D77="Restoration/Enhancement",SUM(K75,L78,M77,N77),IF(D77="Preservation",((0.1*J77)+M77+N77),"NA")) -> NA
H76: =IF(H75="Primary",1,IF(H75="Second",0.2,IF(H75="Third",0.1,IF(H75="Select",0)))) -> 0 | I76: =IF(AND(B75="Piedmont",I75>0.0001,I75<0.1),0.41, IF(AND(B75="Piedmont",I75>10), 2.45, IF(B75="Piedmont",I75^0.39, IF(AND(B75="Coastal Plain",I75>0.0001,I75<0.1),0.42,IF(AND(B75="Coastal Plain",I75>10),2.4, IF(B75="Coastal Plain",I75^0.38, IF(AND(B75="Mountain",I75>0.0001,I75<0.1),0.36,IF(AND(B75="Mountain",I75>10),2.75,IF(B75="Mountain",I75^0.44))))))))) -> FALSE | L76: =F77-F75 -> 0 | N76: =IF(AND(N75="No Existing Protection",O75="Deed Restriction"), 0.02, IF(AND(N75="No Existing Protection",O75="Easement"), 0.05, IF(AND(N75="No Existing Protection", O75="Accredited Easement"), 0.07, IF(AND(N75="No Existing Protection", O75="Fee Simple to Conservation Holder"), 0.09, IF(AND(N75="Agricultural Easement",O75="Deed Restriction"), 0.01, IF(AND(N75="Agricultural Easement",O75="Easement"), 0.04, IF(AND(N75="Agricultural Easement", O75="Accredited Easement"), 0.06, IF(AND(N75="Agricultural Easement", O75="Fee Simple to Conservation Holder"), 0.09, IF(AND(N75="Environmental Easement",O75="Deed Restriction"), 0, IF(AND(N75="Environmental Easement", O75="Easement"), 0.02, IF(AND(N75="Environmental Easement", O75="Accredited Easement"), 0.03, IF(AND(N75="Public Land", O75="Public Land MOA"), 0.02, 0)))))))))))) -> 0
B77: =B75 -> Not Selected | C77: Proposed | D77: Select from Dropdown | E77: Select | H77: =H75 -> Select | I77: 0 | J77: =IF(H77="Second",(F77*G77*H78*1), IF(H77="Third",(F77*G77*H78*1), (F77*G77*H78*I78))) -> 0 | L77: 0.5 | M77: =IF(D77="Preservation",((J77*0.1)*M75),(K75+L78)*M75) -> 0 | N77: =IF(H75="Second",(J77*N76),IF(H75="Third",(J77*N76),(J77/I78*N76))) -> 
H78: =IF(H77="Primary",1,IF(H77="Second",0.2,IF(H77="Third",0.1,IF(H77="Select",0)))) -> 0 | I78: =IF(AND(B77="Piedmont",I77>0.0001,I77<0.1),0.41, IF(AND(B77="Piedmont",I77>10), 2.45, IF(B77="Piedmont",I77^0.39, IF(AND(B77="Coastal Plain",I77>0.0001,I77<0.1),0.42,IF(AND(B77="Coastal Plain",I77>10),2.4, IF(B77="Coastal Plain",I77^0.38, IF(AND(B77="Mountain",I77>0.0001,I77<0.1),0.36,IF(AND(B77="Mountain",I77>10),2.75,IF(B77="Mountain",I77^0.44))))))))) -> FALSE | L78: =IF(AND(H75="Primary",L75="Length Loss"), L76*G75*I76*L77*-1,IF(AND(H75="Primary", L75="Length Gain"),L76*G77*I78*L77*-1,0)) -> 0
B79: Not Selected | C79: Existing | D79: Preliminary Resource Evaluation | E79: Select | H79: Select | J79: =IF(H79="Second",(F79*G79*H80*1), IF(H79="Third",(F79*G79*H80*1), (F79*G79*H80*I80))) -> 0 | K79: =J81-J79 -> 0 | L79: =IF(F79>F81, "Length Loss", IF(F79<F81, "Length Gain", IF(F79=F81, "No Change"))) -> No Change | M79: 0 | N79: Existing: Select From Dropdown | O79: Proposed: Select From Dropdown | P79: =IF(D81="Restoration/Enhancement",SUM(K79,L82,M81,N81),IF(D81="Preservation",((0.1*J81)+M81+N81),"NA")) -> NA
H80: =IF(H79="Primary",1,IF(H79="Second",0.2,IF(H79="Third",0.1,IF(H79="Select",0)))) -> 0 | I80: =IF(AND(B79="Piedmont",I79>0.0001,I79<0.1),0.41, IF(AND(B79="Piedmont",I79>10), 2.45, IF(B79="Piedmont",I79^0.39, IF(AND(B79="Coastal Plain",I79>0.0001,I79<0.1),0.42,IF(AND(B79="Coastal Plain",I79>10),2.4, IF(B79="Coastal Plain",I79^0.38, IF(AND(B79="Mountain",I79>0.0001,I79<0.1),0.36,IF(AND(B79="Mountain",I79>10),2.75,IF(B79="Mountain",I79^0.44))))))))) -> FALSE | L80: =F81-F79 -> 0 | N80: =IF(AND(N79="No Existing Protection",O79="Deed Restriction"), 0.02, IF(AND(N79="No Existing Protection",O79="Easement"), 0.05, IF(AND(N79="No Existing Protection", O79="Accredited Easement"), 0.07, IF(AND(N79="No Existing Protection", O79="Fee Simple to Conservation Holder"), 0.09, IF(AND(N79="Agricultural Easement",O79="Deed Restriction"), 0.01, IF(AND(N79="Agricultural Easement",O79="Easement"), 0.04, IF(AND(N79="Agricultural Easement", O79="Accredited Easement"), 0.06, IF(AND(N79="Agricultural Easement", O79="Fee Simple to Conservation Holder"), 0.09, IF(AND(N79="Environmental Easement",O79="Deed Restriction"), 0, IF(AND(N79="Environmental Easement", O79="Easement"), 0.02, IF(AND(N79="Environmental Easement", O79="Accredited Easement"), 0.03, IF(AND(N79="Public Land", O79="Public Land MOA"), 0.02, 0)))))))))))) -> 0
B81: =B79 -> Not Selected | C81: Proposed | D81: Select from Dropdown | E81: Select | H81: =H79 -> Select | I81: 0 | J81: =IF(H81="Second",(F81*G81*H82*1), IF(H81="Third",(F81*G81*H82*1), (F81*G81*H82*I82))) -> 0 | L81: 0.5 | M81: =IF(D81="Preservation",((J81*0.1)*M79),(K79+L82)*M79) -> 0 | N81: =IF(H79="Second",(J81*N80),IF(H79="Third",(J81*N80),(J81/I82*N80))) -> 
H82: =IF(H81="Primary",1,IF(H81="Second",0.2,IF(H81="Third",0.1,IF(H81="Select",0)))) -> 0 | I82: =IF(AND(B81="Piedmont",I81>0.0001,I81<0.1),0.41, IF(AND(B81="Piedmont",I81>10), 2.45, IF(B81="Piedmont",I81^0.39, IF(AND(B81="Coastal Plain",I81>0.0001,I81<0.1),0.42,IF(AND(B81="Coastal Plain",I81>10),2.4, IF(B81="Coastal Plain",I81^0.38, IF(AND(B81="Mountain",I81>0.0001,I81<0.1),0.36,IF(AND(B81="Mountain",I81>10),2.75,IF(B81="Mountain",I81^0.44))))))))) -> FALSE | L82: =IF(AND(H79="Primary",L79="Length Loss"), L80*G79*I80*L81*-1,IF(AND(H79="Primary", L79="Length Gain"),L80*G81*I82*L81*-1,0)) -> 0
B83: Not Selected | C83: Existing | D83: Preliminary Resource Evaluation | E83: Select | H83: Select | J83: =IF(H83="Second",(F83*G83*H84*1), IF(H83="Third",(F83*G83*H84*1), (F83*G83*H84*I84))) -> 0 | K83: =J85-J83 -> 0 | L83: =IF(F83>F85, "Length Loss", IF(F83<F85, "Length Gain", IF(F83=F85, "No Change"))) -> No Change | M83: 0 | N83: Existing: Select From Dropdown | O83: Proposed: Select From Dropdown | P83: =IF(D85="Restoration/Enhancement",SUM(K83,L86,M85,N85),IF(D85="Preservation",((0.1*J85)+M85+N85),"NA")) -> NA
H84: =IF(H83="Primary",1,IF(H83="Second",0.2,IF(H83="Third",0.1,IF(H83="Select",0)))) -> 0 | I84: =IF(AND(B83="Piedmont",I83>0.0001,I83<0.1),0.41, IF(AND(B83="Piedmont",I83>10), 2.45, IF(B83="Piedmont",I83^0.39, IF(AND(B83="Coastal Plain",I83>0.0001,I83<0.1),0.42,IF(AND(B83="Coastal Plain",I83>10),2.4, IF(B83="Coastal Plain",I83^0.38, IF(AND(B83="Mountain",I83>0.0001,I83<0.1),0.36,IF(AND(B83="Mountain",I83>10),2.75,IF(B83="Mountain",I83^0.44))))))))) -> FALSE | L84: =F85-F83 -> 0 | N84: =IF(AND(N83="No Existing Protection",O83="Deed Restriction"), 0.02, IF(AND(N83="No Existing Protection",O83="Easement"), 0.05, IF(AND(N83="No Existing Protection", O83="Accredited Easement"), 0.07, IF(AND(N83="No Existing Protection", O83="Fee Simple to Conservation Holder"), 0.09, IF(AND(N83="Agricultural Easement",O83="Deed Restriction"), 0.01, IF(AND(N83="Agricultural Easement",O83="Easement"), 0.04, IF(AND(N83="Agricultural Easement", O83="Accredited Easement"), 0.06, IF(AND(N83="Agricultural Easement", O83="Fee Simple to Conservation Holder"), 0.09, IF(AND(N83="Environmental Easement",O83="Deed Restriction"), 0, IF(AND(N83="Environmental Easement", O83="Easement"), 0.02, IF(AND(N83="Environmental Easement", O83="Accredited Easement"), 0.03, IF(AND(N83="Public Land", O83="Public Land MOA"), 0.02, 0)))))))))))) -> 0
B85: =B83 -> Not Selected | C85: Proposed | D85: Select from Dropdown | E85: Select | H85: =H83 -> Select | I85: 0 | J85: =IF(H85="Second",(F85*G85*H86*1), IF(H85="Third",(F85*G85*H86*1), (F85*G85*H86*I86))) -> 0 | L85: 0.5 | M85: =IF(D85="Preservation",((J85*0.1)*M83),(K83+L86)*M83) -> 0 | N85: =IF(H83="Second",(J85*N84),IF(H83="Third",(J85*N84),(J85/I86*N84))) -> 
H86: =IF(H85="Primary",1,IF(H85="Second",0.2,IF(H85="Third",0.1,IF(H85="Select",0)))) -> 0 | I86: =IF(AND(B85="Piedmont",I85>0.0001,I85<0.1),0.41, IF(AND(B85="Piedmont",I85>10), 2.45, IF(B85="Piedmont",I85^0.39, IF(AND(B85="Coastal Plain",I85>0.0001,I85<0.1),0.42,IF(AND(B85="Coastal Plain",I85>10),2.4, IF(B85="Coastal Plain",I85^0.38, IF(AND(B85="Mountain",I85>0.0001,I85<0.1),0.36,IF(AND(B85="Mountain",I85>10),2.75,IF(B85="Mountain",I85^0.44))))))))) -> FALSE | L86: =IF(AND(H83="Primary",L83="Length Loss"), L84*G83*I84*L85*-1,IF(AND(H83="Primary", L83="Length Gain"),L84*G85*I86*L85*-1,0)) -> 0

Sheet 6_Bundled Stream Mit-Buffers
A1: STREAM MITIGATION CALCULATOR for Stream Buffers
A3: BACKGROUND INFORMATION | N3: Total Stream Gains from Buffers (Functional Feet)
A4: Corps Project ID #: | G4: Corps PM:
A5: Project Name: | G5: Date: | N5: =SUM(M11:M64) -> 0
A6: Lat/Long: | G6: Sponsor:
A7: County: | G7: Collaborators:
A8: Raw Change in Buffer Value | J8: Adjustments | M8: Stream Gains (Functional Feet) | N8: REMARKS (include CSBA Coordinates)
A9: Credited Stream Buffer Area Name (CBSA) | C9: Activity | D9: Evaluation | E9: Buffer Area (Acres) | F9: Buffer Quality | G9: Quality Acres | H9: Raw Buffer Value (Functional Feet) | I9: Raw Change in Buffer Value (Functional Feet) | J9: Site Sensitivity | K9: Site Protection
C11: Preliminary Resource Eval | D11: Existing Buffer | G11: =E11*F11 -> 0 | H11: =G11*75 -> 0 | I11: =H12-H11 -> 0 | J11: 0 | K11: Existing: Select From Dropdown | L11: Proposed: Select From Dropdown | M11: =IF(C12="Preservation", (H12+J13+K13)*0.25, SUM(I11,J13,K13)) -> 0
C12: Select from Dropdown | D12: Proposed Buffer | G12: =E12*F12 -> 0 | H12: =G12*75 -> 0 | K12: =IF(AND(K11="No Existing Protection",L11="Deed Restriction"), 0.02, IF(AND(K11="No Existing Protection",L11="Easement"), 0.05, IF(AND(K11="No Existing Protection", L11="Accredited Easement"), 0.07, IF(AND(K11="No Existing Protection", L11="Fee Simple to Conservation Holder"), 0.09, IF(AND(K11="Agricultural Easement",L11="Deed Restriction"), 0.01, IF(AND(K11="Agricultural Easement",L11="Easement"), 0.04, IF(AND(K11="Agricultural Easement", L11="Accredited Easement"), 0.06, IF(AND(K11="Agricultural Easement", L11="Fee Simple to Conservation Holder"), 0.09, IF(AND(K11="Environmental Easement",L11="Deed Restriction"), 0, IF(AND(K11="Environmental Easement", L11="Easement"), 0.02, IF(AND(K11="Environmental Easement", L11="Accredited Easement"), 0.03, IF(AND(K11="Public Land", L11="Public Land MOA"), 0.02, 0)))))))))))) -> 0
J13: =IF(C12="Preservation",((H11*0.1*J11)),I11*J11) -> 0 | K13: =H12*K12 -> 0
C14: Preliminary Resource Eval | D14: Existing Buffer | G14: =E14*F14 -> 0 | H14: =G14*75 -> 0 | I14: =H15-H14 -> 0 | J14: 0 | K14: Existing: Select From Dropdown | L14: Proposed: Select From Dropdown | M14: =IF(C15="Preservation", (H15+J16+K16)*0.25, SUM(I14,J16,K16)) -> 0
C15: Select from Dropdown | D15: Proposed Buffer | G15: =E15*F15 -> 0 | H15: =G15*75 -> 0 | K15: =IF(AND(K14="No Existing Protection",L14="Deed Restriction"), 0.02, IF(AND(K14="No Existing Protection",L14="Easement"), 0.05, IF(AND(K14="No Existing Protection", L14="Accredited Easement"), 0.07, IF(AND(K14="No Existing Protection", L14="Fee Simple to Conservation Holder"), 0.09, IF(AND(K14="Agricultural Easement",L14="Deed Restriction"), 0.01, IF(AND(K14="Agricultural Easement",L14="Easement"), 0.04, IF(AND(K14="Agricultural Easement", L14="Accredited Easement"), 0.06, IF(AND(K14="Agricultural Easement", L14="Fee Simple to Conservation Holder"), 0.09, IF(AND(K14="Environmental Easement",L14="Deed Restriction"), 0, IF(AND(K14="Environmental Easement", L14="Easement"), 0.02, IF(AND(K14="Environmental Easement", L14="Accredited Easement"), 0.03, IF(AND(K14="Public Land", L14="Public Land MOA"), 0.02, 0)))))))))))) -> 0
J16: =IF(C15="Preservation",((H14*0.1*J14)),I14*J14) -> 0 | K16: =H15*K15 -> 0
C17: Preliminary Resource Eval | D17: Existing Buffer | G17: =E17*F17 -> 0 | H17: =G17*75 -> 0 | I17: =H18-H17 -> 0 | J17: 0 | K17: Existing: Select From Dropdown | L17: Proposed: Select From Dropdown | M17: =IF(C18="Preservation", (H18+J19+K19)*0.25, SUM(I17,J19,K19)) -> 0
C18: Select from Dropdown | D18: Proposed Buffer | G18: =E18*F18 -> 0 | H18: =G18*75 -> 0 | K18: =IF(AND(K17="No Existing Protection",L17="Deed Restriction"), 0.02, IF(AND(K17="No Existing Protection",L17="Easement"), 0.05, IF(AND(K17="No Existing Protection", L17="Accredited Easement"), 0.07, IF(AND(K17="No Existing Protection", L17="Fee Simple to Conservation Holder"), 0.09, IF(AND(K17="Agricultural Easement",L17="Deed Restriction"), 0.01, IF(AND(K17="Agricultural Easement",L17="Easement"), 0.04, IF(AND(K17="Agricultural Easement", L17="Accredited Easement"), 0.06, IF(AND(K17="Agricultural Easement", L17="Fee Simple to Conservation Holder"), 0.09, IF(AND(K17="Environmental Easement",L17="Deed Restriction"), 0, IF(AND(K17="Environmental Easement", L17="Easement"), 0.02, IF(AND(K17="Environmental Easement", L17="Accredited Easement"), 0.03, IF(AND(K17="Public Land", L17="Public Land MOA"), 0.02, 0)))))))))))) -> 0
J19: =IF(C18="Preservation",((H17*0.1*J18)),I17*J18) -> 0 | K19: =H18*K18 -> 0
C20: Preliminary Resource Eval | D20: Existing Buffer | G20: =E20*F20 -> 0 | H20: =G20*75 -> 0 | I20: =H21-H20 -> 0 | J20: 0 | K20: Existing: Select From Dropdown | L20: Proposed: Select From Dropdown | M20: =IF(C21="Preservation", (H21+J22+K22)*0.25, SUM(I20,J22,K22)) -> 0
C21: Select from Dropdown | D21: Proposed Buffer | G21: 0 | H21: 0 | K21: =IF(AND(K20="No Existing Protection",L20="Deed Restriction"), 0.02, IF(AND(K20="No Existing Protection",L20="Easement"), 0.05, IF(AND(K20="No Existing Protection", L20="Accredited Easement"), 0.07, IF(AND(K20="No Existing Protection", L20="Fee Simple to Conservation Holder"), 0.09, IF(AND(K20="Agricultural Easement",L20="Deed Restriction"), 0.01, IF(AND(K20="Agricultural Easement",L20="Easement"), 0.04, IF(AND(K20="Agricultural Easement", L20="Accredited Easement"), 0.06, IF(AND(K20="Agricultural Easement", L20="Fee Simple to Conservation Holder"), 0.09, IF(AND(K20="Environmental Easement",L20="Deed Restriction"), 0, IF(AND(K20="Environmental Easement", L20="Easement"), 0.02, IF(AND(K20="Environmental Easement", L20="Accredited Easement"), 0.03, IF(AND(K20="Public Land", L20="Public Land MOA"), 0.02, 0)))))))))))) -> 0
J22: =IF(C21="Preservation",((H20*0.1*J21)),I20*J21) -> 0 | K22: =H21*K21 -> 0
C23: Preliminary Resource Eval | D23: Existing Buffer | G23: =E23*F23 -> 0 | H23: =G23*75 -> 0 | I23: =H24-H23 -> 0 | J23: 0 | K23: Existing: Select From Dropdown | L23: Proposed: Select From Dropdown | M23: =IF(C24="Preservation", (H24+J25+K25)*0.25, SUM(I23,J25,K25)) -> 0
C24: Select from Dropdown | D24: Proposed Buffer | G24: 0 | H24: 0 | K24: =IF(AND(K23="No Existing Protection",L23="Deed Restriction"), 0.02, IF(AND(K23="No Existing Protection",L23="Easement"), 0.05, IF(AND(K23="No Existing Protection", L23="Accredited Easement"), 0.07, IF(AND(K23="No Existing Protection", L23="Fee Simple to Conservation Holder"), 0.09, IF(AND(K23="Agricultural Easement",L23="Deed Restriction"), 0.01, IF(AND(K23="Agricultural Easement",L23="Easement"), 0.04, IF(AND(K23="Agricultural Easement", L23="Accredited Easement"), 0.06, IF(AND(K23="Agricultural Easement", L23="Fee Simple to Conservation Holder"), 0.09, IF(AND(K23="Environmental Easement",L23="Deed Restriction"), 0, IF(AND(K23="Environmental Easement", L23="Easement"), 0.02, IF(AND(K23="Environmental Easement", L23="Accredited Easement"), 0.03, IF(AND(K23="Public Land", L23="Public Land MOA"), 0.02, 0)))))))))))) -> 0
J25: =IF(C24="Preservation",((H23*0.1*J24)),I23*J24) -> 0 | K25: =H24*K24 -> 0
C26: Preliminary Resource Eval | D26: Existing Buffer | G26: =E26*F26 -> 0 | H26: =G26*75 -> 0 | I26: =H27-H26 -> 0 | J26: 0 | K26: Existing: Select From Dropdown | L26: Proposed: Select From Dropdown | M26: =IF(C27="Preservation", (H27+J28+K28)*0.25, SUM(I26,J28,K28)) -> 0
C27: Select from Dropdown | D27: Proposed Buffer | G27: 0 | H27: 0 | K27: =IF(AND(K26="No Existing Protection",L26="Deed Restriction"), 0.02, IF(AND(K26="No Existing Protection",L26="Easement"), 0.05, IF(AND(K26="No Existing Protection", L26="Accredited Easement"), 0.07, IF(AND(K26="No Existing Protection", L26="Fee Simple to Conservation Holder"), 0.09, IF(AND(K26="Agricultural Easement",L26="Deed Restriction"), 0.01, IF(AND(K26="Agricultural Easement",L26="Easement"), 0.04, IF(AND(K26="Agricultural Easement", L26="Accredited Easement"), 0.06, IF(AND(K26="Agricultural Easement", L26="Fee Simple to Conservation Holder"), 0.09, IF(AND(K26="Environmental Easement",L26="Deed Restriction"), 0, IF(AND(K26="Environmental Easement", L26="Easement"), 0.02, IF(AND(K26="Environmental Easement", L26="Accredited Easement"), 0.03, IF(AND(K26="Public Land", L26="Public Land MOA"), 0.02, 0)))))))))))) -> 0
J28: =IF(C27="Preservation",((H26*0.1*J27)),I26*J27) -> 0 | K28: =H27*K27 -> 0
C29: Preliminary Resource Eval | D29: Existing Buffer | G29: =E29*F29 -> 0 | H29: =G29*75 -> 0 | I29: =H30-H29 -> 0 | J29: 0 | K29: Existing: Select From Dropdown | L29: Proposed: Select From Dropdown | M29: =IF(C30="Preservation", (H30+J31+K31)*0.25, SUM(I29,J31,K31)) -> 0
C30: Select from Dropdown | D30: Proposed Buffer | G30: 0 | H30: 0 | K30: =IF(AND(K29="No Existing Protection",L29="Deed Restriction"), 0.02, IF(AND(K29="No Existing Protection",L29="Easement"), 0.05, IF(AND(K29="No Existing Protection", L29="Accredited Easement"), 0.07, IF(AND(K29="No Existing Protection", L29="Fee Simple to Conservation Holder"), 0.09, IF(AND(K29="Agricultural Easement",L29="Deed Restriction"), 0.01, IF(AND(K29="Agricultural Easement",L29="Easement"), 0.04, IF(AND(K29="Agricultural Easement", L29="Accredited Easement"), 0.06, IF(AND(K29="Agricultural Easement", L29="Fee Simple to Conservation Holder"), 0.09, IF(AND(K29="Environmental Easement",L29="Deed Restriction"), 0, IF(AND(K29="Environmental Easement", L29="Easement"), 0.02, IF(AND(K29="Environmental Easement", L29="Accredited Easement"), 0.03, IF(AND(K29="Public Land", L29="Public Land MOA"), 0.02, 0)))))))))))) -> 0
J31: =IF(C30="Preservation",((H29*0.1*J30)),I29*J30) -> 0 | K31: =H30*K30 -> 0
C32: Preliminary Resource Eval | D32: Existing Buffer | G32: =E32*F32 -> 0 | H32: =G32*75 -> 0 | I32: =H33-H32 -> 0 | J32: 0 | K32: Existing: Select From Dropdown | L32: Proposed: Select From Dropdown | M32: =IF(C33="Preservation", (H33+J34+K34)*0.25, SUM(I32,J34,K34)) -> 0
C33: Select from Dropdown | D33: Proposed Buffer | G33: 0 | H33: 0 | K33: =IF(AND(K32="No Existing Protection",L32="Deed Restriction"), 0.02, IF(AND(K32="No Existing Protection",L32="Easement"), 0.05, IF(AND(K32="No Existing Protection", L32="Accredited Easement"), 0.07, IF(AND(K32="No Existing Protection", L32="Fee Simple to Conservation Holder"), 0.09, IF(AND(K32="Agricultural Easement",L32="Deed Restriction"), 0.01, IF(AND(K32="Agricultural Easement",L32="Easement"), 0.04, IF(AND(K32="Agricultural Easement", L32="Accredited Easement"), 0.06, IF(AND(K32="Agricultural Easement", L32="Fee Simple to Conservation Holder"), 0.09, IF(AND(K32="Environmental Easement",L32="Deed Restriction"), 0, IF(AND(K32="Environmental Easement", L32="Easement"), 0.02, IF(AND(K32="Environmental Easement", L32="Accredited Easement"), 0.03, IF(AND(K32="Public Land", L32="Public Land MOA"), 0.02, 0)))))))))))) -> 0
J34: =IF(C33="Preservation",((H32*0.1*J33)),I32*J33) -> 0 | K34: =H33*K33 -> 0
C35: Preliminary Resource Eval | D35: Existing Buffer | G35: =E35*F35 -> 0 | H35: =G35*75 -> 0 | I35: =H36-H35 -> 0 | J35: 0 | K35: Existing: Select From Dropdown | L35: Proposed: Select From Dropdown | M35: =IF(C36="Preservation", (H36+J37+K37)*0.25, SUM(I35,J37,K37)) -> 0
C36: Select from Dropdown | D36: Proposed Buffer | G36: 0 | H36: 0 | K36: =IF(AND(K35="No Existing Protection",L35="Deed Restriction"), 0.02, IF(AND(K35="No Existing Protection",L35="Easement"), 0.05, IF(AND(K35="No Existing Protection", L35="Accredited Easement"), 0.07, IF(AND(K35="No Existing Protection", L35="Fee Simple to Conservation Holder"), 0.09, IF(AND(K35="Agricultural Easement",L35="Deed Restriction"), 0.01, IF(AND(K35="Agricultural Easement",L35="Easement"), 0.04, IF(AND(K35="Agricultural Easement", L35="Accredited Easement"), 0.06, IF(AND(K35="Agricultural Easement", L35="Fee Simple to Conservation Holder"), 0.09, IF(AND(K35="Environmental Easement",L35="Deed Restriction"), 0, IF(AND(K35="Environmental Easement", L35="Easement"), 0.02, IF(AND(K35="Environmental Easement", L35="Accredited Easement"), 0.03, IF(AND(K35="Public Land", L35="Public Land MOA"), 0.02, 0)))))))))))) -> 0
J37: =IF(C36="Preservation",((H35*0.1*J36)),I35*J36) -> 0 | K37: =H36*K36 -> 0
C38: Preliminary Resource Eval | D38: Existing Buffer | G38: =E38*F38 -> 0 | H38: =G38*75 -> 0 | I38: =H39-H38 -> 0 | J38: 0 | K38: Existing: Select From Dropdown | L38: Proposed: Select From Dropdown | M38: =IF(C39="Preservation", (H39+J40+K40)*0.25, SUM(I38,J40,K40)) -> 0
C39: Select from Dropdown | D39: Proposed Buffer | G39: 0 | H39: 0 | K39: =IF(AND(K38="No Existing Protection",L38="Deed Restriction"), 0.02, IF(AND(K38="No Existing Protection",L38="Easement"), 0.05, IF(AND(K38="No Existing Protection", L38="Accredited Easement"), 0.07, IF(AND(K38="No Existing Protection", L38="Fee Simple to Conservation Holder"), 0.09, IF(AND(K38="Agricultural Easement",L38="Deed Restriction"), 0.01, IF(AND(K38="Agricultural Easement",L38="Easement"), 0.04, IF(AND(K38="Agricultural Easement", L38="Accredited Easement"), 0.06, IF(AND(K38="Agricultural Easement", L38="Fee Simple to Conservation Holder"), 0.09, IF(AND(K38="Environmental Easement",L38="Deed Restriction"), 0, IF(AND(K38="Environmental Easement", L38="Easement"), 0.02, IF(AND(K38="Environmental Easement", L38="Accredited Easement"), 0.03, IF(AND(K38="Public Land", L38="Public Land MOA"), 0.02, 0)))))))))))) -> 0
J40: =IF(C39="Preservation",((H38*0.1*J39)),I38*J39) -> 0 | K40: =H39*K39 -> 0
C41: Preliminary Resource Eval | D41: Existing Buffer | G41: =E41*F41 -> 0 | H41: =G41*75 -> 0 | I41: =H42-H41 -> 0 | J41: 0 | K41: Existing: Select From Dropdown | L41: Proposed: Select From Dropdown | M41: =IF(C42="Preservation", (H42+J43+K43)*0.25, SUM(I41,J43,K43)) -> 0
C42: Select from Dropdown | D42: Proposed Buffer | G42: 0 | H42: 0 | K42: =IF(AND(K41="No Existing Protection",L41="Deed Restriction"), 0.02, IF(AND(K41="No Existing Protection",L41="Easement"), 0.05, IF(AND(K41="No Existing Protection", L41="Accredited Easement"), 0.07, IF(AND(K41="No Existing Protection", L41="Fee Simple to Conservation Holder"), 0.09, IF(AND(K41="Agricultural Easement",L41="Deed Restriction"), 0.01, IF(AND(K41="Agricultural Easement",L41="Easement"), 0.04, IF(AND(K41="Agricultural Easement", L41="Accredited Easement"), 0.06, IF(AND(K41="Agricultural Easement", L41="Fee Simple to Conservation Holder"), 0.09, IF(AND(K41="Environmental Easement",L41="Deed Restriction"), 0, IF(AND(K41="Environmental Easement", L41="Easement"), 0.02, IF(AND(K41="Environmental Easement", L41="Accredited Easement"), 0.03, IF(AND(K41="Public Land", L41="Public Land MOA"), 0.02, 0)))))))))))) -> 0
J43: =IF(C42="Preservation",((H41*0.1*J42)),I41*J42) -> 0 | K43: =H42*K42 -> 0
C44: Preliminary Resource Eval | D44: Existing Buffer | G44: =E44*F44 -> 0 | H44: =G44*75 -> 0 | I44: =H45-H44 -> 0 | J44: 0 | K44: Existing: Select From Dropdown | L44: Proposed: Select From Dropdown | M44: =IF(C45="Preservation", (H45+J46+K46)*0.25, SUM(I44,J46,K46)) -> 0
C45: Select from Dropdown | D45: Proposed Buffer | G45: 0 | H45: 0 | K45: =IF(AND(K44="No Existing Protection",L44="Deed Restriction"), 0.02, IF(AND(K44="No Existing Protection",L44="Easement"), 0.05, IF(AND(K44="No Existing Protection", L44="Accredited Easement"), 0.07, IF(AND(K44="No Existing Protection", L44="Fee Simple to Conservation Holder"), 0.09, IF(AND(K44="Agricultural Easement",L44="Deed Restriction"), 0.01, IF(AND(K44="Agricultural Easement",L44="Easement"), 0.04, IF(AND(K44="Agricultural Easement", L44="Accredited Easement"), 0.06, IF(AND(K44="Agricultural Easement", L44="Fee Simple to Conservation Holder"), 0.09, IF(AND(K44="Environmental Easement",L44="Deed Restriction"), 0, IF(AND(K44="Environmental Easement", L44="Easement"), 0.02, IF(AND(K44="Environmental Easement", L44="Accredited Easement"), 0.03, IF(AND(K44="Public Land", L44="Public Land MOA"), 0.02, 0)))))))))))) -> 0
J46: =IF(C45="Preservation",((H44*0.1*J45)),I44*J45) -> 0 | K46: =H45*K45 -> 0
C47: Preliminary Resource Eval | D47: Existing Buffer | G47: =E47*F47 -> 0 | H47: =G47*75 -> 0 | I47: =H48-H47 -> 0 | J47: 0 | K47: Existing: Select From Dropdown | L47: Proposed: Select From Dropdown | M47: =IF(C48="Preservation", (H48+J49+K49)*0.25, SUM(I47,J49,K49)) -> 0
C48: Select from Dropdown | D48: Proposed Buffer | G48: 0 | H48: 0 | K48: =IF(AND(K47="No Existing Protection",L47="Deed Restriction"), 0.02, IF(AND(K47="No Existing Protection",L47="Easement"), 0.05, IF(AND(K47="No Existing Protection", L47="Accredited Easement"), 0.07, IF(AND(K47="No Existing Protection", L47="Fee Simple to Conservation Holder"), 0.09, IF(AND(K47="Agricultural Easement",L47="Deed Restriction"), 0.01, IF(AND(K47="Agricultural Easement",L47="Easement"), 0.04, IF(AND(K47="Agricultural Easement", L47="Accredited Easement"), 0.06, IF(AND(K47="Agricultural Easement", L47="Fee Simple to Conservation Holder"), 0.09, IF(AND(K47="Environmental Easement",L47="Deed Restriction"), 0, IF(AND(K47="Environmental Easement", L47="Easement"), 0.02, IF(AND(K47="Environmental Easement", L47="Accredited Easement"), 0.03, IF(AND(K47="Public Land", L47="Public Land MOA"), 0.02, 0)))))))))))) -> 0
J49: =IF(C48="Preservation",((H47*0.1*J48)),I47*J48) -> 0 | K49: =H48*K48 -> 0
C50: Preliminary Resource Eval | D50: Existing Buffer | G50: =E50*F50 -> 0 | H50: =G50*75 -> 0 | I50: =H51-H50 -> 0 | J50: 0 | K50: Existing: Select From Dropdown | L50: Proposed: Select From Dropdown | M50: =IF(C51="Preservation", (H51+J52+K52)*0.25, SUM(I50,J52,K52)) -> 0
C51: Select from Dropdown | D51: Proposed Buffer | G51: 0 | H51: 0 | K51: =IF(AND(K50="No Existing Protection",L50="Deed Restriction"), 0.02, IF(AND(K50="No Existing Protection",L50="Easement"), 0.05, IF(AND(K50="No Existing Protection", L50="Accredited Easement"), 0.07, IF(AND(K50="No Existing Protection", L50="Fee Simple to Conservation Holder"), 0.09, IF(AND(K50="Agricultural Easement",L50="Deed Restriction"), 0.01, IF(AND(K50="Agricultural Easement",L50="Easement"), 0.04, IF(AND(K50="Agricultural Easement", L50="Accredited Easement"), 0.06, IF(AND(K50="Agricultural Easement", L50="Fee Simple to Conservation Holder"), 0.09, IF(AND(K50="Environmental Easement",L50="Deed Restriction"), 0, IF(AND(K50="Environmental Easement", L50="Easement"), 0.02, IF(AND(K50="Environmental Easement", L50="Accredited Easement"), 0.03, IF(AND(K50="Public Land", L50="Public Land MOA"), 0.02, 0)))))))))))) -> 0
J52: =IF(C51="Preservation",((H50*0.1*J51)),I50*J51) -> 0 | K52: =H51*K51 -> 0
C53: Preliminary Resource Eval | D53: Existing Buffer | G53: =E53*F53 -> 0 | H53: =G53*75 -> 0 | I53: =H54-H53 -> 0 | J53: 0 | K53: Existing: Select From Dropdown | L53: Proposed: Select From Dropdown | M53: =IF(C54="Preservation", (H54+J55+K55)*0.25, SUM(I53,J55,K55)) -> 0
C54: Select from Dropdown | D54: Proposed Buffer | G54: 0 | H54: 0 | K54: =IF(AND(K53="No Existing Protection",L53="Deed Restriction"), 0.02, IF(AND(K53="No Existing Protection",L53="Easement"), 0.05, IF(AND(K53="No Existing Protection", L53="Accredited Easement"), 0.07, IF(AND(K53="No Existing Protection", L53="Fee Simple to Conservation Holder"), 0.09, IF(AND(K53="Agricultural Easement",L53="Deed Restriction"), 0.01, IF(AND(K53="Agricultural Easement",L53="Easement"), 0.04, IF(AND(K53="Agricultural Easement", L53="Accredited Easement"), 0.06, IF(AND(K53="Agricultural Easement", L53="Fee Simple to Conservation Holder"), 0.09, IF(AND(K53="Environmental Easement",L53="Deed Restriction"), 0, IF(AND(K53="Environmental Easement", L53="Easement"), 0.02, IF(AND(K53="Environmental Easement", L53="Accredited Easement"), 0.03, IF(AND(K53="Public Land", L53="Public Land MOA"), 0.02, 0)))))))))))) -> 0
J55: =IF(C54="Preservation",((H53*0.1*J54)),I53*J54) -> 0 | K55: =H54*K54 -> 0
C56: Preliminary Resource Eval | D56: Existing Buffer | G56: =E56*F56 -> 0 | H56: =G56*75 -> 0 | I56: =H57-H56 -> 0 | J56: 0 | K56: Existing: Select From Dropdown | L56: Proposed: Select From Dropdown | M56: =IF(C57="Preservation", (H57+J58+K58)*0.25, SUM(I56,J58,K58)) -> 0
C57: Select from Dropdown | D57: Proposed Buffer | G57: 0 | H57: 0 | K57: =IF(AND(K56="No Existing Protection",L56="Deed Restriction"), 0.02, IF(AND(K56="No Existing Protection",L56="Easement"), 0.05, IF(AND(K56="No Existing Protection", L56="Accredited Easement"), 0.07, IF(AND(K56="No Existing Protection", L56="Fee Simple to Conservation Holder"), 0.09, IF(AND(K56="Agricultural Easement",L56="Deed Restriction"), 0.01, IF(AND(K56="Agricultural Easement",L56="Easement"), 0.04, IF(AND(K56="Agricultural Easement", L56="Accredited Easement"), 0.06, IF(AND(K56="Agricultural Easement", L56="Fee Simple to Conservation Holder"), 0.09, IF(AND(K56="Environmental Easement",L56="Deed Restriction"), 0, IF(AND(K56="Environmental Easement", L56="Easement"), 0.02, IF(AND(K56="Environmental Easement", L56="Accredited Easement"), 0.03, IF(AND(K56="Public Land", L56="Public Land MOA"), 0.02, 0)))))))))))) -> 0
J58: =IF(C57="Preservation",((H56*0.1*J57)),I56*J57) -> 0 | K58: =H57*K57 -> 0
C59: Preliminary Resource Eval | D59: Existing Buffer | G59: =E59*F59 -> 0 | H59: =G59*75 -> 0 | I59: =H60-H59 -> 0 | J59: 0 | K59: Existing: Select From Dropdown | L59: Proposed: Select From Dropdown | M59: =IF(C60="Preservation", (H60+J61+K61)*0.25, SUM(I59,J61,K61)) -> 0
C60: Select from Dropdown | D60: Proposed Buffer | G60: 0 | H60: 0 | K60: =IF(AND(K59="No Existing Protection",L59="Deed Restriction"), 0.02, IF(AND(K59="No Existing Protection",L59="Easement"), 0.05, IF(AND(K59="No Existing Protection", L59="Accredited Easement"), 0.07, IF(AND(K59="No Existing Protection", L59="Fee Simple to Conservation Holder"), 0.09, IF(AND(K59="Agricultural Easement",L59="Deed Restriction"), 0.01, IF(AND(K59="Agricultural Easement",L59="Easement"), 0.04, IF(AND(K59="Agricultural Easement", L59="Accredited Easement"), 0.06, IF(AND(K59="Agricultural Easement", L59="Fee Simple to Conservation Holder"), 0.09, IF(AND(K59="Environmental Easement",L59="Deed Restriction"), 0, IF(AND(K59="Environmental Easement", L59="Easement"), 0.02, IF(AND(K59="Environmental Easement", L59="Accredited Easement"), 0.03, IF(AND(K59="Public Land", L59="Public Land MOA"), 0.02, 0)))))))))))) -> 0
J61: =IF(C60="Preservation",((H59*0.1*J60)),I59*J60) -> 0 | K61: =H60*K60 -> 0
C62: Preliminary Resource Eval | D62: Existing Buffer | G62: =E62*F62 -> 0 | H62: =G62*75 -> 0 | I62: =H63-H62 -> 0 | J62: 0 | K62: Existing: Select From Dropdown | L62: Proposed: Select From Dropdown | M62: =IF(C63="Preservation", (H63+J64+K64)*0.25, SUM(I62,J64,K64)) -> 0
C63: Select from Dropdown | D63: Proposed Buffer | G63: 0 | H63: 0 | K63: =IF(AND(K62="No Existing Protection",L62="Deed Restriction"), 0.02, IF(AND(K62="No Existing Protection",L62="Easement"), 0.05, IF(AND(K62="No Existing Protection", L62="Accredited Easement"), 0.07, IF(AND(K62="No Existing Protection", L62="Fee Simple to Conservation Holder"), 0.09, IF(AND(K62="Agricultural Easement",L62="Deed Restriction"), 0.01, IF(AND(K62="Agricultural Easement",L62="Easement"), 0.04, IF(AND(K62="Agricultural Easement", L62="Accredited Easement"), 0.06, IF(AND(K62="Agricultural Easement", L62="Fee Simple to Conservation Holder"), 0.09, IF(AND(K62="Environmental Easement",L62="Deed Restriction"), 0, IF(AND(K62="Environmental Easement", L62="Easement"), 0.02, IF(AND(K62="Environmental Easement", L62="Accredited Easement"), 0.03, IF(AND(K62="Public Land", L62="Public Land MOA"), 0.02, 0)))))))))))) -> 0
J64: =IF(C63="Preservation",((H62*0.1*J63)),I62*J63) -> 0 | K64: =H63*K63 -> 0
